Workbook

Sheet TitlePage
A1: Title page
C6: Cyclopropanecarboxylic acid from Aminocyclopyrachlor: Terrestrial Foliar Applications
E17: WorksheetMaker Version | F17: 6.00.10
A51: 2012-09-27

Sheet Disclaimer
A1: DISCLAIMER

Sheet General Notes
A1: General Notes
B2: Prepared by: | C2: Patrick R Durkin
B3: Program Version: | C3: 6.00.10
B4: Database Used: | C4: FS WsMkr V06-00-01 with Aminocyclopyrachlor.mdb
B5: Template Workbook: | C5: FS WsMkr V06-00-01 with Aminocyclopyrachlor.mdb
B6: Base Workbook: | C6: FS WSMkr Blank V06-00-01.xlsm
A8: Color Codes in WorksheetMaker
A13: Color Codes used in Workbook for Front Matter, Data and Calculation Worksheets
B14: Green shading | C14: This is a default value or a user specified a value. You can change these values as you see fit but you should have a reason for doing so.
B15: Yellow shading | C15: This is a source for a link in other parts of the workbook. If you have good reason to change the value, you should note the change (with your reason) in the “Revisions” page.
B16: Blue shading | C16: This cell is linked to another cell in the workbook. Do not change this value. If you change any of these values, the workbook may not update correctly.
B17: Blue shading blue border | C17: This cell is linked to a Program parameter in Worksheet A01. Do not change this value. If you want the value to change, go to Worksheet A01 and change the value in that worksheet.
B18: Purple Shading | C18: Indicates (for information only) that the typical of order of Lower and Upper values is intentionally reversed. This is only used in the second (label) column.
B19: Italics, no shading | C19: The value in this cell is generated by a formula (the number that you see is the result of an equation). This cell is linked only to other cells in the worksheet. Do not change this value.
A25: Color Codes used in Workbook for Risk Characterization Worksheets
B26: HQ ≥ 2 | C26: For hazard quotient greater than 2, the number is in bold font with a red background and rounded to the nearest integer.
B27: HQ > 1 but < 2 | C27: For hazard quotient greater than 1 but less than two, the number is in bold font with a white background and rounded to one significant place after the decimal.
B28: HQ ≥ 0.1 but <1 | C28: For hazard quotient greater than 0.1 but less than one, the number is in regular font with a white background and rounded to one significant place after the decimal.
B29: HQ < 0.1 | C29: For hazard quotient less than 0.1, the number is in regular font with a white background. The number is expressed in scientific notation and rounded to one significant place -- e.g., 2E-02 rather than 0.02.
B55: Prepared by: | C55: Patrick R Durkin
B56: Program Version: | C56: 6.00.10
B57: Database Used: | C57: FS WsMkr V06-00-01 with Aminocyclopyrachlor.mdb
B58: Template Workbook: | C58: FS WsMkr V06-00-01 with Aminocyclopyrachlor.mdb
B59: Base Workbook: | C59: FS WSMkr Blank V06-00-01.xlsm

Sheet Chemical Notes
A1: Chemical specific notes
A2: Risk Assessment: | D2: SERA TR-056-01-03a
A3: Report Date: | D3: 2012-09-27
A6: The area below is an embedded MS Word Document. Add chemical-specific notes as appropriate.

Sheet Revisions
A1: Revision Histroy
A8: The area below is an embedded MS Word Document. Add revision notes as appropriate.

Sheet Contents
B1: Table of Contents | C1: Toc
A2: Work-sheet No. | B2: Worksheet Title
A3: TitlePage | B3: Title page
A4: Disclaimer | B4: DISCLAIMER
A5: General Notes | B5: General Notes
A6: Chemical Notes | B6: Chemical specific notes
A7: Revisions | B7: Revision Histroy
A8: Contents
A9: A01 | B9: Program Data: Aminocyclopyrachlor Application rates, application volumns, and concentrations in field solutions
A10: A02a | B10: General reference values and exposure factors used in worksheets.
A11: A02b | B11: General reference values and exposure factors used in worksheets.
A12: A02c | B12: General reference values and exposure factors used in worksheets.
A13: A02d | B13: General reference values and exposure factors used in worksheets.
A14: A03 | B14: Food items for terrestrial animals
A15: A04 | B15: Drift from Backpack Directed Foliar application at distances downwindfrom the application site
A16: B01 | B16: Chemical and Physical Properties for Aminocyclopyrachlor
A17: B02 | B17: Toxicity values for Aminocyclopyrachlor
A18: B04Rt | B18: Estimates of Water Contamination Rates -- i.e., the concentration in ambient water per pound applied per acre
A19: B04a | B19: Expected Concentrations in Surface Water
A20: B04b | B20: Pond: Concentration of pesticide (liquid formulation) in pond water after an accidental spill
A21: B04c | B21: Concentration in pond water after direct spray or after drift at distances downwind in feet from the application site
A22: B04d | B22: Concentration in stream water after direct spray or after drift at distances downwind in feet from the application site
A23: D05 | B23: Consumption of contaminated water by Child, Accidental Spill
A24: D06 | B24: Consumption of contaminated water by Child, Peak Conentrations
A25: D07 | B25: Consumption of contaminated water by Adult Male, Longer-term Conentrations
A26: D08a | B26: Consumption of Contaminated Fish (Accidental Spill), Adult Male, acute exposure
A27: D08b | B27: Consumption of Contaminated Fish (Accidental Spill), Subsistence Populations, acute exposure
A28: D09a | B28: Consumption of Contaminated Fish (Longer-term), Adult Male, chronic exposure
A29: D09b | B29: Consumption of Contaminated Fish (Longer-term), Subsistence Populations, chronic exposure
A30: D09c | B30: Consumption of Contaminated Fish (Peak Exposure), Adult Male, acute exposure
A31: D09d | B31: Consumption of Contaminated Fish (Peak Exposure), Subsistence Populations, acute exposure
A32: D11 | B32: Swimming Exposure Assessment Using Zero-Order Absorption, Adult Female, Surface Area, Whole body, for 60 minute(s)
A33: E03 | B33: Summary of Exposure Assessments for the General Public
A34: E04 | B34: Summary of Hazard Quotients (Toxicity) for the General Public
A35: F02a | B35: Consumption of contaminated water by Mammal, small, Accidental Spill
A36: F02b | B36: Consumption of contaminated water by Mammal, 400 g, Accidental Spill
A37: F02c | B37: Consumption of contaminated water by Mammal, carnivorous, Accidental Spill
A38: F02d | B38: Consumption of contaminated water by Mammal, large, Accidental Spill
A39: F03a | B39: Acute scenario for the consumption of Contaminated Fish (Accidental Spill) by Mammal, large carnivorous
A40: F03b | B40: Acute scenario for the consumption of Contaminated Fish (Accidental Spill) by Mammal, carnivorous
A41: F03c | B41: Acute scenario for the consumption of Contaminated Fish (Accidental Spill) by Bird, piscivorous
A42: F08a | B42: Consumption of contaminated water by Mammal, small, Peak Concentrations
A43: F08b | B43: Consumption of contaminated water by Mammal, 400 g, Peak Concentrations
A44: F08c | B44: Consumption of contaminated water by Mammal, carnivorous, Peak Concentrations
A45: F08d | B45: Consumption of contaminated water by Mammal, large, Peak Concentrations
A46: F11a | B46: Acute scenario for the consumption of Contaminated Fish (Peak) by Mammal, large carnivorous
A47: F11b | B47: Acute scenario for the consumption of Contaminated Fish (Peak) by Mammal, carnivorous
A48: F16a | B48: Consumption of contaminated water by Mammal, small, Longer-term Concentrations
A49: F16b | B49: Consumption of contaminated water by Mammal, 400 g, Longer-term Concentrations
A50: F16c | B50: Consumption of contaminated water by Mammal, carnivorous, Longer-term Concentrations
A51: F16d | B51: Consumption of contaminated water by Mammal, large, Longer-term Concentrations
A52: F17a | B52: Chronic scenario for the consumption of Contaminated Fish (Longer-term) by Mammal, large carnivorous
A53: F17b | B53: Chronic scenario for the consumption of Contaminated Fish (Longer-term) by Mammal, carnivorous
A54: G01a | B54: Summary of Exposure Assessments for the Mammals
A55: G02a | B55: Summary of Hazard Quotients (Toxicity) for the Mammals
A56: References | B56: References cited in workbook

Sheet A01
A1: Program Data: Aminocyclopyrachlor Application rates, application volumns, and concentrations in field solutions
A2: Parameter/Assumption | B2: Code / Range | C2: Equation/ Value | D2: Units | E2: Reference/ Equation
A3: Application Rate | B3: ApRt | C3: 0.28 | D3: lb/acre | E3: Program Input
A4: Application Volume | B4: ApVol
B5: Central | C5: 20 | D5: gal/acre | E5: Program Input
B6: Upper | C6: 400 | E6: Program Input
B7: Lower | C7: 10 | E7: Program Input
A8: Concentration in field solution (lb/gal) | B8: Concppg | C8: ApRt (lb/acre) / ApVol (gal/acre) | E8: Note 1
B9: Central | C9: =IF(C5>0, C$3/C5, "N/A") -> 0.014 | D9: lb/gal | E9: Eq
B10: Lower | C10: =IF(C6>0, C$3/C6, "N/A") -> 0.0007 | E10: Eq
B11: Upper | C11: =IF(C7>0, C$3/C7, "N/A") -> 0.028 | E11: Eq
A12: Conversion Factor for lbs/gal to mg/mL | B12: CnvF | C12: 119.8 | D12: mg/mL per lb/gal
A13: Concentration in field solution (mg/mL) | B13: FldConc | C13: Concppg * CnvF | E13: Note 2
B14: Central | C14: =IF(C5>0, DigitRound( C9*C$12, C$17), "NA") -> 1.7 | D14: mg/mL | E14: Eq
B15: Lower | C15: =IF(C6>0, DigitRound( C10*C$12, C$17), "NA") -> 0.084 | E15: Eq
B16: Upper | C16: =IF(C7>0, DigitRound( C11*C$12, C$17), "NA") -> 3.4 | E16: Eq
A17: Number of significant figures used for FldConc. | B17: NSig | C17: 2
A20: Number of Applications | B20: nApps | C20: 1 | D20: Unitless | E20: Program Input
A21: Application Interval | B21: ApIntv | C21: 1 | D21: Days | E21: Program Input
A22: Standard Values/Options for Scenarios
A23: Surface area of pond for spill | B23: PondSA_M | C23: 1000 | D23: Sq. Meters | E23: Risk assessment.
A24: Pond depth | B24: PondDepthM | C24: 1 | D24: Meters | E24: Risk assessment.
A25: Stream flow rate for drift scenario | B25: StreamFlowLD | C25: 710000 | D25: Liters/day | E25: Risk assessment.
A26: Stream length for drift scenario | B26: StreamLengthFt | C26: 1038 | D26: Feet | E26: Risk assessment.
A27: Stream width for drift scenario | B27: StreamWidthFt | C27: 6 | D27: Feet | E27: Risk assessment.
A28: Duration for longer-term exposures | B28: SubChDays | C28: 90 | D28: Days | E28: Risk assessment.
A29: Duration for swimming scenarios | B29: SwimMin | C29: 60 | D29: Minutes | E29: Risk assessment.
A30: Protection factor for workers based on PPE. | B30: WrkProtectFact
B31: Central | C31: 0 | E31: Risk assessment.
B32: Lower | C32: 0
B33: Upper | C33: 0
A34: Toxic Equivalency Factor for formulation | B34: TEF
B35: Central | C35: 1 | E35: Risk assessment.
B36: Lower | C36: 1
B37: Upper | C37: 1
A38: Drift used in food commody worksheets | B38: DriftToFood
B39: Central | C39: 1 | E39: Risk assessment.
B40: Lower | C40: 1
B41: Upper | C41: 1
A42: Amount spilled into ponds | B42: PondSpillVolGal
B43: Central | C43: 100 | D43: Gal | E43: Risk assessment.
B44: Lower | C44: 20
B45: Upper | C45: 200
A46: Dislodgeable residue, as a proportion of the application rate. | B46: DislogRes
B47: Central | C47: 0.1 | E47: Risk assessment.
B48: Lower | C48: 0.1
B49: Upper | C49: 0.1
A50: Residue rates for short grass | B50: VegRRSGT
B51: Central | C51: 85 | D51: ppm per lb/ac | E51: Risk assessment.
B52: Lower | C52: 30
B53: Upper | C53: 240
A54: Residue rates for long grass | B54: VegRRTGT
B55: Central | C55: 36 | D55: ppm per lb/ac | E55: Risk assessment.
B56: Lower | C56: 12
B57: Upper | C57: 110
A58: Residue rates for broadleaf/forage plants and small insects | B58: VegRRBLT
B59: Central | C59: 45 | D59: ppm per lb/ac | E59: Risk assessment.
B60: Lower | C60: 15
B61: Upper | C61: 135
A62: Residue rates for fruit | B62: VegRRFRT
B63: Central | C63: 7 | D63: ppm per lb/ac | E63: Risk assessment.
B64: Lower | C64: 3.2
B65: Upper | C65: 15
A66: Worker Exposure Rate | B66: WrkExpRate
B67: Central | C67: 0.003 | D67: Mg/kg bw per lb | E67: Risk assessment.
B68: Lower | C68: 0.0003
B69: Upper | C69: 0.01
A70: Number of acres that the worker will treat per hour. | B70: WrkAcPerHr
B71: Central | C71: 0.625 | D71: Acres/hr | E71: Risk assessment.
B72: Lower | C72: 0.25
B73: Upper | C73: 1
A74: Number of hours of worker exposure per day. | B74: WrkHsPerDy
B75: Central | C75: 7 | D75: Hrs/day | E75: Risk assessment.
B76: Lower | C76: 6
B77: Upper | C77: 8

Sheet A02a
A1: General reference values and exposure factors used in worksheets.
A3: Receptor | B3: Factor | C3: Value | D3: Units | E3: Reference | F3: Reference Note
A4: Adult Female | B4: Body weight | C4: 64 | D4: kg | E4: U.S. EPA/ORD 1985 | F4: page 5, Table 2-2
A5: Adult Female | B5: Surface Area, Feet and lower Legs | C5: 2915 | D5: cm2 | E5: U.S. EPA/ORD 1992 | F5: p. 8-11, Table 8-3, total for feet and lower legs
A6: Adult Female | B6: Surface Area, Wearing shorts and T-shirt | C6: 5300 | D6: cm2 | E6: U.S. EPA/ORD 1992 | F6: p. 8-11, Table 8-3, total for arms, hands, lower legs, and feet.
A7: Adult Female | B7: Surface Area, Whole body | C7: 16900 | D7: cm2 | E7: U.S. EPA/ORD 1997 | F7: p. 6-13, Table 6-3, whole body, 50th percentile
A8: Adult Male | B8: Body weight | C8: 70 | D8: kg | E8: ICRP 1975 | F8: p. 13.
A9: Subsistence Populations | B9: Body weight | C9: 70 | D9: kg | E9: ICRP 1975 | F9: p. 13
A10: Worker, Aerial Spray | B10: Absorbed dose rate, central estimate | C10: 3e-05 | D10: (mg/kg bw)/(lbs handled per day) | E10: SERA 2007 | F10: Acres treated per hour
A11: Worker, Aerial Spray | B11: Absorbed dose rate, lower range | C11: 1e-06 | D11: (mg/kg bw)/(lbs handled per day) | E11: SERA 2007 | F11: Acres treated per hour
A12: Worker, Aerial Spray | B12: Absorbed dose rate, upper range | C12: 0.0001 | D12: (mg/kg bw)/(lbs handled per day) | E12: SERA 2007 | F12: Acres treated per hour
A13: Worker, Aerial Spray | B13: Hours of application per day, central estimate | C13: 7 | D13: Hours per day | E13: USDA 1989a | F13: N/A
A14: Worker, Aerial Spray | B14: Hours of application per day, lower range | C14: 6 | D14: Hours per day | E14: USDA 1989a | F14: N/A
A15: Worker, Aerial Spray | B15: Hours of application per day, upper range | C15: 8 | D15: Hours per day | E15: USDA 1989a | F15: N/A
A16: Worker, Aerial Spray | B16: Acres treated per hour, central estimate | C16: 70 | D16: acres/hour | E16: USDA 1989a | F16: Acres treated per hour
A17: Worker, Aerial Spray | B17: Acres treated per hour, lower range | C17: 40 | D17: acres/hour | E17: USDA 1989a | F17: Acres treated per hour
A18: Worker, Aerial Spray | B18: Acres treated per hour, upper range | C18: 100 | D18: acres/hour | E18: USDA 1989a | F18: Acres treated per hour
A19: Worker, Backpack | B19: Absorbed dose rate, central estimate | C19: 0.003 | D19: (mg/kg bw)/(lbs handled per day) | E19: SERA 2007 | F19: Acres treated per hour
A20: Worker, Backpack | B20: Absorbed dose rate, lower range | C20: 0.0003 | D20: (mg/kg bw)/(lbs handled per day) | E20: SERA 2007 | F20: Acres treated per hour
A21: Worker, Backpack | B21: Absorbed dose rate, upper range | C21: 0.01 | D21: (mg/kg bw)/(lbs handled per day) | E21: SERA 2007 | F21: Acres treated per hour
A22: Worker, Backpack | B22: Hours of application per day, central estimate | C22: 7 | D22: Hours per day | E22: USDA 1989a | F22: N/A
A23: Worker, Backpack | B23: Hours of application per day, lower range | C23: 6 | D23: Hours per day | E23: USDA 1989a | F23: N/A
A24: Worker, Backpack | B24: Hours of application per day, upper range | C24: 8 | D24: Hours per day | E24: USDA 1989a | F24: N/A
A25: Worker, Backpack | B25: Acres treated per hour, central estimate | C25: 0.625 | D25: acres/hour | E25: USDA 1989a | F25: Acres treated per hour
A26: Worker, Backpack | B26: Acres treated per hour, lower range | C26: 0.25 | D26: acres/hour | E26: USDA 1989a | F26: Acres treated per hour
A27: Worker, Backpack | B27: Acres treated per hour, upper range | C27: 1 | D27: acres/hour | E27: USDA 1989a | F27: Acres treated per hour
A28: Child | B28: Body weight | C28: 13.3 | D28: kg | E28: U.S. EPA/ORD 1996 | F28: p. 7-1, Table 7-2
A29: Child | B29: Surface Area, Whole body | C29: 6030 | D29: cm2 | E29: U.S. EPA/ORD 1996 | F29: p. 6-15, Table 6-6, 50th percentile.
A30: Worker, Ground Spray | B30: Absorbed dose rate, central estimate | C30: 0.0002 | D30: (mg/kg bw)/(lbs handled per day) | E30: SERA 2007 | F30: Acres treated per hour
A31: Worker, Ground Spray | B31: Absorbed dose rate, lower range | C31: 1e-05 | D31: (mg/kg bw)/(lbs handled per day) | E31: SERA 2007 | F31: Acres treated per hour
A32: Worker, Ground Spray | B32: Absorbed dose rate, upper range | C32: 0.0009 | D32: (mg/kg bw)/(lbs handled per day) | E32: SERA 2007 | F32: Acres treated per hour
A33: Worker, Ground Spray | B33: Hours of application per day, central estimate | C33: 7 | D33: Hours per day | E33: USDA 1989a | F33: N/A
A34: Worker, Ground Spray | B34: Hours of application per day, lower range | C34: 6 | D34: Hours per day | E34: USDA 1989a | F34: N/A
A35: Worker, Ground Spray | B35: Hours of application per day, upper range | C35: 8 | D35: Hours per day | E35: USDA 1989a | F35: N/A
A36: Worker, Ground Spray | B36: Acres treated per hour, central estimate | C36: 16 | D36: acres/hour | E36: USDA 1989a | F36: Acres treated per hour
A37: Worker, Ground Spray | B37: Acres treated per hour, lower range | C37: 11 | D37: acres/hour | E37: USDA 1989a | F37: Acres treated per hour
A38: Worker, Ground Spray | B38: Acres treated per hour, upper range | C38: 21 | D38: acres/hour | E38: USDA 1989a | F38: Acres treated per hour
A39: Worker | B39: Body weight | C39: 70 | D39: kg | E39: ICRP 1975 | F39: p. 13
A40: Worker | B40: Surface Area, Hands | C40: 840 | D40: cm2 | E40: U.S. EPA/ORD 1992 | F40: p. 8-11
A41: Worker | B41: Surface Area, Lower legs | C41: 2070 | D41: cm2 | E41: U.S. EPA/ORD 1992 | F41: p. 8-11

Sheet A02b
A1: General reference values and exposure factors used in worksheets.
A3: Receptor | B3: Factor | C3: Value | D3: Units | E3: Reference | F3: Reference Note
A4: Amphibian | B4: Kilocalories, alpha parameter for allometric equation | C4: 0.054 | D4: BW(g),Kcal (kcal/day) | E4: U.S. EPA/ORD 1993 | F4: p. 3-7, equation 3-14
A5: Amphibian | B5: Kilocalories, beta parameter for allometric equation | C5: 0.799 | D5: BW(g),Kcal (kcal/day) | E5: U.S. EPA/ORD 1993 | F5: p. 3-7, equation 3-14
A6: Amphibian, bull frog | B6: Food consumption, alpha parameter for allometric equation | C6: 1.09 | D6: BW(g),FC(g) | E6: SERA 2010 | F6: Figure 15
A7: Amphibian, bull frog | B7: Food consumption, beta parameter for allometric equation | C7: 0.1723 | D7: BW(g),FC(g) | E7: SERA 2010 | F7: Figure 15
A8: Bird, NOS | B8: Food consumption, alpha parameter for allometric equation | C8: 0.648 | D8: BW(g),FC(g) | E8: U.S. EPA/ORD 1993 | F8: Eq. 3-3, p. 3-4, all birds
A9: Bird, NOS | B9: Food consumption, beta parameter for allometric equation | C9: 0.651 | D9: BW(g),FC(g) | E9: U.S. EPA/ORD 1993 | F9: Eq. 3-3, p. 3-4, all birds
A10: Bird, carnivorous | B10: Body weight | C10: 0.64 | D10: kg | E10: Dunning 1993 | F10: p. 97. Female Spotted Owl (Strix occidentalis). Range of 548 to 760 g.
A11: Bird, carnivorous | B11: Kilocalories, alpha parameter for allometric equation | C11: 1.146 | D11: BW(g),KCal(kcal/day) | E11: U.S. EPA/ORD 1993 | F11: Eq. 3-37, nonpasserines
A12: Bird, carnivorous | B12: Kilocalories, beta parameter for allometric equation | C12: 0.749 | D12: BW(g),KCal(kcal/day) | E12: U.S. EPA/ORD 1993 | F12: Eq. 3-37, nonpasserines
A13: Bird, carnivorous | B13: Water consumption, alpha parameter for allometric equation | C13: 0.059 | D13: BW(kg), WC(L) | E13: U.S. EPA/ORD 1993 | F13: Eq. 3-15, p. 3-8
A14: Bird, carnivorous | B14: Water consumption, beta parameter for allometric equation | C14: 0.67 | D14: BW(kg), WC(L) | E14: U.S. EPA/ORD 1993 | F14: Eq. 3-15, p. 3-8
A15: Bird, large | B15: Body weight | C15: 4 | D15: kg | E15: Default | F15: Canada goose
A16: Bird, large | B16: Kilocalories, alpha parameter for allometric equation | C16: 1.146 | D16: BW(g),KCal(kcal/day) | E16: U.S. EPA/ORD 1993 | F16: Eq. 3-37, non-passerines
A17: Bird, large | B17: Kilocalories, beta parameter for allometric equation | C17: 0.749 | D17: BW(g),KCal(kcal/day) | E17: U.S. EPA/ORD 1993 | F17: Eq. 3-37, non-passerines
A18: Bird, large | B18: Water consumption, alpha parameter for allometric equation | C18: 0.059 | D18: BW(kg), WC(L) | E18: U.S. EPA/ORD 1993 | F18: Eq. 3-15, p. 3-8
A19: Bird, large | B19: Water consumption, beta parameter for allometric equation | C19: 0.67 | D19: BW(kg), WC(L) | E19: U.S. EPA/ORD 1993 | F19: Eq. 3-15, p. 3-8
A20: Bird, non-Passerine | B20: Food consumption, alpha parameter for allometric equation | C20: 0.301 | D20: BW(g),FC(g) | E20: U.S. EPA/ORD 1993 | F20: Eq. 3-5, p. 3-5, non-passerines
A21: Bird, non-Passerine | B21: Food consumption, beta parameter for allometric equation | C21: 0.751 | D21: BW(g),FC(g) | E21: U.S. EPA/ORD 1993 | F21: Eq. 3-5, p. 3-5, non-passerines
A22: Bird, Passerine | B22: Food consumption, alpha parameter for allometric equation | C22: 0.398 | D22: BW(g),FC(g) | E22: U.S. EPA/ORD 1993 | F22: Eq. 3-4, p. 3-4, passerines
A23: Bird, Passerine | B23: Food consumption, beta parameter for allometric equation | C23: 0.85 | D23: BW(g),FC(g) | E23: U.S. EPA/ORD 1993 | F23: Eq. 3-4, p. 3-4, passerines
A24: Bird, piscivorous | B24: Body weight | C24: 2.4 | D24: kg | E24: Sibley 2000 | F24: p. 60. Great Blue Heron
A25: Bird, piscivorous | B25: Food consumption, alpha parameter for allometric equation | C25: 0.495 | D25: BW(g), FC(g) | E25: U.S. EPA/ORD 1993 | F25: Eq. 3-6, p. 3-5, seabird
A26: Bird, piscivorous | B26: Food consumption, beta parameter for allometric equation | C26: 0.704 | D26: BW(g), FC(g) | E26: U.S. EPA/ORD 1993 | F26: Eq. 3-6, p. 3-5, seabird
A27: Bird, piscivorous | B27: Kilocalories, alpha parameter for allometric equation | C27: 1.916 | D27: BW(g),KCal(kcal/day) | E27: U.S. EPA/ORD 1993 | F27: Eq. 3-38, p. 3-23, seabird
A28: Bird, piscivorous | B28: Kilocalories, beta parameter for allometric equation | C28: 0.704 | D28: BW(g),KCal(kcal/day) | E28: U.S. EPA/ORD 1993 | F28: Eq. 3-38, p. 3-23, seabird
A29: Bird, piscivorous | B29: Water consumption, alpha parameter for allometric equation | C29: 0.059 | D29: BW(kg), WC(L) | E29: U.S. EPA/ORD 1993 | F29: Eq. 3-15, p. 3-8
A30: Bird, piscivorous | B30: Water consumption, beta parameter for allometric equation | C30: 0.67 | D30: BW(kg), WC(L) | E30: U.S. EPA/ORD 1993 | F30: Eq. 3-15, p. 3-8
A31: Bird, small | B31: Body weight | C31: 0.01 | D31: kg | E31: Default | F31: N/A
A32: Bird, small | B32: Kilocalories, alpha parameter for allometric equation | C32: 3.12 | D32: BW(g),KCal(kcal/day) | E32: U.S. EPA/ORD 1993 | F32: Equation 3-36, passerines
A33: Bird, small | B33: Kilocalories, beta parameter for allometric equation | C33: 0.605 | D33: BW(g),KCal(kcal/day) | E33: U.S. EPA/ORD 1993 | F33: Equation 3-36, passerines
A34: Bird, small | B34: Water consumption, alpha parameter for allometric equation | C34: 0.059 | D34: BW(kg), WC(L) | E34: U.S. EPA/ORD 1993 | F34: Eq. 3-15, p. 3-8
A35: Bird, small | B35: Water consumption, beta parameter for allometric equation | C35: 0.67 | D35: BW(kg), WC(L) | E35: U.S. EPA/ORD 1993 | F35: Eq. 3-15, p. 3-8
A36: Honeybee | B36: Body weight | C36: 0.000116 | D36: kg | E36: Winston 1987 | F36: p. 54. Arithmetic average of range: 81 to 151 mg/bee.
A37: Honeybee | B37: Surface Area, Whole body | C37: 1.42 | D37: cm2 | E37: Humphery and Dykes 2008 | F37: Based on a bee with a body length of 1.44 cm.
A38: Mammal, Nos | B38: Food consumption, alpha parameter for allometric equation | C38: 0.235 | D38: BW(g),FC(g) | E38: U.S. EPA/ORD 1993 | F38: Eq. 3-7 ,p. 3-6, all mammals
A39: Mammal, Nos | B39: Food consumption, beta parameter for allometric equation | C39: 0.822 | D39: BW(g),FC(g) | E39: U.S. EPA/ORD 1993 | F39: Eq. 3-7 ,p. 3-6, all mammals
A40: Mammal, 400 g | B40: Body weight | C40: 0.4 | D40: kg | E40: Default | F40: N/A
A41: Mammal, 400 g | B41: Food consumption, alpha parameter for allometric equation | C41: 0.621 | D41: BW(g),FC(g) | E41: U.S. EPA/ORD 1993 | F41: Eq. 3-8, p. 3-6, equation for rodents
A42: Mammal, 400 g | B42: Food consumption, beta parameter for allometric equation | C42: 0.564 | D42: BW(g),FC(g) | E42: U.S. EPA/ORD 1993 | F42: Eq. 3-8, p. 3-6, equation for rodents
A43: Mammal, 400 g | B43: Kilocalories, alpha parameter for allometric equation | C43: 2.514 | D43: BW(g),KCal(kcal/day) | E43: U.S. EPA/ORD 1993 | F43: Equation 3-48, rodent
A44: Mammal, 400 g | B44: Kilocalories, beta parameter for allometric equation | C44: 0.507 | D44: BW(g),KCal(kcal/day) | E44: U.S. EPA/ORD 1993 | F44: Equation 3-48, rodent
A45: Mammal, 400 g | B45: Water consumption, alpha parameter for allometric equation | C45: 0.099 | D45: BW(kg),WC(L) | E45: U.S. EPA/ORD 1993 | F45: Eq. 3-17, p. 3-10, all mammals
A46: Mammal, 400 g | B46: Water consumption, beta parameter for allometric equation | C46: 0.9 | D46: BW(kg),WC(L) | E46: U.S. EPA/ORD 1993 | F46: Eq. 3-17, p. 3-10, all mammals
A47: Mammal, carnivorous | B47: Body weight | C47: 5 | D47: kg | E47: U.S. EPA/ORD 1993 | F47: p. 2-221. Central value for red fox with a range of 3 to 7 kg.
A48: Mammal, carnivorous | B48: Kilocalories, alpha parameter for allometric equation | C48: 0.6167 | D48: BW(g),KCal(kcal/day) | E48: U.S. EPA/ORD 1993 | F48: Equation 3-47, non-herbivore
A49: Mammal, carnivorous | B49: Kilocalories, beta parameter for allometric equation | C49: 0.862 | D49: BW(g),KCal(kcal/day) | E49: U.S. EPA/ORD 1993 | F49: Equation 3-47, non-herbivore
A50: Mammal, carnivorous | B50: Water consumption, alpha parameter for allometric equation | C50: 0.099 | D50: BW(kg),WC(L) | E50: U.S. EPA/ORD 1993 | F50: Eq. 3-17, p. 3-10, all mammals
A51: Mammal, carnivorous | B51: Water consumption, beta parameter for allometric equation | C51: 0.9 | D51: BW(kg), WC(L) | E51: U.S. EPA/ORD 1993 | F51: Eq. 3-17, p. 3-10, all mammals
A52: Mammal, large carnivorous | B52: Body weight | C52: 70 | D52: kg | E52: Reid 2006 | F52: pp. 451-453. Black bear or small grizzly.
A53: Mammal, large carnivorous | B53: Kilocalories, alpha parameter for allometric equation | C53: 0.6167 | D53: BW(g),KCal(kcal/day) | E53: U.S. EPA/ORD 1993 | F53: Equation 3-47, non-herbivore
A54: Mammal, large carnivorous | B54: Kilocalories, beta parameter for allometric equation | C54: 0.862 | D54: BW(g),KCal(kcal/day) | E54: U.S. EPA/ORD 1993 | F54: Equation 3-47, non-herbivore
A55: Mammal, large carnivorous | B55: Water consumption, alpha parameter for allometric equation | C55: 0.099 | D55: BW(kg),WC(L) | E55: U.S. EPA/ORD 1993 | F55: Eq. 3-17, p. 3-10, all mammals
A56: Mammal, large carnivorous | B56: Water consumption, beta parameter for allometric equation | C56: 0.9 | D56: BW(kg), WC(L) | E56: U.S. EPA/ORD 1993 | F56: Eq. 3-17, p. 3-10, all mammals
A57: Mammal, herbivorous | B57: Food consumption, alpha parameter for allometric equation | C57: 0.577 | D57: BW(g),FC(g) | E57: U.S. EPA/ORD 1993 | F57: Eq. 3-9, p. 3-6, equation for herbivores
A58: Mammal, herbivorous | B58: Food consumption, beta parameter for allometric equation | C58: 0.727 | D58: BW(g),FC(g) | E58: U.S. EPA/ORD 1993 | F58: Eq. 3-9, p. 3-6, equation for herbivores
A59: Mammal, herbivorous | B59: Kilocalories, alpha parameter for allometric equation | C59: 1.518 | D59: BW(g),KCal(kcal/day) | E59: U.S. EPA/ORD 1993 | F59: Equation 3-46, herbivores
A60: Mammal, herbivorous | B60: Kilocalories, beta parameter for allometric equation | C60: 0.73 | D60: BW(g),KCal(kcal/day) | E60: U.S. EPA/ORD 1993 | F60: Equation 3-46, herbivores
A61: Mammal, large | B61: Body weight | C61: 70 | D61: kg | E61: Default | F61: N/A
A62: Mammal, large | B62: Kilocalories, alpha parameter for allometric equation | C62: 1.518 | D62: BW(g),KCal(kcal/day) | E62: U.S. EPA/ORD 1993 | F62: p. 3-6, Eq. 3-10, herbivores
A63: Mammal, large | B63: Kilocalories, beta parameter for allometric equation | C63: 0.73 | D63: BW(g),KCal(kcal/day) | E63: U.S. EPA/ORD 1993 | F63: p. 3-6, Eq. 3-10, herbivores
A64: Mammal, large | B64: Water consumption, alpha parameter for allometric equation | C64: 0.099 | D64: BW(kg),WC(L) | E64: U.S. EPA/ORD 1993 | F64: Eq. 3-17, p. 3-10, all mammals
A65: Mammal, large | B65: Water consumption, beta parameter for allometric equation | C65: 0.9 | D65: BW(kg), WC(L) | E65: U.S. EPA/ORD 1993 | F65: Eq. 3-17, p. 3-10, all mammals
A66: Mammal, rabbit | B66: Body weight | C66: 1.3 | D66: kg | E66: Default | F66: N/A
A67: Mammal, rabbit | B67: Surface Area, alpha parameter for allometric equation | C67: 0.11 | D67: BW(kg),SA(m2) | E67: U.S. EPA/ORD 1993 | F67: p. 3-14, Eq. 3-22, for all mammals
A68: Mammal, rabbit | B68: Surface Area, beta parameter for allometric equation | C68: 0.65 | D68: BW(kg),SA(m2) | E68: U.S. EPA/ORD 1993 | F68: p. 3-14, Eq. 3-22, for all mammals
A69: Mammal, rodent | B69: Food consumption, alpha parameter for allometric equation | C69: 0.621 | D69: BW(g),FC(g) | E69: U.S. EPA/ORD 1993 | F69: Eq. 3-8, p. 3-6, equation for rodents
A70: Mammal, rodent | B70: Food consumption, beta parameter for allometric equation | C70: 0.584 | D70: BW(g),FC(g) | E70: U.S. EPA/ORD 1993 | F70: Eq. 3-8,p. 3-6, equation for rodents
A71: Mammal, small | B71: Body weight | C71: 0.02 | D71: kg | E71: Default | F71: N/A
A72: Mammal, small | B72: Caloric content (wet weight) | C72: 1.7 | D72: kcal/g (wet weight) | E72: U.S. EPA/ORD 1993 | F72: Table 4-1, p. 4-13. Value for small mammals. Wet weight.
A73: Mammal, small | B73: Food consumption, alpha parameter for allometric equation | C73: 0.621 | D73: BW(g),FC(g) | E73: U.S. EPA/ORD 1993 | F73: Eq. 3-8, p. 3-6, equation for rodents
A74: Mammal, small | B74: Food consumption, beta parameter for allometric equation | C74: 0.564 | D74: BW(g),FC(g) | E74: U.S. EPA/ORD 1993 | F74: Eq. 3-8, p. 3-6, equation for rodents
A75: Mammal, small | B75: Kilocalories, alpha parameter for allometric equation | C75: 2.514 | D75: BW(g),KCal(kcal/day) | E75: U.S. EPA/ORD 1993 | F75: Equation 3-48, rodent
A76: Mammal, small | B76: Kilocalories, beta parameter for allometric equation | C76: 0.507 | D76: BW(g),KCal(kcal/day) | E76: U.S. EPA/ORD 1993 | F76: Equation 3-48, rodent
A77: Mammal, small | B77: Surface Area, alpha parameter for allometric equation | C77: 0.11 | D77: BW(kg),SA(m2) | E77: U.S. EPA/ORD 1993 | F77: p. 3-14, Eq. 3-22, for all mammals
A78: Mammal, small | B78: Surface Area, beta parameter for allometric equation | C78: 0.65 | D78: BW(kg),SA(m2) | E78: U.S. EPA/ORD 1993 | F78: p. 3-14, Eq. 3-22, for all mammals
A79: Mammal, small | B79: Water consumption, alpha parameter for allometric equation | C79: 0.099 | D79: BW(kg),WC(L) | E79: U.S. EPA/ORD 1993 | F79: Eq. 3-17, p. 3-10, all mammals
A80: Mammal, small | B80: Water consumption, beta parameter for allometric equation | C80: 0.9 | D80: BW(kg),WC(L) | E80: U.S. EPA/ORD 1993 | F80: Eq. 3-17, p. 3-10, all mammals

Sheet A02c
A1: General reference values and exposure factors used in worksheets.
A3: Receptor | B3: Factor | C3: Value | D3: Units | E3: Reference | F3: Reference Note
A4: Small Insects | B4: Caloric content (wet weight) | C4: 1.5 | D4: kcal/g (wet weight) | E4: U.S. EPA/ORD 1993 | F4: Table 4-1, p. 4-13. Value for beetles. Wet weight
A5: Fish | B5: Caloric content (wet weight) | C5: 1.2 | D5: kcal/g (wet weight) | E5: U.S. EPA/ORD 1993 | F5: Table 4-1, p. 4-13. Value for bony fish. Wet weight
A6: Vegetation | B6: Caloric content (dry weight) | C6: 2.26 | D6: kcal/g | E6: U.S. EPA/ORD 1993 | F6: p. 3-5, Table 3-1
A7: Vegetation | B7: Water content (proportion) | C7: 0.85 | D7: unitless | E7: U.S. EPA/ORD 1993 | F7: p. 4-14
A8: VegRR | B8: Broadleaf/forage plants and small insects, central estimate | C8: 45 | D8: mg chem/kg veg | E8: Fletcher et al. 1994 | F8: Broadleaf/forage plants and small insects
A9: VegRR | B9: Broadleaf/forage plants and small insects, upper range | C9: 135 | D9: mg chem/kg veg | E9: Fletcher et al. 1994 | F9: Broadleaf/forage plants and small insects
A10: VegRR | B10: Fruits, pods, seeds, and large insects, central estimate | C10: 7 | D10: mg chem/kg veg | E10: Fletcher et al. 1994 | F10: Fruits, pods, seeds, and large insects
A11: VegRR | B11: Fruits, pods, seeds, and large insects, upper range | C11: 15 | D11: mg chem/kg veg | E11: Fletcher et al. 1994 | F11: Fruits, pods, seeds, and large insects
A12: VegRR | B12: Broadleaf plants and small insects, granular applications, central estimate | C12: 1.8 | D12: mg chem/kg veg | E12: SERA 2005 | F12: Broadleaf forage plants and contaminated insects after granular application
A13: VegRR | B13: Broadleaf plants and small insects, granular applications, upper range | C13: 5.4 | D13: mg chem/kg veg | E13: SERA 2005 | F13: Broadleaf forage plants and contaminated insects after granular application
A14: VegRR | B14: Fruits, granular applications, central estimate | C14: 0.28 | D14: mg chem/kg veg | E14: SERA 2005 | F14: Fruit after granular application
A15: VegRR | B15: Fruits, granular applications, upper range | C15: 0.6 | D15: mg chem/kg veg | E15: SERA 2005 | F15: Fruit after granular application
A16: VegRR | B16: Short grass, granular applications, lower range | C16: 1.2 | D16: mg chem/kg veg | E16: SERA 2005 | F16: Short grass after granular application
A17: VegRR | B17: Short grass, granular applications, upper range | C17: 9.6 | D17: mg chem/kg veg | E17: SERA 2005 | F17: Short grass after granular application
A18: VegRR | B18: Tall grass, granular applications, central estimate | C18: 1.44 | D18: mg chem/kg veg | E18: SERA 2005 | F18: Tall grass after granular application
A19: VegRR | B19: Tall grass, granular applications, upper range | C19: 4.4 | D19: mg chem/kg veg | E19: SERA 2005 | F19: Tall grass after granular application
A20: VegRR | B20: Short grass, central estimate | C20: 85 | D20: mg chem/kg veg | E20: Fletcher et al. 1994 | F20: Short grass
A21: VegRR | B21: Short grass, lower range | C21: 30 | D21: mg chem/kg veg | E21: SERA 2007 | F21: Short grass
A22: VegRR | B22: Short grass, upper range | C22: 240 | D22: mg chem/kg veg | E22: Fletcher et al. 1994 | F22: Short grass
A23: VegRR | B23: Tall grass, central estimate | C23: 36 | D23: mg chem/kg veg | E23: Fletcher et al. 1994 | F23: Tall grass
A24: VegRR | B24: Tall grass, upper range | C24: 110 | D24: mg chem/kg veg | E24: Fletcher et al. 1994 | F24: Tall grass

Sheet A02d
A1: General reference values and exposure factors used in worksheets.
A3: Receptor | B3: Factor | C3: Value | D3: Units | E3: Reference | F3: Reference Note
A4: Conversion Factors | B4: acrefoot2gal | C4: 325900 | D4: gal/acre-foot | E4: Budavari 1989 | F4: N/A
A5: Conversion Factors | B5: liters per gal | C5: 3.785 | D5: L/gal | E5: Budavari 1989 | F5: N/A
A6: Conversion Factors | B6: pound per milligram | C6: 453600 | D6: mg/lb | E6: Budavari 1989 | F6: N/A
A7: Conversion Factors | B7: lbac2mgcm2 | C7: 0.01121 | D7: mg/cm2 per lb/acre | E7: Budavari 1989 | F7: N/A
A8: Conversion Factors | B8: lbac2ugcm2 | C8: 11.21 | D8: ug/cm2 per lb/acre | E8: Budavari 1989 | F8: N/A
A9: Conversion Factors | B9: conversion for milligrams to pounds | C9: 2.204e-06 | D9: lb/mg | E9: Budavari 1989 | F9: N/A
A10: Conversion Factors | B10: conversion for milliliters to gallons | C10: 3785 | D10: ml/gal | E10: Budavari 1989 | F10: N/A
A11: Misc | B11: Liquid adhering to skin | C11: 0.008 | D11: mL/cm2 | E11: Mason and Johnson 1987 | F11: Weight of liquid adhering to surface of skin after a spill
A12: Misc | B12: Dislodgeable residue as proportion | C12: 0.1 | D12: none | E12: Harris and Solomon 1992 | F12: Estimate of dislodgeable residue as a proportion of application rate shortly after application based on 2,4-D.
A13: Standard Pond | B13: Depth | C13: 1 | D13: m | E13: Default | F13: Depth of pond
A14: Standard Pond | B14: Surface Area | C14: 1000 | D14: m^2 | E14: Default | F14: Surface Area
A15: Standard Pond | B15: Volume of Spill | C15: 200 | D15: gallons | E15: Default | F15: Volume of spill
A16: VegRR | B16: Broadleaf/forage plants and small insects, lower range | C16: 15 | D16: mg chem/kg veg | E16: SERA 2007 | F16: Broadleaf/forage plants and small insects
A17: VegRR | B17: Fruits, pods, seeds, and large insects, lower range | C17: 3.2 | D17: mg chem/kg veg | E17: SERA 2007 | F17: Fruits, pods, seeds, and large insects
A18: VegRR | B18: Broadleaf plants and small insects, granular applications, lower range | C18: 0.6 | D18: mg chem/kg veg | E18: SERA 2007 | F18: Broadleaf/forage plants after granular application
A19: VegRR | B19: Fruits, granular applications, lower range | C19: 0.13 | D19: mg chem/kg veg | E19: SERA 2007 | F19: Fruit after granular application
A20: VegRR | B20: Short grass, granular applications, central estimate | C20: 3.4 | D20: mg chem/kg veg | E20: SERA 2005 | F20: Short grass after granular application
A21: VegRR | B21: Short grass, granular applications, lower range | C21: 1.2 | D21: mg chem/kg veg | E21: SERA 2007 | F21: Short grass after granular application
A22: VegRR | B22: Tall grass, granular applications, lower range | C22: 0.48 | D22: mg chem/kg veg | E22: SERA 2007 | F22: Tall grass after granular application
A23: VegRR | B23: Short grass, lower range | C23: 30 | D23: mg chem/kg veg | E23: Fletcher et al. 1994 | F23: Short grass
A24: VegRR | B24: Tall grass, lower range | C24: 12 | D24: mg chem/kg veg | E24: SERA 2007 | F24: Tall grass

Sheet A03
A1: Food items for terrestrial animals
A3: Receptor | B3: Consumer | C3: Qualifier | D3: Modifier | E3: Value | F3: Units | G3: Reference | H3: Reference Note
A4: Adult Female | B4: Fish | C4: Amount | D4: central estimate | E4: 0.01 | F4: kg/day | G4: U.S. EPA/ORD 1996 | H4: p. 10-51, average of means from four studies rounded to one significant place.
A5: Adult Female | B5: Fish | C5: Amount | D5: upper range | E5: 0.158 | F5: kg/day | G5: Ruffle et al. 1994 | H5: N/A
A6: Adult Female | B6: Fruit | C6: Proportion of body weight | D6: central estimate | E6: 0.00168 | F6: kg fruit/kg bw/day | G6: U.S. EPA/ORD 1996 | H6: Table 9-3, p. 9-11, mean value.
A7: Adult Female | B7: Fruit | C7: Proportion of body weight | D7: lower range | E7: 0.00168 | F7: kg fruit/kg bw/day | G7: U.S. EPA/ORD 1996 | H7: Table 9-3, p. 9-11. The 5th percentile is given as zero. For these worksheets, the central estimate is used for the lower bound.
A8: Adult Female | B8: Fruit | C8: Proportion of body weight | D8: upper range | E8: 0.01244 | F8: kg fruit/kg bw/day | G8: U.S. EPA/ORD 1996 | H8: Table 9-3, p. 9-11, 95th percentile value.
A9: Adult Female | B9: Vegetation, home grown | C9: Proportion of body weight | D9: central estimate | E9: 0.00076 | F9: kg veg/kg bw/day | G9: U.S. EPA/ORD 1996 | H9: Table 12-15, p. 9-14, mean for individuals between 20 and 39 years old.
A10: Adult Female | B10: Vegetation, home grown | C10: Proportion of body weight | D10: lower range | E10: 8e-05 | F10: kg veg/kg bw/day | G10: U.S. EPA/ORD 1996 | H10: Table 12-15, p. 9-14, 5th percentile for individuals between 20 and 39 years old.
A11: Adult Female | B11: Vegetation, home grown | C11: Proportion of body weight | D11: upper range | E11: 0.00492 | F11: kg veg/kg bw/day | G11: U.S. EPA/ORD 1996 | H11: Table 12-15, p. 9-14, 95th percentile for individuals between 20 and 39 years old.
A12: Adult Female | B12: Vegetation | C12: Amount | D12: Extreme | E12: 0.454 | F12: kg food | G12: U.S. EPA/ORD 1996 | H12: 1 lb. The approximate mid range of the above typical and upper limits based on the 64 kg body weight.
A13: Adult Female | B13: Vegetation | C13: Proportion of body weight | D13: central estimate | E13: 0.0036 | F13: kg veg/kg bw/day | G13: U.S. EPA/ORD 1996 | H13: Table 9-12, p. 9-12, mean.
A14: Adult Female | B14: Vegetation | C14: Proportion of body weight | D14: lower range | E14: 0.00075 | F14: kg veg/kg bw/day | G14: U.S. EPA/ORD 1996 | H14: Table 9-12, p. 9-12, 5th percentile.
A15: Adult Female | B15: Vegetation | C15: Proportion of body weight | D15: upper range | E15: 0.01 | F15: kg veg/kg bw/day | G15: U.S. EPA/ORD 1996 | H15: Table 9-12, p. 9-12, 95th percentile.
A16: Adult Female | B16: Water | C16: Amount | D16: central estimate | E16: 2 | F16: L/day | G16: U.S. EPA/ORD 1996 | H16: p. 3-28, Table 3-30, midpoint of mean (1.4 L/day) and 90th percentile (2.4 L/day) rounded to one significant place.
A17: Adult Female | B17: Water | C17: Amount | D17: lower range | E17: 1.4 | F17: L/day | G17: U.S. EPA/ORD 1996 | H17: p. 3-28, Table 3-30, mean
A18: Adult Female | B18: Water | C18: Amount | D18: upper range | E18: 2.4 | F18: L/day | G18: U.S. EPA/ORD 1996 | H18: p. 3-28, Table 3-30, 90th percentile
A19: Adult Male | B19: Fish | C19: Amount | D19: central estimate | E19: 0.01 | F19: kg/day | G19: U.S. EPA/ORD 1996 | H19: p. 10-51, average of means from four studies rounded to one significant place.
A20: Adult Male | B20: Fish | C20: Amount | D20: upper range | E20: 0.158 | F20: kg/day | G20: Ruffle et al. 1994 | H20: N/A
A21: Adult Male | B21: Fruit | C21: Proportion of body weight | D21: central estimate | E21: 0.00168 | F21: unitless | G21: U.S. EPA/ORD 1996 | H21: Table 9-3, p. 9-11, mean value.
A22: Adult Male | B22: Fruit | C22: Proportion of body weight | D22: lower range | E22: 0.00168 | F22: unitless | G22: U.S. EPA/ORD 1996 | H22: Table 9-3, p. 9-11. The 5th percentile is given as zero. For these worksheets, the central estimate is used for the lower bound.
A23: Adult Male | B23: Fruit | C23: Proportion of body weight | D23: upper range | E23: 0.01244 | F23: unitless | G23: U.S. EPA/ORD 1996 | H23: Table 9-3, p. 9-11, 95th percentile value.
A24: Adult Male | B24: Vegetation, home grown | C24: Proportion of body weight | D24: central estimate | E24: 0.00076 | F24: unitless | G24: U.S. EPA/ORD 1996 | H24: Table 12-15, p. 9-14, mean for individuals between 20 and 39 years old.
A25: Adult Male | B25: Vegetation, home grown | C25: Proportion of body weight | D25: lower range | E25: 8e-05 | F25: unitless | G25: U.S. EPA/ORD 1996 | H25: Table 12-15, p. 9-14, 5th percentile for individuals between 20 and 39 years old.
A26: Adult Male | B26: Vegetation, home grown | C26: Proportion of body weight | D26: upper range | E26: 0.00492 | F26: unitless | G26: U.S. EPA/ORD 1996 | H26: Table 12-15, p. 9-14, 95th percentile for individuals between 20 and 39 years old.
A27: Adult Male | B27: Vegetation | C27: Amount | D27: Extreme | E27: 0.454 | F27: kg/day | G27: U.S. EPA/ORD 1996 | H27: 1 lb. The approximate mid range of the above typical and upper limits based on the 64 kg body weight.
A28: Adult Male | B28: Vegetation | C28: Proportion of body weight | D28: central estimate | E28: 0.0036 | F28: unitless | G28: U.S. EPA/ORD 1996 | H28: Table 9-12, p. 9-12, mean.
A29: Adult Male | B29: Vegetation | C29: Proportion of body weight | D29: lower range | E29: 0.00075 | F29: unitless | G29: U.S. EPA/ORD 1996 | H29: Table 9-12, p. 9-12, 5th percentile.
A30: Adult Male | B30: Vegetation | C30: Proportion of body weight | D30: upper range | E30: 0.01 | F30: unitless | G30: U.S. EPA/ORD 1996 | H30: Table 9-12, p. 9-12, 95th percentile.
A31: Adult Male | B31: Water | C31: Amount | D31: central estimate | E31: 2 | F31: L/day | G31: U.S. EPA/ORD 1996 | H31: p. 3-28, Table 3-30, midpoint of mean (1.4 L/day) and 90th percentile (2.4 L/day) rounded to one significant place.
A32: Adult Male | B32: Water | C32: Amount | D32: lower range | E32: 1.4 | F32: L/day | G32: U.S. EPA/ORD 1996 | H32: p. 3-28, Table 3-30, mean
A33: Adult Male | B33: Water | C33: Amount | D33: upper range | E33: 2.4 | F33: L/day | G33: U.S. EPA/ORD 1996 | H33: p. 3-28, Table 3-30, 90th percentile
A34: Subsistence Populations | B34: Fish | C34: Amount | D34: central estimate | E34: 0.081 | F34: kg/day | G34: U.S. EPA/ORD 1996 | H34: p. 10-51, median value of 94 individuals
A35: Subsistence Populations | B35: Fish | C35: Amount | D35: upper range | E35: 0.77 | F35: kg/day | G35: U.S. EPA/ORD 1993 | H35: p. 10-51, highest value of 94 individuals
A36: Bird, NOS | B36: Fish | C36: Kilocalories | D36: FoodVal | E36: 3.87 | F36: Kcal/gram (dw) | G36: U.S. EPA/ORD 1993 | H36: Table 3-1, p. 3-5
A37: Bird, NOS | B37: Fish | C37: Wat | D37: FoodVal | E37: 0.7 | F37: Unitless | G37: Ali et al. 2005 | H37: N/A
A38: Bird, NOS | B38: Fruit | C38: Kilocalories | D38: FoodVal | E38: 1.1 | F38: Kcal/gram (dw) | G38: U.S. EPA/ORD 1993 | H38: Gross caloric value of 2.2 kcal/g dw (U.S. EPA/ORD 1993, Table 4-2) with assim fact of 0.51
A39: Bird, NOS | B39: Fruit | C39: Wat | D39: FoodVal | E39: 0.77 | F39: Unitless | G39: U.S. EPA/ORD 1993 | H39: Table 4-2, p. 4-14
A40: Bird, NOS | B40: Insect | C40: Kilocalories | D40: FoodVal | E40: 4.3 | F40: Kcal/gram (dw) | G40: U.S. EPA/ORD 1993 | H40: Table 4-2, p. 4-14
A41: Bird, NOS | B41: Insect | C41: Wat | D41: FoodVal | E41: 0.7 | F41: Unitless | G41: Chapman 1998 | H41: Typrical range 60-80%
A42: Bird, NOS | B42: Vegetation | C42: Kilocalories | D42: FoodVal | E42: 2 | F42: Kcal/gram (dw) | G42: U.S. EPA/ORD 1993 | H42: gross caloric value of 4.2 kcal/g dw for dicot leaves (U.S. EPA/ORD 1993, Table 4-2) with assim fact of 0.47
A43: Bird, NOS | B43: Vegetation | C43: Wat | D43: FoodVal | E43: 0.85 | F43: Unitless | G43: U.S. EPA/ORD 1993 | H43: Table 4-2, p. 4-14
A44: Child | B44: Water | C44: Amount | D44: central estimate | E44: 1 | F44: L/day | G44: U.S. EPA/ORD 1996 | H44: p. 3-28, Table 3-30, midpoint of mean (0.61L/day) and 90th percentile (1.5 L/day) rounded to one significant place.
A45: Child | B45: Water | C45: Amount | D45: lower range | E45: 0.61 | F45: L/day | G45: U.S. EPA/ORD 1996 | H45: p. 3-28, Table 3-30, mean
A46: Child | B46: Water | C46: Amount | D46: upper range | E46: 1.5 | F46: L/day | G46: U.S. EPA/ORD 1996 | H46: p. 3-28, Table 3-30, 90th percentile
A47: Herbivorous Insect | B47: Broadleaf/Small Insects | C47: Proportion of body weight | D47: central estimate | E47: 1.3 | F47: kg food/kg bw/day | G47: Waldbauer 1968 | H47: N/A
A48: Herbivorous Insect | B48: Broadleaf/Small Insects | C48: Proportion of body weight | D48: lower range | E48: 0.6 | F48: kg food/kg bw/day | G48: Reichle et al. 1973 | H48: N/A
A49: Herbivorous Insect | B49: Broadleaf/Small Insects | C49: Proportion of body weight | D49: upper range | E49: 2.2 | F49: kg food/kg bw/day | G49: Waldbauer 1968 | H49: N/A
A50: Herbivorous Insect | B50: Fruit | C50: Proportion of body weight | D50: central estimate | E50: 1.3 | F50: kg food/kg bw/day | G50: Waldbauer 1968 | H50: N/A
A51: Herbivorous Insect | B51: Fruit | C51: Proportion of body weight | D51: lower range | E51: 0.6 | F51: kg food/kg bw/day | G51: Reichle et al. 1973 | H51: N/A
A52: Herbivorous Insect | B52: Fruit | C52: Proportion of body weight | D52: upper range | E52: 2.2 | F52: kg food/kg bw/day | G52: Waldbauer 1968 | H52: N/A
A53: Herbivorous Insect | B53: Short grass | C53: Proportion of body weight | D53: central estimate | E53: 1.3 | F53: kg food/kg bw/day | G53: Waldbauer 1968 | H53: N/A
A54: Herbivorous Insect | B54: Short grass | C54: Proportion of body weight | D54: lower range | E54: 0.6 | F54: kg food/kg bw/day | G54: Reichle et al. 1973 | H54: N/A
A55: Herbivorous Insect | B55: Short grass | C55: Proportion of body weight | D55: upper range | E55: 2.2 | F55: kg food/kg bw/day | G55: Waldbauer 1968 | H55: N/A
A56: Herbivorous Insect | B56: Tall Grass | C56: Proportion of body weight | D56: central estimate | E56: 1.3 | F56: kg food/kg bw/day | G56: Waldbauer 1968 | H56: N/A
A57: Herbivorous Insect | B57: Tall Grass | C57: Proportion of body weight | D57: lower range | E57: 0.6 | F57: kg food/kg bw/day | G57: Reichle et al. 1973 | H57: N/A
A58: Herbivorous Insect | B58: Tall Grass | C58: Proportion of body weight | D58: upper range | E58: 2.2 | F58: kg food/kg bw/day | G58: Waldbauer 1968 | H58: N/A
A59: Mammal, Nos | B59: Fish | C59: Kilocalories | D59: FoodVal | E59: 4.47 | F59: Kcal/gram (dw) | G59: U.S. EPA/ORD 1993 | H59: Table 3-1, p. 3-5
A60: Mammal, Nos | B60: Fish | C60: Wat | D60: FoodVal | E60: 0.7 | F60: Unitless | G60: Ali et al. 2005 | H60: N/A
A61: Mammal, Nos | B61: Fruit | C61: Kilocalories | D61: FoodVal | E61: 1.1 | F61: Kcal/gram (dw) | G61: U.S. EPA/ORD 1993 | H61: Gross caloric value of 2.2 kcal/g dw (U.S. EPA/ORD 1993, Table 4-2) with assim fact of 0.51
A62: Mammal, Nos | B62: Fruit | C62: Wat | D62: FoodVal | E62: 0.77 | F62: Unitless | G62: U.S. EPA/ORD 1993 | H62: Table 4-2, p. 4-14
A63: Mammal, Nos | B63: Insect | C63: Kilocalories | D63: FoodVal | E63: 4.47 | F63: Kcal/gram (dw) | G63: U.S. EPA/ORD 1993 | H63: Table 4-2, p. 4-14
A64: Mammal, Nos | B64: Insect | C64: Wat | D64: FoodVal | E64: 0.7 | F64: Unitless | G64: Chapman 1998 | H64: Typrical range 60-80%
A65: Mammal, Nos | B65: Vegetation | C65: Kilocalories | D65: FoodVal | E65: 2.26 | F65: Kcal/gram (dw) | G65: U.S. EPA/ORD 1993 | H65: Table 3-1, p. 3-5
A66: Mammal, Nos | B66: Vegetation | C66: Wat | D66: FoodVal | E66: 0.85 | F66: Unitless | G66: U.S. EPA/ORD 1993 | H66: Table 4-2, p. 4-14

Sheet A04
A1: Drift from Backpack Directed Foliar application at distances downwindfrom the application site
A2: Short Title | B2: Drift | E2: DriftArea
A3: Receptor | B3: Downwind receptors
A4: Duration | B4: Acute
A5: Parameter/Assumption | B5: Code / Range | C5: Equation/ Value | D5: Units | E5: Reference/Designation
A6: Proportion of Drift at distances downwind in feet | B6: Prop | E6: Program Speciified
A7: Direct Spray | B7: feet | C7: 1 | D7: unitless
A8: 25 | B8: feet | C8: 0.00832
A9: 50 | B9: feet | C9: 0.00433
A10: 100 | B10: feet | C10: 0.00241
A11: 300 | B11: feet | C11: 0.000941
A12: 500 | B12: feet | C12: 0.000579
A13: 900 | B13: feet | C13: 0.000312

Sheet B01
A1: Chemical and Physical Properties for Aminocyclopyrachlor
A3: Property | B3: Receptor | C3: Value | D3: Units | E3: Document Reference
A4: Bioconcentration Factor (BCF), edible, acute | B4: N/A | C4: 1 | D4: L/kg fish | E4: Section 3.2.3.5
A5: Bioconcentration Factor (BCF), edible, chronic | B5: N/A | C5: 1 | D5: L/kg fish | E5: Section 3.2.3.5
A6: Bioconcentration Factor (BCF), whole fish, acute | B6: N/A | C6: 1 | D6: L/kg fish | E6: Section 3.2.3.5
A7: Bioconcentration Factor (BCF), whole fish, chronic | B7: N/A | C7: 1 | D7: L/kg fish | E7: Section 3.2.3.5
A8: MW | B8: N/A | C8: 86.09 | D8: g/mole | E8: Table 10
A9: Kow | B9: N/A | C9: 4.27 | E9: Table 10

Sheet B02
A1: Toxicity values for Aminocyclopyrachlor
A3: Receptor | B3: Receptor | C3: Qualifier | D3: Endpoint | E3: Value | F3: Units | G3: Document Reference
A4: Human | B4: acute | C4: N/A | D4: Reference Dose (RfD) | E4: 0.0026 | F4: mg/kg bw | G4: Section 3.3.2.1.
A5: Human | B5: chronic | C5: N/A | D5: Reference Dose (RfD) | E5: 0.00087 | F5: mg/kg bw/day | G5: Section 3.3.2.2.
A6: Mammal, Nos | B6: acute | C6: N/A | D6: NOAEL | E6: 0.26 | F6: mg/kg bw | G6: Section 4.3.2.1.
A7: Mammal, Nos | B7: chronic | C7: N/A | D7: NOAEL | E7: 0.026 | F7: mg/kg bw/day | G7: Section 4.3.2.1.

Sheet B03a
A1: Calculation of Zero-Order Dermal Permeability Rate (Kp) in cm/hour
A2: Short Title | B2: Calculation of Kp
A3: Parameter/Assumption | B3: Code / Range | C3: Equation/ Value | D3: Units | E3: Reference/Designation
A4: Molecular weight | B4: MW | C4: ='B01'!C8 -> 86.09 | D4: g/mole | E4: Chem!MW
A5: Ko/w | B5: Kow | C5: ='B01'!C9 -> 4.27 | D5: unitless | E5: Chem!Kow
A6: Vector a[] | B6: a[1] | C6: 1
B7: a[2] | C7: =C4 -> 86.09
B8: a[3] | C8: =LOG10(C5) -> 0.630427875
A9: Transpose of a[] (a') | B9: =$C$6 -> 1 | C9: =$C$7 -> 86.09 | D9: =$C$8 -> 0.630427875
A10: X'X Cross Product Matrix | B10: X'X
B11: 0.055931 | C11: -9.41546e-05 | D11: -0.0103443
B12: -9.41546e-05 | C12: 5.978e-07 | D12: -2.22508e-05
B13: -0.0103443 | C13: -2.22508e-05 | D13: 0.00740677
A14: a'X'X a | B14: a'X'X a | C14: =MMULT(B9:D9,MMULT(B11:D13, C6:C8)) -> 0.03163586077
A15: Coefficients for model
A16: Intercept | B16: K0 | C16: -2.72576
A17: Coeff for Log10(Kow) | B17: K1 | C17: 0.706648
A18: Coeff for MW | B18: K2 | C18: -0.006151
A19: Standard deviation of model | B19: s | C19: 0.727129
A20: Critical value at 0.025 with 87 d.f. | B20: t0.025 | C20: 1.96
A21: Log10 of Estimated dermal permeability rate (Kp) | B21: Log(Kp) = | C21: K1 MW × K2 Log10(Kow) + K0
B22: Central | C22: =($C$18*$C$4) + ($C$17*LOG10($C$5)) + $C$16 -> -2.809808993 | E22: Eq
B23: Lower 95% CI | C23: =$C$22 - ($C$20 * $C$19 * ($C$14^0.5)) -> -3.06329697 | E23: Eq
B24: Upper 95% CI | C24: =$C$22 + ($C$20 * $C$19 * ($C$14^0.5)) -> -2.556321016 | E24: Eq
A25: Estimated dermal permeability rate (Kp) | B25: Kp = | C25: 10Log(Kp)
B26: Central | C26: =10^C22 -> 0.001549497954 | D26: cm/hour | E26: Eq
B27: Lower 95% CI | C27: =10^C23 -> 0.0008643766576 | E27: Eq
B28: Upper 95% CI | C28: =10^C24 -> 0.002777659354 | E28: Eq

Sheet B04Rt
A1: Estimates of Water Contamination Rates -- i.e., the concentration in ambient water per pound applied per acre
A2: Parameter/Assumption | B2: Code / Range | C2: Equation/ Value | D2: Units | E2: WCRV6
A3: Short-term peak concentrations | B3: Peak | E3: WCRV6
B4: Central | C4: 0.0007 | D4: mg/L
B5: Lower | C5: 2e-06
B6: Upper | C6: 0.007
A7: Longer-term average concentrations | B7: Average
B8: Central | C8: 5e-05 | D8: mg/L
B9: Lower | C9: 2e-07
B10: Upper | C10: 0.0007
A11: User Specified Gleams-Driver File: | B11: None

Sheet B04a
A1: Expected Concentrations in Surface Water | E1: EECRtV6
A2: Parameter/Assumption | B2: Code / Range | C2: Equation/ Value | D2: Units | E2: EECRtV6
A3: Application Rate | B3: ApRt | C3: ='A01'!ApRt_C -> 0.28 | D3: lb/acre | E3: Worksheet A01
A4: Water Contamination Rates
A5: Short-term peak water contamination rates (WCR) | B5: Peak
B6: Central | C6: =B04Rt!C4 -> 0.0007 | D6: mg/L
B7: Lower | C7: =B04Rt!C5 -> 2e-06
B8: Upper | C8: =B04Rt!C6 -> 0.007
A9: Longer-term average water contamination rates (WCR) | B9: Average
B10: Central | C10: =B04Rt!C8 -> 5e-05 | D10: mg/L
B11: Lower | C11: =B04Rt!C9 -> 2e-07
B12: Upper | C12: =B04Rt!C10 -> 0.0007
A13: EECs in Surface Water
A14: Short-term peak concentrations | B14: Peak
B15: Central | C15: =$C$3*C6 -> 0.000196 | D15: mg/L | E15: Eq
B16: Lower | C16: =$C$3*C7 -> 5.6e-07 | E16: Eq
B17: Upper | C17: 0.00196 | E17: Eq
A18: Longer-term average concentrations | B18: Average
B19: Central | C19: =$C$3*C10 -> 1.4e-05 | D19: mg/L | E19: Eq
B20: Lower | C20: =$C$3*C11 -> 5.6e-08 | E20: Eq
B21: Upper | C21: 0.000196 | E21: Eq

Sheet B04b
A1: Pond: Concentration of pesticide (liquid formulation) in pond water after an accidental spill
A2: Short Title | B2: Pond Spill | E2: PondSpillLiqV6
A3: Receptor | B3: Pond
A4: Duration | B4: Acute
A5: Parameter/Assumption | B5: Code / Range | C5: Equation/ Value | D5: Units | E5: Reference/Designation
A6: Surface Area of Pond | B6: SA | C6: ='A01'!C$23 -> 1000 | D6: m2 | E6: Worksheet A01
A7: Depth of Pond | B7: Depth | C7: ='A01'!C$24 -> 1 | D7: meter | E7: Worksheet A01
A8: Volume of Pond | B8: VPM | C8: =C6*C7 -> 1000 | D8: m3 | E8: Eq
B9: VPL | C9: =1000*C8 -> 1000000 | D9: liters | E9: Eq
A10: Concentration in solution | B10: Conc
B11: Central | C11: ='A01'!FldConc_C -> 1.7 | D11: mg/mL | E11: Worksheet A01
B12: Lower | C12: ='A01'!FldConc_L -> 0.084 | E12: Worksheet A01
B13: Upper | C13: ='A01'!FldConc_U -> 3.4 | E13: Worksheet A01
A14: Volume of Spill (gallons) | B14: VSGal
B15: Central | C15: ='A01'!C$43 -> 100 | D15: gallons | E15: Worksheet A01
B16: Lower | C16: ='A01'!C$44 -> 20 | E16: Worksheet A01
B17: Upper | C17: ='A01'!C$45 -> 200 | E17: Worksheet A01
A18: Conversion factor for gallons to liters | B18: Conv | C18: 3.785 | D18: liters/gal
A19: Volume of Spill (liters) | B19: VSLit | C19: VSGal x Conv
B20: Central | C20: =C15*C$18 -> 378.5 | D20: liters | E20: Eq
B21: Lower | C21: =C16*C$18 -> 75.7 | D21: liters | E21: Eq
B22: Upper | C22: =C17*C$18 -> 757 | D22: liters | E22: Eq
A23: Concentration of aminocyclopyrachlor in pond water. | B23: CParent | C23: Conc × 1000 mL/L × VSL ÷ VPL
B24: Central | C24: =C11*1000*C20/C$9 -> 0.64345
B25: Lower | C25: =C12*1000*C21/C$9 -> 0.0063588
B26: Upper | C26: 2.5738
A27: Rate contrant for formation of metabolite | B27: k1 | C27: 0.0043 | D27: per day | E27: Sectiion 3.2.3.4.1.2.
A28: Rate contrant for degradation of metabolite | B28: k2 | C28: 0.08 | D28: per day | E28: Sectiion 3.2.3.4.1.2.
A29: Time to peak concentration | B29: tMax | C29: =(1/(C27-C28)) * LN(C27/C28) -> 38.61838325 | D29: days | E29: Sectiion 3.2.3.4.1.2.
A30: MW Parent | B30: MWP | C30: 213.62 | E30: Sectiion 3.2.3.4.1.2.
A31: MW Degradate | B31: MWD | C31: 86.09 | E31: Sectiion 3.2.3.4.1.2.
A32: Relative MW | B32: MWRel | C32: =C31/C30 -> 0.4030053366 | D32: MWP / MWP
A33: Maximum Molar Proportion of Metabolite | B33: RelMolar | C33: =(C27/C28)^(C28/(C28-C27)) -> 0.04552604679 | D33: k1/k2(k2/(k2-k1) | E33: Sectiion 3.2.3.4.1.2.
A34: Maximum Mass Proportion of Metabolite | B34: RelMass | C34: =C33*C32 -> 0.01834723981 | D34: RelMolar x MWRel
A35: Concentration of degradate in pond water | B35: ConcWat | C35: Cparent x RelMass
A36: Time | B36: Central | C36: Lower | D36: Upper
A37: 0 | B37: =C24*C34 -> 0.01180553145 | C37: =C25*C34 -> 0.0001166664285 | D37: =C26*C34 -> 0.04722212582 | E37: mg/L

Sheet B04c
A1: Concentration in pond water after direct spray or after drift at distances downwind in feet from the application site
A2: Short Title | B2: Pond, Drift | E2: PondDrift3Apps
A3: Receptor | B3: Pond
A4: Duration | B4: Acute
A5: Parameter/Assumption | B5: Code / Range | C5: Equation/ Value | D5: Units | E5: Reference/Designation
A6: Application rate | B6: ApRt | C6: ='A01'!ApRt_C -> 0.28 | D6: lb/acre | E6: Worksheet A01
A7: Surface Area of Water Column | B7: SA | C7: 1 | D7: m2
A8: Depth of Pond | B8: Depth | C8: ='A01'!C$24 -> 1 | D8: meter | E8: Worksheet A01
A9: Volume of Water Column | B9: V | C9: = SA × Depth
B10: VPM | C10: =C7*C8 -> 1 | D10: m3 | E10: Eq
B11: VPL | C11: =1000*C10 -> 1000 | D11: liters | E11: Eq
A12: Maximum Mass Proportion of Metabolite | B12: RelMass | C12: =B04b!$C$34 -> 0.01834723981 | E12: Worksheet B04b
A15: Proportion of Drift at distances downwind in feet [0 feet = direct spray] | B15: Prop | C15: Aerial | D15: High Boom Ground Broadcast | E15: Low Boom Ground Broadcast | F15: Backpack
A16: 0 | C16: 1 | D16: 1 | E16: 1 | F16: 1
A17: 25 | C17: 0.223 | D17: 0.104 | E17: 0.035 | F17: 0.00832
A18: 50 | C18: 0.171 | D18: 0.05 | E18: 0.0177 | F18: 0.00433
A19: 100 | C19: 0.0979 | D19: 0.0248 | E19: 0.00948 | F19: 0.00241
A20: 300 | C20: 0.0312 | D20: 0.00753 | E20: 0.0035 | F20: 0.000941
A21: 500 | C21: 0.0192 | D21: 0.00391 | E21: 0.00209 | F21: 0.000579
A22: 900 | C22: 0.0124 | D22: 0.00166 | E22: 0.00109 | F22: 0.000312
A23: Converstion Factor | B23: Conv | C23: 112.1 | D23: mg/m2 per lb/acre
A24: Concentration in water at distances downwind in feet | B24: Conc = | C24: RelMass x SA × Prop × ApR × Conv / VPL
A25: Concentration in water at distances downwind in feet | C25: Aerial | D25: High Boom Ground Broadcast | E25: Low Boom Ground Broadcast | F25: Backpack
A26: =A16 -> 0 | C26: =$C$12*$C$7*C16*$C$6*$C$23/$C$11 -> 0.0005758831631 | D26: =$C$12*$C$7*D16*$C$6*$C$23/$C$11 -> 0.0005758831631 | E26: 0.0005758831631 | F26: 0.0005758831631 | G26: mg/L
A27: 25 | C27: =$C$12*$C$7*C17*$C$6*$C$23/$C$11 -> 0.0001284219454 | D27: 5.989184896e-05 | E27: 2.015591071e-05 | F27: 4.791347917e-06 | G27: mg/L
A28: 50 | C28: =$C$12*$C$7*C18*$C$6*$C$23/$C$11 -> 9.847602089e-05 | D28: 2.879415816e-05 | E28: 1.019313199e-05 | F28: 2.493574096e-06 | G28: mg/L
A29: 100 | C29: =$C$12*$C$7*C19*$C$6*$C$23/$C$11 -> 5.637896167e-05 | D29: 1.428190245e-05 | E29: 5.459372386e-06 | F29: 1.387878423e-06 | G29: mg/L
A30: 300 | C30: =$C$12*$C$7*C20*$C$6*$C$23/$C$11 -> 1.796755469e-05 | D30: 4.336400218e-06 | E30: 2.015591071e-06 | F30: 5.419060565e-07 | G30: mg/L
A31: 500 | C31: =$C$12*$C$7*C21*$C$6*$C$23/$C$11 -> 1.105695673e-05 | D31: 2.251703168e-06 | E31: 1.203595811e-06 | F31: 3.334363514e-07 | G31: mg/L
A32: 900 | C32: =$C$12*$C$7*C22*$C$6*$C$23/$C$11 -> 7.140951223e-06 | D32: 9.559660508e-07 | E32: 6.277126478e-07 | F32: 1.796755469e-07 | G32: mg/L
A34: Below is adjusted for 1 lb/acre.
A35: Concentration in water at distances downwind in feet | C35: Aerial | D35: High Boom Ground Broadcast | E35: Low Boom Ground Broadcast | F35: Backpack
A36: =A26 -> 0 | C36: =C26/$C$6 -> 0.002056725583 | D36: =D26/$C$6 -> 0.002056725583 | E36: 0.002056725583 | F36: 0.002056725583 | G36: mg/L
A37: 25 | C37: =C27/$C$6 -> 0.0004586498049 | D37: 0.0002138994606 | E37: 7.198539539e-05 | F37: 1.711195685e-05 | G37: mg/L
A38: 50 | C38: =C28/$C$6 -> 0.0003517000746 | D38: 0.0001028362791 | E38: 3.640404281e-05 | F38: 8.905621772e-06 | G38: mg/L
A39: 100 | C39: =C29/$C$6 -> 0.0002013534345 | D39: 5.100679445e-05 | E39: 1.949775852e-05 | F39: 4.956708654e-06 | G39: mg/L
A40: 300 | C40: =C30/$C$6 -> 6.416983818e-05 | D40: 1.548714364e-05 | E40: 7.198539539e-06 | F40: 1.935378773e-06 | G40: mg/L
A41: 500 | C41: =C31/$C$6 -> 3.948913119e-05 | D41: 8.041797028e-06 | E41: 4.298556468e-06 | F41: 1.190844112e-06 | G41: mg/L
A42: 900 | C42: =C32/$C$6 -> 2.550339722e-05 | D42: 3.414164467e-06 | E42: 2.241830885e-06 | F42: 6.416983818e-07 | G42: mg/L

Sheet B04d
A1: Concentration in stream water after direct spray or after drift at distances downwind in feet from the application site
A2: Short Title | B2: Stream, Drift | E2: StreamDrift3Apps
A3: Receptor | B3: Stream
A4: Duration | B4: Acute
A5: Parameter/Assumption | B5: Code / Range | C5: Equation/ Value | D5: Units | E5: Reference/Designation
A6: Application rate, lbs/acre | B6: ApRt | C6: ='A01'!ApRt_C -> 0.28 | D6: lb/acre | E6: Worksheet A01
A7: Flow rate of stream | B7: Flow | C7: ='A01'!C$25 -> 710000 | D7: L/day | E7: Worksheet A01
A8: Converstion Factor, lb/acre to mg/m2 | B8: Conv1 | C8: 112.1 | D8: mg/m2 per lb/acre
A9: Deposition rate, nominal | C9: Dep = ApR × Conv1
B10: Dep | C10: =C6*C8 -> 31.388 | D10: mg/m2 | E10: Eq
A11: Length of steam segment | B11: L | C11: ='A01'!C$26 -> 1038 | D11: feet | E11: Worksheet A01
A12: Width of steam segment | B12: W | C12: ='A01'!C$27 -> 6 | D12: feet | E12: Worksheet A01
A13: Surface Area of Stream Sprayed, square feet | B13: SA_ft | C13: =C11*C12 -> 6228 | D13: ft2 | E13: Eq
A14: Converstion Factor, square feet to square meters | B14: Conv2 | C14: 0.0929 | D14: m2/ft2
A15: Surface Area of Stream Sprayed, square meters | B15: SA_msq | C15: =C13*C14 -> 578.5812 | E15: Eq
A16: Amount deposited on stream surface on spray day | B16: Amnt | C16: =C10*C15 -> 18160.50671 | D16: mg/day | E16: Eq
A17: =B04c!A12 -> Maximum Mass Proportion of Metabolite | B17: =B04c!B12 -> RelMass | C17: =B04c!C12 -> 0.01834723981 | E17: =B04c!E12 -> Worksheet B04b
A19: Proportion of Drift at distances downwind in feet [0 feet = direct spray] | B19: Prop | C19: Aerial | D19: High Boom Ground Broadcast | E19: Low Boom Ground Broadcast | F19: Backpack
A20: 0 | C20: 1 | D20: 1 | E20: 1 | F20: 1
A21: 25 | C21: 0.223 | D21: 0.104 | E21: 0.035 | F21: 0.00832
A22: 50 | C22: 0.171 | D22: 0.05 | E22: 0.0177 | F22: 0.00433
A23: 100 | C23: 0.0979 | D23: 0.0248 | E23: 0.00948 | F23: 0.00241
A24: 300 | C24: 0.0312 | D24: 0.00753 | E24: 0.0035 | F24: 0.000941
A25: 500 | C25: 0.0192 | D25: 0.00391 | E25: 0.00209 | F25: 0.000579
A26: 900 | C26: 0.0124 | D26: 0.00166 | E26: 0.00109 | F26: 0.000312
B27: Conc = | C27: RelMass x Amnt × Prop / Flow
A28: Concentration in water at distances downwind in feet | C28: Aerial | D28: High Boom Ground Broadcast | E28: Low Boom Ground Broadcast | F28: Backpack
A29: =A20 -> 0 | C29: =$C$17*$C$16 * C20 /$C$7 -> 0.0004692889741 | D29: =$C$17*$C$16 * D20 /$C$7 -> 0.0004692889741 | E29: 0.0004692889741 | F29: 0.0004692889741 | G29: mg/L
A30: 25 | C30: =$C$17*$C$16 * C21 /$C$7 -> 0.0001046514412 | D30: 4.88060533e-05 | E30: 1.642511409e-05 | F30: 3.904484264e-06 | G30: mg/L
A31: 50 | C31: =$C$17*$C$16 * C22 /$C$7 -> 8.024841456e-05 | D31: 2.34644487e-05 | E31: 8.306414841e-06 | F31: 2.032021258e-06 | G31: mg/L
A32: 100 | C32: =$C$17*$C$16 * C23 /$C$7 -> 4.594339056e-05 | D32: 1.163836656e-05 | E32: 4.448859474e-06 | F32: 1.130986427e-06 | G32: mg/L
A33: 300 | C33: =$C$17*$C$16 * C24 /$C$7 -> 1.464181599e-05 | D33: 3.533745975e-06 | E33: 1.642511409e-06 | F33: 4.416009246e-07 | G33: mg/L
A34: 500 | C34: =$C$17*$C$16 * C25 /$C$7 -> 9.010348302e-06 | D34: 1.834919889e-06 | E34: 9.808139558e-07 | F34: 2.71718316e-07 | G34: mg/L
A35: 900 | C35: =$C$17*$C$16 * C26 /$C$7 -> 5.819183278e-06 | D35: 7.790196969e-07 | E35: 5.115249817e-07 | F35: 1.464181599e-07 | G35: mg/L
A37: Below is adjusted for 1 lb/acre.
A38: Concentration in water at distances downwind in feet | C38: Aerial | D38: High Boom Ground Broadcast | E38: Low Boom Ground Broadcast | F38: Backpack
A39: =A29 -> 0 | C39: =C29/$C$6 -> 0.00167603205 | D39: =D29/$C$6 -> 0.00167603205 | E39: 0.00167603205 | F39: 0.00167603205 | G39: mg/L
A40: 25 | C40: =C30/$C$6 -> 0.0003737551472 | D40: 0.0001743073332 | E40: 5.866112176e-05 | F40: 1.394458666e-05 | G40: mg/L
A41: 50 | C41: 0.0002866014806 | D41: 8.380160251e-05 | E41: 2.966576729e-05 | F41: 7.257218777e-06 | G41: mg/L
A42: 100 | C42: 0.0001640835377 | D42: 4.156559484e-05 | E42: 1.588878384e-05 | F42: 4.039237241e-06 | G42: mg/L
A43: 300 | C43: 5.229219997e-05 | D43: 1.262052134e-05 | E43: 5.866112176e-06 | F43: 1.577146159e-06 | G43: mg/L
A44: 500 | C44: 3.217981536e-05 | D44: 6.553285316e-06 | E44: 3.502906985e-06 | F44: 9.704225571e-07 | G44: mg/L
A45: 900 | C45: 2.078279742e-05 | D45: 2.782213203e-06 | E45: 1.826874935e-06 | F45: 5.229219997e-07 | G45: mg/L

Sheet D05
A1: Consumption of contaminated water by Child, Accidental Spill
A2: Short Title | B2: Accidental Spill | E2: WatAmntV6
A3: Receptor | B3: Child
A4: Duration | B4: Acute | E4: Scenario parameter
A5: Parameter/Assumption | B5: Code / Range | C5: Equation/ Value | D5: Units | E5: Reference/Designation
A6: Concentration in water | B6: ConcWat
B7: Central | C7: =B04b!Acute_C -> 0.01180553145 | D7: mg/L | E7: ='B04b'!Acute_C
B8: Lower | C8: =B04b!Acute_L -> 0.0001166664285 | E8: ='B04b'!Acute_L
B9: Upper | C9: =B04b!Acute_U -> 0.04722212582 | E9: ='B04b'!Acute_U
A10: Receptor
A11: Amount of water consumed in one day | B11: Amnt
B12: Central | C12: ='A03'!$E$44 -> 1 | D12: liters/day | E12: U.S. EPA/ORD 1996
B13: Lower | C13: ='A03'!$E$45 -> 0.61 | E13: U.S. EPA/ORD 1996
B14: Upper | C14: ='A03'!$E$46 -> 1.5 | E14: U.S. EPA/ORD 1996
A15: Body weight | B15: BW | C15: =A02a!$C$28 -> 13.3 | D15: kg | E15: U.S. EPA/ORD 1996
A16: Dose | B16: Dose | C16: ConcWat × Amnt ÷ BW
B17: Central | C17: =C7*C12/C$15 -> 0.000887633944 | D17: mg/kg | E17: Eq
B18: Lower | C18: =C8*C13/C$15 -> 5.350866269e-06 | D18: mg/kg | E18: Eq
B19: Upper | C19: =C9*C14/C$15 -> 0.005325803664 | D19: mg/kg | E19: Eq

Sheet D06
A1: Consumption of contaminated water by Child, Peak Conentrations
A2: Short Title | B2: Peak Conentrations | E2: WatAmntV6
A3: Receptor | B3: Child
A4: Duration | B4: Acute | E4: Scenario parameter
A5: Parameter/Assumption | B5: Code / Range | C5: Equation/ Value | D5: Units | E5: Reference/Designation
A6: Concentration in water | B6: ConcWat
B7: Central | C7: =B04a!Acute_C -> 0.000196 | D7: mg/L | E7: ='B04a'!Acute_C
B8: Lower | C8: =B04a!Acute_L -> 5.6e-07 | E8: ='B04a'!Acute_L
B9: Upper | C9: =B04a!Acute_U -> 0.00196 | E9: ='B04a'!Acute_U
A10: Receptor
A11: Amount of water consumed in one day | B11: Amnt
B12: Central | C12: ='A03'!$E$44 -> 1 | D12: liters/day | E12: U.S. EPA/ORD 1996
B13: Lower | C13: ='A03'!$E$45 -> 0.61 | E13: U.S. EPA/ORD 1996
B14: Upper | C14: ='A03'!$E$46 -> 1.5 | E14: U.S. EPA/ORD 1996
A15: Body weight | B15: BW | C15: =A02a!$C$28 -> 13.3 | D15: kg | E15: U.S. EPA/ORD 1996
A16: Dose | B16: Dose | C16: ConcWat × Amnt ÷ BW
B17: Central | C17: =C7*C12/C$15 -> 1.473684211e-05 | D17: mg/kg | E17: Eq
B18: Lower | C18: =C8*C13/C$15 -> 2.568421053e-08 | D18: mg/kg | E18: Eq
B19: Upper | C19: =C9*C14/C$15 -> 0.0002210526316 | D19: mg/kg | E19: Eq

Sheet D07
A1: Consumption of contaminated water by Adult Male, Longer-term Conentrations
A2: Short Title | B2: Longer-term Conentrations | E2: WatAmntV6
A3: Receptor | B3: Adult Male
A4: Duration | B4: Chronic | E4: Scenario parameter
A5: Parameter/Assumption | B5: Code / Range | C5: Equation/ Value | D5: Units | E5: Reference/Designation
A6: Concentration in water | B6: ConcWat
B7: Central | C7: =B04a!Chronic_C -> 1.4e-05 | D7: mg/L | E7: ='B04a'!Chronic_C
B8: Lower | C8: =B04a!Chronic_L -> 5.6e-08 | E8: ='B04a'!Chronic_L
B9: Upper | C9: =B04a!Chronic_U -> 0.000196 | E9: ='B04a'!Chronic_U
A10: Receptor
A11: Amount of water consumed in one day | B11: Amnt
B12: Central | C12: ='A03'!$E$31 -> 2 | D12: liters/day | E12: U.S. EPA/ORD 1996
B13: Lower | C13: ='A03'!$E$32 -> 1.4 | E13: U.S. EPA/ORD 1996
B14: Upper | C14: ='A03'!$E$33 -> 2.4 | E14: U.S. EPA/ORD 1996
A15: Body weight | B15: BW | C15: =A02a!$C$8 -> 70 | D15: kg | E15: ICRP 1975
A16: Dose | B16: Dose | C16: ConcWat × Amnt ÷ BW
B17: Central | C17: =C7*C12/C$15 -> 4e-07 | D17: mg/kg | E17: Eq
B18: Lower | C18: =C8*C13/C$15 -> 1.12e-09 | D18: mg/kg | E18: Eq
B19: Upper | C19: =C9*C14/C$15 -> 6.72e-06 | D19: mg/kg | E19: Eq

Sheet D08a
A1: Consumption of Contaminated Fish (Accidental Spill), Adult Male, acute exposure
A2: Short Title | B2: Fish consumption | E2: FishAmntV6
A3: Receptor | B3: Adult Male
A4: Duration | B4: acute
A5: Parameter/Assumption | B5: Code / Range | C5: Equation/ Value | D5: Units | E5: Reference/Designation
A6: Water
A7: Concentration in water | B7: ConcWat | C7: ApR × WCR
B8: Central | C8: =B04b!Acute_C -> 0.01180553145 | D8: mg/L | E8: ='B04b'!Acute_C
B9: Lower | C9: =B04b!Acute_L -> 0.0001166664285 | E9: ='B04b'!Acute_L
B10: Upper | C10: =B04b!Acute_U -> 0.04722212582 | E10: ='B04b'!Acute_U
A11: Fish
A12: Bioconcentration factor | B12: BCF
B13: Central | C13: ='B01'!$C$4 -> 1 | D13: L/kg
B14: Lower | C14: ='B01'!$C$4 -> 1
B15: Upper | C15: ='B01'!$C$4 -> 1
A16: Concentration in fish | B16: ConcFish | C16: ConcWat × BCF
B17: Central | C17: =C8*C13 -> 0.01180553145 | D17: mg/kg | E17: Eq
B18: Lower | C18: =C9*C14 -> 0.0001166664285 | E18: Eq
B19: Upper | C19: =C10*C15 -> 0.04722212582 | E19: Eq
A20: Receptor
A21: Amount of fish consumed | B21: Amnt
B22: Central | C22: ='A03'!$E$20 -> 0.158 | D22: kg/day | E22: Ruffle et al. 1994
B23: Lower | C23: ='A03'!$E$20 -> 0.158 | E23: Ruffle et al. 1994
B24: Upper | C24: ='A03'!$E$20 -> 0.158 | E24: Ruffle et al. 1994
A25: Toxic Equivalency Factor for formulation: (See risk assessment if this has a value other than 1.) | B25: TEF
B26: Central | C26: ='A01'!C$35 -> 1 | D26: Unitless | E26: Worksheet A01
B27: Lower | C27: ='A01'!C$36 -> 1 | E27: Worksheet A01
B28: Upper | C28: ='A01'!C$37 -> 1 | E28: Worksheet A01
A29: Body weight | B29: BW | C29: =A02a!$C$8 -> 70 | D29: kg | E29: ICRP 1975
A30: Dose | B30: Dose | C30: ConcFish× Amnt x TEF ÷ BW
B31: Central | C31: =C17*C22*C26/C$29 -> 2.6646771e-05 | D31: mg/kg | E31: Eq
B32: Lower | C32: =C18*C23*C27/C$29 -> 2.633327957e-07 | D32: mg/kg | E32: Eq
B33: Upper | C33: =C19*C24*C28/C$29 -> 0.000106587084 | D33: mg/kg | E33: Eq
E34: FishAmntV6

Sheet D08b
A1: Consumption of Contaminated Fish (Accidental Spill), Subsistence Populations, acute exposure
A2: Short Title | B2: Fish consumption | E2: FishAmntV6
A3: Receptor | B3: Subsistence Populations
A4: Duration | B4: acute
A5: Parameter/Assumption | B5: Code / Range | C5: Equation/ Value | D5: Units | E5: Reference/Designation
A6: Water
A7: Concentration in water | B7: ConcWat | C7: ApR × WCR
B8: Central | C8: =B04b!Acute_C -> 0.01180553145 | D8: mg/L | E8: ='B04b'!Acute_C
B9: Lower | C9: =B04b!Acute_L -> 0.0001166664285 | E9: ='B04b'!Acute_L
B10: Upper | C10: =B04b!Acute_U -> 0.04722212582 | E10: ='B04b'!Acute_U
A11: Fish
A12: Bioconcentration factor | B12: BCF
B13: Central | C13: ='B01'!$C$4 -> 1 | D13: L/kg
B14: Lower | C14: ='B01'!$C$4 -> 1
B15: Upper | C15: ='B01'!$C$4 -> 1
A16: Concentration in fish | B16: ConcFish | C16: ConcWat × BCF
B17: Central | C17: =C8*C13 -> 0.01180553145 | D17: mg/kg | E17: Eq
B18: Lower | C18: =C9*C14 -> 0.0001166664285 | E18: Eq
B19: Upper | C19: =C10*C15 -> 0.04722212582 | E19: Eq
A20: Receptor
A21: Amount of fish consumed | B21: Amnt
B22: Central | C22: ='A03'!$E$35 -> 0.77 | D22: kg/day | E22: U.S. EPA/ORD 1993
B23: Lower | C23: ='A03'!$E$35 -> 0.77 | E23: U.S. EPA/ORD 1993
B24: Upper | C24: ='A03'!$E$35 -> 0.77 | E24: U.S. EPA/ORD 1993
A25: Toxic Equivalency Factor for formulation: (See risk assessment if this has a value other than 1.) | B25: TEF
B26: Central | C26: ='A01'!C$35 -> 1 | D26: Unitless | E26: Worksheet A01
B27: Lower | C27: ='A01'!C$36 -> 1 | E27: Worksheet A01
B28: Upper | C28: ='A01'!C$37 -> 1 | E28: Worksheet A01
A29: Body weight | B29: BW | C29: =A02a!$C$9 -> 70 | D29: kg | E29: ICRP 1975
A30: Dose | B30: Dose | C30: ConcFish× Amnt x TEF ÷ BW
B31: Central | C31: =C17*C22*C26/C$29 -> 0.000129860846 | D31: mg/kg | E31: Eq
B32: Lower | C32: =C18*C23*C27/C$29 -> 1.283330713e-06 | D32: mg/kg | E32: Eq
B33: Upper | C33: =C19*C24*C28/C$29 -> 0.000519443384 | D33: mg/kg | E33: Eq
E34: FishAmntV6

Sheet D09a
A1: Consumption of Contaminated Fish (Longer-term), Adult Male, chronic exposure
A2: Short Title | B2: Fish consumption | E2: FishAmntV6
A3: Receptor | B3: Adult Male
A4: Duration | B4: chronic
A5: Parameter/Assumption | B5: Code / Range | C5: Equation/ Value | D5: Units | E5: Reference/Designation
A6: Water
A7: Concentration in water | B7: ConcWat | C7: ApR × WCR
B8: Central | C8: =B04a!Chronic_C -> 1.4e-05 | D8: mg/L | E8: ='B04a'!Chronic_C
B9: Lower | C9: =B04a!Chronic_L -> 5.6e-08 | E9: ='B04a'!Chronic_L
B10: Upper | C10: =B04a!Chronic_U -> 0.000196 | E10: ='B04a'!Chronic_U
A11: Fish
A12: Bioconcentration factor | B12: BCF
B13: Central | C13: ='B01'!$C$5 -> 1 | D13: L/kg
B14: Lower | C14: ='B01'!$C$5 -> 1
B15: Upper | C15: ='B01'!$C$5 -> 1
A16: Concentration in fish | B16: ConcFish | C16: ConcWat × BCF
B17: Central | C17: =C8*C13 -> 1.4e-05 | D17: mg/kg | E17: Eq
B18: Lower | C18: =C9*C14 -> 5.6e-08 | E18: Eq
B19: Upper | C19: =C10*C15 -> 0.000196 | E19: Eq
A20: Receptor
A21: Amount of fish consumed | B21: Amnt
B22: Central | C22: ='A03'!$E$19 -> 0.01 | D22: kg/day | E22: U.S. EPA/ORD 1996
B23: Lower | C23: ='A03'!$E$19 -> 0.01 | E23: U.S. EPA/ORD 1996
B24: Upper | C24: ='A03'!$E$19 -> 0.01 | E24: U.S. EPA/ORD 1996
A25: Toxic Equivalency Factor for formulation: (See risk assessment if this has a value other than 1.) | B25: TEF
B26: Central | C26: ='A01'!C$35 -> 1 | D26: Unitless | E26: Worksheet A01
B27: Lower | C27: ='A01'!C$36 -> 1 | E27: Worksheet A01
B28: Upper | C28: ='A01'!C$37 -> 1 | E28: Worksheet A01
A29: Body weight | B29: BW | C29: =A02a!$C$8 -> 70 | D29: kg | E29: ICRP 1975
A30: Dose | B30: Dose | C30: ConcFish× Amnt x TEF ÷ BW
B31: Central | C31: =C17*C22*C26/C$29 -> 2e-09 | D31: mg/kg | E31: Eq
B32: Lower | C32: =C18*C23*C27/C$29 -> 8e-12 | D32: mg/kg | E32: Eq
B33: Upper | C33: =C19*C24*C28/C$29 -> 2.8e-08 | D33: mg/kg | E33: Eq
E34: FishAmntV6

Sheet D09b
A1: Consumption of Contaminated Fish (Longer-term), Subsistence Populations, chronic exposure
A2: Short Title | B2: Fish consumption | E2: FishAmntV6
A3: Receptor | B3: Subsistence Populations
A4: Duration | B4: chronic
A5: Parameter/Assumption | B5: Code / Range | C5: Equation/ Value | D5: Units | E5: Reference/Designation
A6: Water
A7: Concentration in water | B7: ConcWat | C7: ApR × WCR
B8: Central | C8: =B04a!Chronic_C -> 1.4e-05 | D8: mg/L | E8: ='B04a'!Chronic_C
B9: Lower | C9: =B04a!Chronic_L -> 5.6e-08 | E9: ='B04a'!Chronic_L
B10: Upper | C10: =B04a!Chronic_U -> 0.000196 | E10: ='B04a'!Chronic_U
A11: Fish
A12: Bioconcentration factor | B12: BCF
B13: Central | C13: ='B01'!$C$5 -> 1 | D13: L/kg
B14: Lower | C14: ='B01'!$C$5 -> 1
B15: Upper | C15: ='B01'!$C$5 -> 1
A16: Concentration in fish | B16: ConcFish | C16: ConcWat × BCF
B17: Central | C17: =C8*C13 -> 1.4e-05 | D17: mg/kg | E17: Eq
B18: Lower | C18: =C9*C14 -> 5.6e-08 | E18: Eq
B19: Upper | C19: =C10*C15 -> 0.000196 | E19: Eq
A20: Receptor
A21: Amount of fish consumed | B21: Amnt
B22: Central | C22: ='A03'!$E$34 -> 0.081 | D22: kg/day | E22: U.S. EPA/ORD 1996
B23: Lower | C23: ='A03'!$E$34 -> 0.081 | E23: U.S. EPA/ORD 1996
B24: Upper | C24: ='A03'!$E$34 -> 0.081 | E24: U.S. EPA/ORD 1996
A25: Toxic Equivalency Factor for formulation: (See risk assessment if this has a value other than 1.) | B25: TEF
B26: Central | C26: ='A01'!C$35 -> 1 | D26: Unitless | E26: Worksheet A01
B27: Lower | C27: ='A01'!C$36 -> 1 | E27: Worksheet A01
B28: Upper | C28: ='A01'!C$37 -> 1 | E28: Worksheet A01
A29: Body weight | B29: BW | C29: =A02a!$C$9 -> 70 | D29: kg | E29: ICRP 1975
A30: Dose | B30: Dose | C30: ConcFish× Amnt x TEF ÷ BW
B31: Central | C31: =C17*C22*C26/C$29 -> 1.62e-08 | D31: mg/kg | E31: Eq
B32: Lower | C32: =C18*C23*C27/C$29 -> 6.48e-11 | D32: mg/kg | E32: Eq
B33: Upper | C33: =C19*C24*C28/C$29 -> 2.268e-07 | D33: mg/kg | E33: Eq
E34: FishAmntV6

Sheet D09c
A1: Consumption of Contaminated Fish (Peak Exposure), Adult Male, acute exposure
A2: Short Title | B2: Fish consumption | E2: FishAmntV6
A3: Receptor | B3: Adult Male
A4: Duration | B4: acute
A5: Parameter/Assumption | B5: Code / Range | C5: Equation/ Value | D5: Units | E5: Reference/Designation
A6: Water
A7: Concentration in water | B7: ConcWat | C7: ApR × WCR
B8: Central | C8: =B04a!Acute_C -> 0.000196 | D8: mg/L | E8: ='B04a'!Acute_C
B9: Lower | C9: =B04a!Acute_L -> 5.6e-07 | E9: ='B04a'!Acute_L
B10: Upper | C10: =B04a!Acute_U -> 0.00196 | E10: ='B04a'!Acute_U
A11: Fish
A12: Bioconcentration factor | B12: BCF
B13: Central | C13: ='B01'!$C$4 -> 1 | D13: L/kg
B14: Lower | C14: ='B01'!$C$4 -> 1
B15: Upper | C15: ='B01'!$C$4 -> 1
A16: Concentration in fish | B16: ConcFish | C16: ConcWat × BCF
B17: Central | C17: =C8*C13 -> 0.000196 | D17: mg/kg | E17: Eq
B18: Lower | C18: =C9*C14 -> 5.6e-07 | E18: Eq
B19: Upper | C19: =C10*C15 -> 0.00196 | E19: Eq
A20: Receptor
A21: Amount of fish consumed | B21: Amnt
B22: Central | C22: ='A03'!$E$20 -> 0.158 | D22: kg/day | E22: Ruffle et al. 1994
B23: Lower | C23: ='A03'!$E$20 -> 0.158 | E23: Ruffle et al. 1994
B24: Upper | C24: ='A03'!$E$20 -> 0.158 | E24: Ruffle et al. 1994
A25: Toxic Equivalency Factor for formulation: (See risk assessment if this has a value other than 1.) | B25: TEF
B26: Central | C26: ='A01'!C$35 -> 1 | D26: Unitless | E26: Worksheet A01
B27: Lower | C27: ='A01'!C$36 -> 1 | E27: Worksheet A01
B28: Upper | C28: ='A01'!C$37 -> 1 | E28: Worksheet A01
A29: Body weight | B29: BW | C29: =A02a!$C$8 -> 70 | D29: kg | E29: ICRP 1975
A30: Dose | B30: Dose | C30: ConcFish× Amnt x TEF ÷ BW
B31: Central | C31: =C17*C22*C26/C$29 -> 4.424e-07 | D31: mg/kg | E31: Eq
B32: Lower | C32: =C18*C23*C27/C$29 -> 1.264e-09 | D32: mg/kg | E32: Eq
B33: Upper | C33: =C19*C24*C28/C$29 -> 4.424e-06 | D33: mg/kg | E33: Eq
E34: FishAmntV6

Sheet D09d
A1: Consumption of Contaminated Fish (Peak Exposure), Subsistence Populations, acute exposure
A2: Short Title | B2: Fish consumption | E2: FishAmntV6
A3: Receptor | B3: Subsistence Populations
A4: Duration | B4: acute
A5: Parameter/Assumption | B5: Code / Range | C5: Equation/ Value | D5: Units | E5: Reference/Designation
A6: Water
A7: Concentration in water | B7: ConcWat | C7: ApR × WCR
B8: Central | C8: =B04a!Acute_C -> 0.000196 | D8: mg/L | E8: ='B04a'!Acute_C
B9: Lower | C9: =B04a!Acute_L -> 5.6e-07 | E9: ='B04a'!Acute_L
B10: Upper | C10: =B04a!Acute_U -> 0.00196 | E10: ='B04a'!Acute_U
A11: Fish
A12: Bioconcentration factor | B12: BCF
B13: Central | C13: ='B01'!$C$4 -> 1 | D13: L/kg
B14: Lower | C14: ='B01'!$C$4 -> 1
B15: Upper | C15: ='B01'!$C$4 -> 1
A16: Concentration in fish | B16: ConcFish | C16: ConcWat × BCF
B17: Central | C17: =C8*C13 -> 0.000196 | D17: mg/kg | E17: Eq
B18: Lower | C18: =C9*C14 -> 5.6e-07 | E18: Eq
B19: Upper | C19: =C10*C15 -> 0.00196 | E19: Eq
A20: Receptor
A21: Amount of fish consumed | B21: Amnt
B22: Central | C22: ='A03'!$E$35 -> 0.77 | D22: kg/day | E22: U.S. EPA/ORD 1993
B23: Lower | C23: ='A03'!$E$35 -> 0.77 | E23: U.S. EPA/ORD 1993
B24: Upper | C24: ='A03'!$E$35 -> 0.77 | E24: U.S. EPA/ORD 1993
A25: Toxic Equivalency Factor for formulation: (See risk assessment if this has a value other than 1.) | B25: TEF
B26: Central | C26: ='A01'!C$35 -> 1 | D26: Unitless | E26: Worksheet A01
B27: Lower | C27: ='A01'!C$36 -> 1 | E27: Worksheet A01
B28: Upper | C28: ='A01'!C$37 -> 1 | E28: Worksheet A01
A29: Body weight | B29: BW | C29: =A02a!$C$9 -> 70 | D29: kg | E29: ICRP 1975
A30: Dose | B30: Dose | C30: ConcFish× Amnt x TEF ÷ BW
B31: Central | C31: =C17*C22*C26/C$29 -> 2.156e-06 | D31: mg/kg | E31: Eq
B32: Lower | C32: =C18*C23*C27/C$29 -> 6.16e-09 | D32: mg/kg | E32: Eq
B33: Upper | C33: =C19*C24*C28/C$29 -> 2.156e-05 | D33: mg/kg | E33: Eq
E34: FishAmntV6

Sheet D11
A1: Swimming Exposure Assessment Using Zero-Order Absorption, Adult Female, Surface Area, Whole body, for 60 minute(s)
A2: Short Title | B2: Swimming | E2: DrmZrSwm
A3: Receptor | B3: Adult Female
A4: Duration | B4: Acute
A5: Surface Contaminated | B5: Surface Area, Whole body
A6: Parameter/Assumption | B6: Code / Range | C6: Equation/ Value | D6: Units | E6: Reference/Designation
A7: Application Rate | B7: ApRt | C7: ='A01'!ApRt_C -> 0.28 | D7: lb/acre | E7: Worksheet A01
A8: Surface Area | B8: SA | C8: =A02a!$C$7 -> 16900 | D8: cm2 | E8: U.S. EPA/ORD 1997
A9: Duration of Exposure | B9: T_min | C9: ='A01'!C$29 -> 60 | D9: minutes | E9: Worksheet A01
B10: T_hr | C10: =C9/60 -> 1 | D10: hours | E10: Eq
A11: Body weight | B11: BW | C11: =A02a!$C$4 -> 64 | D11: kg | E11: U.S. EPA/ORD 1985
A12: Water contamination rate | B12: WCR
B13: Central | C13: =B04Rt!$C$4 -> 0.0007 | D13: mg/L per lb/acre
B14: Lower | C14: =B04Rt!$C$5 -> 2e-06
B15: Upper | C15: =B04Rt!$C$6 -> 0.007
A16: Concentration in water in mg/mL | B16: ConcWat | C16: ApR × WCR / 1000
B17: Central | C17: =C$7*C13/1000 -> 1.96e-07 | D17: mg/mL | E17: Eq
B18: Lower | C18: =C$7*C14/1000 -> 5.6e-10 | E18: Eq
B19: Upper | C19: =C$7*C15/1000 -> 1.96e-06 | E19: Eq
A20: Toxic Equivalency Factor for formulation: (See risk assessment if this has a value other than 1.) | B20: TEF
B21: Central | C21: ='A01'!C$35 -> 1 | D21: Unitless | E21: Worksheet A01
B22: Lower | C22: ='A01'!C$36 -> 1 | E22: Worksheet A01
B23: Upper | C23: ='A01'!C$37 -> 1 | E23: Worksheet A01
A24: Dermal permeability | B24: Kp
B25: Central | C25: =B03a!C26 -> 0.001549497954 | D25: cm/hour | E25: Worksheet B03a
B26: Lower | C26: =B03a!C27 -> 0.0008643766576
B27: Upper | C27: =B03a!C28 -> 0.002777659354
A28: Absorbed Dose | B28: Dose | C28: Kp × Conc × T_hr × SA × TEF ÷ BW
B29: Central | C29: =C25*C17*C$10*C$8*C21/C$11 -> 8.019620346e-08 | D29: mg/kg
B30: Lower | C30: =C26*C18*C$10*C$8*C22/C$11 -> 1.278196982e-10 | D30: mg/kg
B31: Upper | C31: =C27*C19*C$10*C$8*C23/C$11 -> 1.437612319e-06 | D31: mg/kg

Sheet E03
A1: Summary of Exposure Assessments for the General Public
A2: Application Rate: | B2: ='A01'!ApRt_C -> 0.28 | C2: lb a.e./acre | F2: E03aV6
A3: Scenario | B3: Receptor | C3: mg/kg/day or mg/kg/event | F3: Detail Worksheet
C4: Central | D4: Lower | E4: Upper | K4: Lower | L4: Central | M4: Upper | N4: Check
A5: Accidental Acute Exposures (dose in mg/kg/event)
A6: Direct Spray of Child, whole body | B6: Child | C6: No exposure assessment | J6: Spray: Child | K6: =IF(D6>0, D6, "") ->  | L6: =IF(ISERROR(C6-K6), "", C6-K6) ->  | M6: =IF(ISERROR(E6-C6), "", E6-C6) ->  | N6: =E6-SUM(K6:M6) -> 0
A7: Direct Spray of Woman, feet and lower legs | B7: Adult Female | C7: No exposure assessment | J7: Spray: Woman | K7: =IF(D7>0, D7, "") ->  | L7: =IF(ISERROR(C7-K7), "", C7-K7) ->  | M7: =IF(ISERROR(E7-C7), "", E7-C7) ->  | N7: =E7-SUM(K7:M7) -> 0
A8: Water consumption (spill) | B8: Child | C8: ='D05'!Dose_C -> 0.000887633944 | D8: ='D05'!Dose_L -> 5.350866269e-06 | E8: ='D05'!Dose_U -> 0.005325803664 | F8: D05 | J8: Water: Child | K8: 5.350866269e-06 | L8: 0.0008822830777 | M8: 0.00443816972 | N8: 0
A9: Fish consumption (spill) | B9: Adult Male | C9: =D08a!Dose_C -> 2.6646771e-05 | D9: =D08a!Dose_L -> 2.633327957e-07 | E9: =D08a!Dose_U -> 0.000106587084 | F9: D08a | J9: Fish: General | K9: 2.633327957e-07 | L9: 2.63834382e-05 | M9: 7.994031299e-05 | N9: 0
A10: Fish consumption (spill) | B10: Subsistence Populations | C10: =D08b!Dose_C -> 0.000129860846 | D10: =D08b!Dose_L -> 1.283330713e-06 | E10: =D08b!Dose_U -> 0.000519443384 | F10: D08b | J10: Fish: Subsist | K10: 1.283330713e-06 | L10: 0.0001285775153 | M10: 0.000389582538 | N10: 0
A11: Non-Accidental Acute Exposures (dose in mg/kg/event)
A12: Vegetation Contact, shorts and T-shirt | B12: Adult Female | C12: No exposure assessment | J12: Contact: Female | K12: =IF(D12>0, D12, "") ->  | L12: =IF(ISERROR(C12-K12), "", C12-K12) ->  | M12: =IF(ISERROR(E12-C12), "", E12-C12) ->  | N12: =E12-SUM(K12:M12) -> 0
A13: Contaminated Fruit | B13: Adult Female | C13: No exposure assessment | J13: Fruit: Female | N13: 0
A14: Contaminated Vegetation | B14: Adult Female | C14: No exposure assessment | J14: Veg: Female | N14: 0
A15: Swimming, one hour | B15: Adult Female | C15: ='D11'!$C$29 -> 8.019620346e-08 | D15: ='D11'!$C$30 -> 1.278196982e-10 | E15: ='D11'!$C$31 -> 1.437612319e-06 | F15: D11 | J15: Swim: Female | K15: 1.278196982e-10 | L15: 8.006838377e-08 | M15: 1.357416116e-06 | N15: 0
A16: Water consumption | B16: Child | C16: ='D06'!Dose_C -> 1.473684211e-05 | D16: ='D06'!Dose_L -> 2.568421053e-08 | E16: ='D06'!Dose_U -> 0.0002210526316 | F16: D06 | J16: Water: Child | K16: 2.568421053e-08 | L16: 1.471115789e-05 | M16: 0.0002063157895 | N16: 0
A17: Fish consumption | B17: Adult Male | C17: =D09c!Dose_C -> 4.424e-07 | D17: =D09c!Dose_L -> 1.264e-09 | E17: =D09c!Dose_U -> 4.424e-06 | F17: D09c | J17: Fish: Male | K17: 1.264e-09 | L17: 4.41136e-07 | M17: 3.9816e-06 | N17: 0
A18: Fish consumption | B18: Subsistence Populations | C18: =D09d!Dose_C -> 2.156e-06 | D18: =D09d!Dose_L -> 6.16e-09 | E18: =D09d!Dose_U -> 2.156e-05 | F18: D09d | J18: Fish: Subsist | K18: 6.16e-09 | L18: 2.14984e-06 | M18: 1.9404e-05 | N18: 0
A19: Chronic/Longer Term Exposures (dose in mg/kg/day)
A20: Contaminated Fruit | B20: Adult Female | C20: No exposure assessment | J20: Fruit: Female | K20: =IF(D20>0, D20, "") ->  | L20: =IF(ISERROR(C20-K20), "", C20-K20) ->  | M20: =IF(ISERROR(E20-C20), "", E20-C20) ->  | N20: =E20-SUM(K20:M20) -> 0
A21: Contaminated Vegetation | B21: Adult Female | C21: No exposure assessment | J21: Veg: Female | N21: 0
A22: Water consumption | B22: Adult Male | C22: ='D07'!Dose_C -> 4e-07 | D22: ='D07'!Dose_L -> 1.12e-09 | E22: ='D07'!Dose_U -> 6.72e-06 | F22: D07 | J22: Water: Male | K22: 1.12e-09 | L22: 3.9888e-07 | M22: 6.32e-06 | N22: 0
A23: Fish consumption | B23: Adult Male | C23: =D09a!Dose_C -> 2e-09 | D23: =D09a!Dose_L -> 8e-12 | E23: =D09a!Dose_U -> 2.8e-08 | F23: D09a | J23: Fish: Male | K23: 8e-12 | L23: 1.992e-09 | M23: 2.6e-08 | N23: 0
A24: Fish consumption | B24: Subsistence Populations | C24: =D09b!Dose_C -> 1.62e-08 | D24: =D09b!Dose_L -> 6.48e-11 | E24: =D09b!Dose_U -> 2.268e-07 | F24: D09b | J24: Fish: Subsist | K24: 6.48e-11 | L24: 1.61352e-08 | M24: 2.106e-07 | N24: 0

Sheet E04
A1: Summary of Hazard Quotients (Toxicity) for the General Public
A2: Application Rate: | B2: ='A01'!ApRt_C -> 0.28 | C2: lb a.e./acre | F2: E03aV6
A3: Scenario | B3: Receptor | C3: Hazard Quotients | F3: Toxicity Value
C4: Central | D4: Lower | E4: Upper | K4: Lower | L4: Central | M4: Upper | N4: Check
A5: Accidental Acute Exposures (dose in mg/kg/event)
A6: Direct Spray of Child, whole body | B6: Child | C6: No exposure assessment | F6: ='B02'!$E$4 -> 0.0026 | J6: Spray: Child | K6: =IF(D6>0, D6, "") ->  | L6: =IF(ISERROR(C6-K6), "", C6-K6) ->  | M6: =IF(ISERROR(E6-C6), "", E6-C6) ->  | N6: =E6-SUM(K6:M6) -> 0
A7: Direct Spray of Woman, feet and lower legs | B7: Adult Female | C7: No exposure assessment | F7: ='B02'!$E$4 -> 0.0026 | J7: Spray: Woman | K7: =IF(D7>0, D7, "") ->  | L7: =IF(ISERROR(C7-K7), "", C7-K7) ->  | M7: =IF(ISERROR(E7-C7), "", E7-C7) ->  | N7: =E7-SUM(K7:M7) -> 0
A8: Water consumption (spill) | B8: Child | C8: ='D05'!$C$17/$F$8 -> 0.3413976708 | D8: ='D05'!$C$18/$F$8 -> 0.002058025488 | E8: ='D05'!$C$19/$F$8 -> 2.048386025 | F8: ='B02'!$E$4 -> 0.0026 | J8: Water: Child | K8: 0.002058025488 | L8: 0.3393396453 | M8: 1.706988354 | N8: 0
A9: Fish consumption (spill) | B9: Adult Male | C9: =D08a!$C$31/$F$9 -> 0.01024875808 | D9: =D08a!$C$32/$F$9 -> 0.0001012818445 | E9: =D08a!$C$33/$F$9 -> 0.04099503231 | F9: ='B02'!$E$4 -> 0.0026 | J9: Fish: General | K9: 0.0001012818445 | L9: 0.01014747623 | M9: 0.03074627423 | N9: 0
A10: Fish consumption (spill) | B10: Subsistence Populations | C10: =D08b!$C$31/$F$10 -> 0.04994647923 | D10: =D08b!$C$32/$F$10 -> 0.0004935887359 | E10: =D08b!$C$33/$F$10 -> 0.1997859169 | F10: ='B02'!$E$4 -> 0.0026 | J10: Fish: Subsist | K10: 0.0004935887359 | L10: 0.0494528905 | M10: 0.1498394377 | N10: 0
A11: Non-Accidental Acute Exposures (dose in mg/kg/event)
A12: Vegetation Contact, shorts and T-shirt | B12: Adult Female | C12: No exposure assessment | F12: ='B02'!$E$4 -> 0.0026 | J12: Contact: Female | K12: =IF(D12>0, D12, "") ->  | L12: =IF(ISERROR(C12-K12), "", C12-K12) ->  | M12: =IF(ISERROR(E12-C12), "", E12-C12) ->  | N12: =E12-SUM(K12:M12) -> 0
A13: Contaminated Fruit | B13: Adult Female | C13: No exposure assessment | F13: ='B02'!$E$4 -> 0.0026 | J13: Fruit: Female | N13: 0
A14: Contaminated Vegetation | B14: Adult Female | C14: No exposure assessment | F14: ='B02'!$E$4 -> 0.0026 | J14: Veg: Female | N14: 0
A15: Swimming, one hour | B15: Adult Female | C15: ='E03'!C15/'E04'!$F15 -> 3.084469364e-05 | D15: ='E03'!D15/'E04'!$F15 -> 4.91614224e-08 | E15: ='E03'!E15/'E04'!$F15 -> 0.0005529278152 | F15: ='B02'!$E$4 -> 0.0026 | J15: Swim: Female | K15: 4.91614224e-08 | L15: 3.079553222e-05 | M15: 0.0005220831215 | N15: 0
A16: Water consumption | B16: Child | C16: ='D06'!$C$17/$F$16 -> 0.005668016194 | D16: ='D06'!$C$18/$F$16 -> 9.87854251e-06 | E16: ='D06'!$C$19/$F$16 -> 0.08502024291 | F16: ='B02'!$E$4 -> 0.0026 | J16: Water: Child | K16: 9.87854251e-06 | L16: 0.005658137652 | M16: 0.07935222672 | N16: 0
A17: Fish consumption | B17: Adult Male | C17: =D09c!$C$31/$F$17 -> 0.0001701538462 | D17: =D09c!$C$32/$F$17 -> 4.861538462e-07 | E17: =D09c!$C$33/$F$17 -> 0.001701538462 | F17: ='B02'!$E$4 -> 0.0026 | J17: Fish: Male | K17: 4.861538462e-07 | L17: 0.0001696676923 | M17: 0.001531384615 | N17: 0
A18: Fish consumption | B18: Subsistence Populations | C18: =D09d!$C$31/$F$18 -> 0.0008292307692 | D18: =D09d!$C$32/$F$18 -> 2.369230769e-06 | E18: =D09d!$C$33/$F$18 -> 0.008292307692 | F18: ='B02'!$E$4 -> 0.0026 | J18: Fish: Subsist | K18: 2.369230769e-06 | L18: 0.0008268615385 | M18: 0.007463076923 | N18: 0
A19: Chronic/Longer Term Exposures (dose in mg/kg/day)
A20: Contaminated Fruit | B20: Adult Female | C20: No exposure assessment | J20: Fruit: Female | K20: =IF(D20>0, D20, "") ->  | L20: =IF(ISERROR(C20-K20), "", C20-K20) ->  | M20: =IF(ISERROR(E20-C20), "", E20-C20) ->  | N20: =E20-SUM(K20:M20) -> 0
A21: Contaminated Vegetation | B21: Adult Female | C21: No exposure assessment | J21: Veg: Female | N21: 0
A22: Water consumption | B22: Adult Male | C22: ='D07'!$C$17/$F$22 -> 0.0004597701149 | D22: ='D07'!$C$18/$F$22 -> 1.287356322e-06 | E22: ='D07'!$C$19/$F$22 -> 0.007724137931 | F22: ='B02'!$E$5 -> 0.00087 | J22: Water: Male | K22: 1.287356322e-06 | L22: 0.0004584827586 | M22: 0.007264367816 | N22: 0
A23: Fish consumption | B23: Adult Male | C23: =D09a!$C$31/$F$23 -> 2.298850575e-06 | D23: =D09a!$C$32/$F$23 -> 9.195402299e-09 | E23: =D09a!$C$33/$F$23 -> 3.218390805e-05 | F23: ='B02'!$E$5 -> 0.00087 | J23: Fish: Male | K23: 9.195402299e-09 | L23: 2.289655172e-06 | M23: 2.988505747e-05 | N23: 0
A24: Fish consumption | B24: Subsistence Populations | C24: =D09b!$C$31/$F$24 -> 1.862068966e-05 | D24: =D09b!$C$32/$F$24 -> 7.448275862e-08 | E24: =D09b!$C$33/$F$24 -> 0.0002606896552 | F24: ='B02'!$E$5 -> 0.00087 | J24: Fish: Subsist | K24: 7.448275862e-08 | L24: 1.85462069e-05 | M24: 0.0002420689655 | N24: 0

Sheet F02a
A1: Consumption of contaminated water by Mammal, small, Accidental Spill
A2: Short Title | B2: Accidental Spill | E2: WatAlloV6
A3: Receptor | B3: Mammal, small
A4: Duration | B4: Acute | E4: Scenario parameter
A5: Parameter/Assumption | B5: Code / Range | C5: Equation/ Value | D5: Units | E5: Reference/Designation
A6: Concentration in water | B6: ConcWat
B7: Central | C7: =B04b!Acute_C -> 0.01180553145 | D7: mg/L | E7: ='B04b'!Acute_C
B8: Lower | C8: =B04b!Acute_L -> 0.0001166664285 | E8: ='B04b'!Acute_L
B9: Upper | C9: =B04b!Acute_U -> 0.04722212582 | E9: ='B04b'!Acute_U
A10: Receptor
A11: Body weight | B11: BW | C11: =A02b!$C$71 -> 0.02 | D11: kg | E11: Default
A12: Allometric coefficients forwater consumption per day in liters and BW in kilograms
B13: alpha | C13: =A02b!$C$79 -> 0.099 | E13: U.S. EPA/ORD 1993
B14: beta | C14: =A02b!$C$80 -> 0.9 | E14: U.S. EPA/ORD 1993
A15: Amount of water consumed per day | C15: Amnt = alpha BW beta
B16: Amnt | C16: =C13*(C11^C14) -> 0.002927940121 | D16: liters | E16: Eq
A17: Absorbed Dose | B17: Dose | C17: ConcWat × Amnt ÷ BW
B18: Central | C18: =C7*C$16/C$11 -> 0.00172829446 | D18: mg/kg | E18: Eq
B19: Lower | C19: =C8*C$16/C$11 -> 1.707961584e-05 | D19: mg/kg | E19: Eq
B20: Upper | C20: =C9*C$16/C$11 -> 0.006913177838 | D20: mg/kg | E20: Eq

Sheet F02b
A1: Consumption of contaminated water by Mammal, 400 g, Accidental Spill
A2: Short Title | B2: Accidental Spill | E2: WatAlloV6
A3: Receptor | B3: Mammal, 400 g
A4: Duration | B4: Acute | E4: Scenario parameter
A5: Parameter/Assumption | B5: Code / Range | C5: Equation/ Value | D5: Units | E5: Reference/Designation
A6: Concentration in water | B6: ConcWat
B7: Central | C7: =B04b!Acute_C -> 0.01180553145 | D7: mg/L | E7: ='B04b'!Acute_C
B8: Lower | C8: =B04b!Acute_L -> 0.0001166664285 | E8: ='B04b'!Acute_L
B9: Upper | C9: =B04b!Acute_U -> 0.04722212582 | E9: ='B04b'!Acute_U
A10: Receptor
A11: Body weight | B11: BW | C11: =A02b!$C$40 -> 0.4 | D11: kg | E11: Default
A12: Allometric coefficients forwater consumption per day in liters and BW in kilograms
B13: alpha | C13: =A02b!$C$45 -> 0.099 | E13: U.S. EPA/ORD 1993
B14: beta | C14: =A02b!$C$46 -> 0.9 | E14: U.S. EPA/ORD 1993
A15: Amount of water consumed per day | C15: Amnt = alpha BW beta
B16: Amnt | C16: =C13*(C11^C14) -> 0.04339994576 | D16: liters | E16: Eq
A17: Absorbed Dose | B17: Dose | C17: ConcWat × Amnt ÷ BW
B18: Central | C18: =C7*C$16/C$11 -> 0.001280898562 | D18: mg/kg | E18: Eq
B19: Lower | C19: =C8*C$16/C$11 -> 1.265829167e-05 | D19: mg/kg | E19: Eq
B20: Upper | C20: =C9*C$16/C$11 -> 0.005123594249 | D20: mg/kg | E20: Eq

Sheet F02c
A1: Consumption of contaminated water by Mammal, carnivorous, Accidental Spill
A2: Short Title | B2: Accidental Spill | E2: WatAlloV6
A3: Receptor | B3: Mammal, carnivorous
A4: Duration | B4: Acute | E4: Scenario parameter
A5: Parameter/Assumption | B5: Code / Range | C5: Equation/ Value | D5: Units | E5: Reference/Designation
A6: Concentration in water | B6: ConcWat
B7: Central | C7: =B04b!Acute_C -> 0.01180553145 | D7: mg/L | E7: ='B04b'!Acute_C
B8: Lower | C8: =B04b!Acute_L -> 0.0001166664285 | E8: ='B04b'!Acute_L
B9: Upper | C9: =B04b!Acute_U -> 0.04722212582 | E9: ='B04b'!Acute_U
A10: Receptor
A11: Body weight | B11: BW | C11: =A02b!$C$47 -> 5 | D11: kg | E11: U.S. EPA/ORD 1993
A12: Allometric coefficients forwater consumption per day in liters and BW in kilograms
B13: alpha | C13: =A02b!$C$50 -> 0.099 | E13: U.S. EPA/ORD 1993
B14: beta | C14: =A02b!$C$51 -> 0.9 | E14: U.S. EPA/ORD 1993
A15: Amount of water consumed per day | C15: Amnt = alpha BW beta
B16: Amnt | C16: =C13*(C11^C14) -> 0.4214132616 | D16: liters | E16: Eq
A17: Absorbed Dose | B17: Dose | C17: ConcWat × Amnt ÷ BW
B18: Central | C18: =C7*C$16/C$11 -> 0.0009950015032 | D18: mg/kg | E18: Eq
B19: Lower | C19: =C8*C$16/C$11 -> 9.832956031e-06 | D19: mg/kg | E19: Eq
B20: Upper | C20: =C9*C$16/C$11 -> 0.003980006013 | D20: mg/kg | E20: Eq

Sheet F02d
A1: Consumption of contaminated water by Mammal, large, Accidental Spill
A2: Short Title | B2: Accidental Spill | E2: WatAlloV6
A3: Receptor | B3: Mammal, large
A4: Duration | B4: Acute | E4: Scenario parameter
A5: Parameter/Assumption | B5: Code / Range | C5: Equation/ Value | D5: Units | E5: Reference/Designation
A6: Concentration in water | B6: ConcWat
B7: Central | C7: =B04b!Acute_C -> 0.01180553145 | D7: mg/L | E7: ='B04b'!Acute_C
B8: Lower | C8: =B04b!Acute_L -> 0.0001166664285 | E8: ='B04b'!Acute_L
B9: Upper | C9: =B04b!Acute_U -> 0.04722212582 | E9: ='B04b'!Acute_U
A10: Receptor
A11: Body weight | B11: BW | C11: =A02b!$C$61 -> 70 | D11: kg | E11: Default
A12: Allometric coefficients forwater consumption per day in liters and BW in kilograms
B13: alpha | C13: =A02b!$C$64 -> 0.099 | E13: U.S. EPA/ORD 1993
B14: beta | C14: =A02b!$C$65 -> 0.9 | E14: U.S. EPA/ORD 1993
A15: Amount of water consumed per day | C15: Amnt = alpha BW beta
B16: Amnt | C16: =C13*(C11^C14) -> 4.531306412 | D16: liters | E16: Eq
A17: Absorbed Dose | B17: Dose | C17: ConcWat × Amnt ÷ BW
B18: Central | C18: =C7*C$16/C$11 -> 0.0007642068625 | D18: mg/kg | E18: Eq
B19: Lower | C19: =C8*C$16/C$11 -> 7.552161935e-06 | D19: mg/kg | E19: Eq
B20: Upper | C20: =C9*C$16/C$11 -> 0.00305682745 | D20: mg/kg | E20: Eq

Sheet F03a
A1: Acute scenario for the consumption of Contaminated Fish (Accidental Spill) by Mammal, large carnivorous
A2: Short Title | B2: Fish consumption, accidental spill | E2: FishKcalV6
A3: Predator | B3: Mammal, large carnivorous
A4: Food Item (Prey) | B4: Fish
A5: Duration | B5: Acute | E5: Scenario parameter
A6: Parameter/Assumption | B6: Code / Range | C6: Equation/ Value | D6: Units | E6: Reference/Designation
A7: Water
A8: Concentration in water | B8: ConcWat
B9: Central | C9: =B04b!Acute_C -> 0.01180553145 | D9: mg/L | E9: ='B04b'!Acute_C
B10: Lower | C10: =B04b!Acute_L -> 0.0001166664285 | E10: ='B04b'!Acute_L
B11: Upper | C11: =B04b!Acute_U -> 0.04722212582 | E11: ='B04b'!Acute_U
A12: Fish
A13: Bioconcentration factor | B13: BCF
B14: Central | C14: ='B01'!$C$6 -> 1 | D14: L/kg
B15: Lower | C15: ='B01'!$C$6 -> 1
B16: Upper | C16: ='B01'!$C$6 -> 1
A17: Concentration in fish | B17: ConcFish | C17: ConcWat × BCF
B18: Central | C18: =C9*C14 -> 0.01180553145 | D18: mg/kg | E18: Eq
B19: Lower | C19: =C10*C15 -> 0.0001166664285 | E19: Eq
B20: Upper | C20: =C11*C16 -> 0.04722212582 | E20: Eq
A21: Receptor
A22: Body weight | B22: BW | C22: =A02b!$C$52 -> 70 | D22: kg | E22: Reid 2006
A23: Allometric coefficients for caloric requirement per day in kilocalories and BW in grams
B24: alpha | C24: =A02b!$C$53 -> 0.6167 | E24: U.S. EPA/ORD 1993
B25: beta | C25: =A02b!$C$54 -> 0.862 | E25: U.S. EPA/ORD 1993
A26: Caloric requirement per day | B26: KR | C26: =C24*(C22*1000)^C25 -> 9258.666883 | D26: kcal/day | E26: Eq
A27: Caloric content of commodity (dry weight) | B27: KCD | C27: ='A03'!$E$59 -> 4.47 | D27: kcal/gdw [Note 1] | E27: U.S. EPA/ORD 1993
A28: Food consumed per day (dry weight) | B28: AmntDry | C28: = KR ÷ KCD
C29: =C26/C27 -> 2071.29013 | D29: gdry/day | E29: Eq
A30: Water content of vegetation as a proportion | B30: PropWater | C30: ='A03'!$E$60 -> 0.7 | D30: gwater/gfood | E30: Ali et al. 2005
A31: Dry weight content of vegetation as a proportion | B31: PropDry | C31: = 1-PropWater
C32: =1-C30 -> 0.3 | D32: gdry/gfood | E32: Eq
A33: Amount of fish consumed per day, wet weight | B33: AmntFish | C33: = (AmntDry ÷ PropDry) ÷ (1000g/kg)
B34: Central | C34: =(C29/C32)/1000 -> 6.904300435 | D34: kgfood/day | E34: Eq
B35: Lower | C35: =C34*0.3 -> 2.07129013 | D35: Note 1 | E35: Eq
B36: Upper | C36: =C34*1.7 -> 11.73731074 | D36: Note 1 | E36: Eq
A37: Proportion of diet that is contaminated | B37: Prop
B38: Central | C38: 0.3 | D38: Unitless | E38: Scenario parameter
B39: Lower | C39: 0.1 | E39: Scenario parameter
B40: Upper | C40: 1 | E40: Scenario parameter
A41: Dose
A42: Toxic Equivalency Factor for formulation: (See risk assessment if this has a value other than 1.) | B42: TEF
B43: Central | C43: ='A01'!C$35 -> 1 | D43: Unitless | E43: Worksheet A01
B44: Lower | C44: ='A01'!C$36 -> 1 | D44: Note 2 | E44: Worksheet A01
B45: Upper | C45: ='A01'!C$37 -> 1 | D45: Note 2 | E45: Worksheet A01
A46: Dose | B46: Dose | C46: = ConcFish × AmntFish × Prop ÷ BW
B47: Central | C47: =C18*C34*C38/C$22 -> 0.0003493240112 | D47: mg/kg | E47: Eq
B48: Lower | C48: =C19*C35*C39/C$22 -> 3.45214317e-07 | D48: mg/kg | E48: Eq
B49: Upper | C49: 0.007918010921 | D49: mg/kg | E49: Eq
E50: FishKcalV6

Sheet F03b
A1: Acute scenario for the consumption of Contaminated Fish (Accidental Spill) by Mammal, carnivorous
A2: Short Title | B2: Fish consumption, accidental spill | E2: FishKcalV6
A3: Predator | B3: Mammal, carnivorous
A4: Food Item (Prey) | B4: Fish
A5: Duration | B5: Acute | E5: Scenario parameter
A6: Parameter/Assumption | B6: Code / Range | C6: Equation/ Value | D6: Units | E6: Reference/Designation
A7: Water
A8: Concentration in water | B8: ConcWat
B9: Central | C9: =B04b!Acute_C -> 0.01180553145 | D9: mg/L | E9: ='B04b'!Acute_C
B10: Lower | C10: =B04b!Acute_L -> 0.0001166664285 | E10: ='B04b'!Acute_L
B11: Upper | C11: =B04b!Acute_U -> 0.04722212582 | E11: ='B04b'!Acute_U
A12: Fish
A13: Bioconcentration factor | B13: BCF
B14: Central | C14: ='B01'!$C$6 -> 1 | D14: L/kg
B15: Lower | C15: ='B01'!$C$6 -> 1
B16: Upper | C16: ='B01'!$C$6 -> 1
A17: Concentration in fish | B17: ConcFish | C17: ConcWat × BCF
B18: Central | C18: =C9*C14 -> 0.01180553145 | D18: mg/kg | E18: Eq
B19: Lower | C19: =C10*C15 -> 0.0001166664285 | E19: Eq
B20: Upper | C20: =C11*C16 -> 0.04722212582 | E20: Eq
A21: Receptor
A22: Body weight | B22: BW | C22: =A02b!$C$47 -> 5 | D22: kg | E22: U.S. EPA/ORD 1993
A23: Allometric coefficients for caloric requirement per day in kilocalories and BW in grams
B24: alpha | C24: =A02b!$C$48 -> 0.6167 | E24: U.S. EPA/ORD 1993
B25: beta | C25: =A02b!$C$49 -> 0.862 | E25: U.S. EPA/ORD 1993
A26: Caloric requirement per day | B26: KR | C26: =C24*(C22*1000)^C25 -> 951.8885266 | D26: kcal/day | E26: Eq
A27: Caloric content of commodity (dry weight) | B27: KCD | C27: ='A03'!$E$59 -> 4.47 | D27: kcal/gdw [Note 1] | E27: U.S. EPA/ORD 1993
A28: Food consumed per day (dry weight) | B28: AmntDry | C28: = KR ÷ KCD
C29: =C26/C27 -> 212.9504534 | D29: gdry/day | E29: Eq
A30: Water content of vegetation as a proportion | B30: PropWater | C30: ='A03'!$E$60 -> 0.7 | D30: gwater/gfood | E30: Ali et al. 2005
A31: Dry weight content of vegetation as a proportion | B31: PropDry | C31: = 1-PropWater
C32: =1-C30 -> 0.3 | D32: gdry/gfood | E32: Eq
A33: Amount of fish consumed per day, wet weight | B33: AmntFish | C33: = (AmntDry ÷ PropDry) ÷ (1000g/kg)
B34: Central | C34: =(C29/C32)/1000 -> 0.7098348446 | D34: kgfood/day | E34: Eq
B35: Lower | C35: =C34*0.3 -> 0.2129504534 | D35: Note 1 | E35: Eq
B36: Upper | C36: =C34*1.7 -> 1.206719236 | D36: Note 1 | E36: Eq
A37: Proportion of diet that is contaminated | B37: Prop
B38: Central | C38: 0.3 | D38: Unitless | E38: Scenario parameter
B39: Lower | C39: 0.1 | E39: Scenario parameter
B40: Upper | C40: 1 | E40: Scenario parameter
A41: Dose
A42: Toxic Equivalency Factor for formulation: (See risk assessment if this has a value other than 1.) | B42: TEF
B43: Central | C43: ='A01'!C$35 -> 1 | D43: Unitless | E43: Worksheet A01
B44: Lower | C44: ='A01'!C$36 -> 1 | D44: Note 2 | E44: Worksheet A01
B45: Upper | C45: ='A01'!C$37 -> 1 | D45: Note 2 | E45: Worksheet A01
A46: Dose | B46: Dose | C46: = ConcFish × AmntFish × Prop ÷ BW
B47: Central | C47: =C18*C34*C38/C$22 -> 0.0005027986551 | D47: mg/kg | E47: Eq
B48: Lower | C48: =C19*C35*C39/C$22 -> 4.968833768e-07 | D48: mg/kg | E48: Eq
B49: Upper | C49: 0.01139676952 | D49: mg/kg | E49: Eq
E50: FishKcalV6

Sheet F03c
A1: Acute scenario for the consumption of Contaminated Fish (Accidental Spill) by Bird, piscivorous
A2: Short Title | B2: Fish consumption, accidental spill | E2: FishKcalV6
A3: Predator | B3: Bird, piscivorous
A4: Food Item (Prey) | B4: Fish
A5: Duration | B5: Acute | E5: Scenario parameter
A6: Parameter/Assumption | B6: Code / Range | C6: Equation/ Value | D6: Units | E6: Reference/Designation
A7: Water
A8: Concentration in water | B8: ConcWat
B9: Central | C9: =B04b!Acute_C -> 0.01180553145 | D9: mg/L | E9: ='B04b'!Acute_C
B10: Lower | C10: =B04b!Acute_L -> 0.0001166664285 | E10: ='B04b'!Acute_L
B11: Upper | C11: =B04b!Acute_U -> 0.04722212582 | E11: ='B04b'!Acute_U
A12: Fish
A13: Bioconcentration factor | B13: BCF
B14: Central | C14: ='B01'!$C$6 -> 1 | D14: L/kg
B15: Lower | C15: ='B01'!$C$6 -> 1
B16: Upper | C16: ='B01'!$C$6 -> 1
A17: Concentration in fish | B17: ConcFish | C17: ConcWat × BCF
B18: Central | C18: =C9*C14 -> 0.01180553145 | D18: mg/kg | E18: Eq
B19: Lower | C19: =C10*C15 -> 0.0001166664285 | E19: Eq
B20: Upper | C20: =C11*C16 -> 0.04722212582 | E20: Eq
A21: Receptor
A22: Body weight | B22: BW | C22: =A02b!$C$24 -> 2.4 | D22: kg | E22: Sibley 2000
A23: Allometric coefficients for caloric requirement per day in kilocalories and BW in grams
B24: alpha | C24: =A02b!$C$27 -> 1.916 | E24: U.S. EPA/ORD 1993
B25: beta | C25: =A02b!$C$28 -> 0.704 | E25: U.S. EPA/ORD 1993
A26: Caloric requirement per day | B26: KR | C26: =C24*(C22*1000)^C25 -> 459.2659192 | D26: kcal/day | E26: Eq
A27: Caloric content of commodity (dry weight) | B27: KCD | C27: ='A03'!$E$36 -> 3.87 | D27: kcal/gdw [Note 1] | E27: U.S. EPA/ORD 1993
A28: Food consumed per day (dry weight) | B28: AmntDry | C28: = KR ÷ KCD
C29: =C26/C27 -> 118.6733641 | D29: gdry/day | E29: Eq
A30: Water content of vegetation as a proportion | B30: PropWater | C30: ='A03'!$E$37 -> 0.7 | D30: gwater/gfood | E30: Ali et al. 2005
A31: Dry weight content of vegetation as a proportion | B31: PropDry | C31: = 1-PropWater
C32: =1-C30 -> 0.3 | D32: gdry/gfood | E32: Eq
A33: Amount of fish consumed per day, wet weight | B33: AmntFish | C33: = (AmntDry ÷ PropDry) ÷ (1000g/kg)
B34: Central | C34: =(C29/C32)/1000 -> 0.3955778805 | D34: kgfood/day | E34: Eq
B35: Lower | C35: =C34*0.3 -> 0.1186733641 | D35: Note 1 | E35: Eq
B36: Upper | C36: =C34*1.7 -> 0.6724823968 | D36: Note 1 | E36: Eq
A37: Proportion of diet that is contaminated | B37: Prop
B38: Central | C38: 0.3 | D38: Unitless | E38: Scenario parameter
B39: Lower | C39: 0.1 | E39: Scenario parameter
B40: Upper | C40: 1 | E40: Scenario parameter
A41: Dose
A42: Toxic Equivalency Factor for formulation: (See risk assessment if this has a value other than 1.) | B42: TEF
B43: Central | C43: ='A01'!C$35 -> 1 | D43: Unitless | E43: Worksheet A01
B44: Lower | C44: ='A01'!C$36 -> 1 | D44: Note 2 | E44: Worksheet A01
B45: Upper | C45: ='A01'!C$37 -> 1 | D45: Note 2 | E45: Worksheet A01
A46: Dose | B46: Dose | C46: = ConcFish × AmntFish × Prop ÷ BW
B47: Central | C47: =C18*C34*C38/C$22 -> 0.0005837508889 | D47: mg/kg | E47: Eq
B48: Lower | C48: =C19*C35*C39/C$22 -> 5.768832313e-07 | D48: mg/kg | E48: Eq
B49: Upper | C49: 0.01323168681 | D49: mg/kg | E49: Eq
E50: FishKcalV6

Sheet F08a
A1: Consumption of contaminated water by Mammal, small, Peak Concentrations
A2: Short Title | B2: Peak Concentrations | E2: WatAlloV6
A3: Receptor | B3: Mammal, small
A4: Duration | B4: Acute | E4: Scenario parameter
A5: Parameter/Assumption | B5: Code / Range | C5: Equation/ Value | D5: Units | E5: Reference/Designation
A6: Concentration in water | B6: ConcWat
B7: Central | C7: =B04a!Acute_C -> 0.000196 | D7: mg/L | E7: ='B04a'!Acute_C
B8: Lower | C8: =B04a!Acute_L -> 5.6e-07 | E8: ='B04a'!Acute_L
B9: Upper | C9: =B04a!Acute_U -> 0.00196 | E9: ='B04a'!Acute_U
A10: Receptor
A11: Body weight | B11: BW | C11: =A02b!$C$71 -> 0.02 | D11: kg | E11: Default
A12: Allometric coefficients forwater consumption per day in liters and BW in kilograms
B13: alpha | C13: =A02b!$C$79 -> 0.099 | E13: U.S. EPA/ORD 1993
B14: beta | C14: =A02b!$C$80 -> 0.9 | E14: U.S. EPA/ORD 1993
A15: Amount of water consumed per day | C15: Amnt = alpha BW beta
B16: Amnt | C16: =C13*(C11^C14) -> 0.002927940121 | D16: liters | E16: Eq
A17: Absorbed Dose | B17: Dose | C17: ConcWat × Amnt ÷ BW
B18: Central | C18: =C7*C$16/C$11 -> 2.869381318e-05 | D18: mg/kg | E18: Eq
B19: Lower | C19: =C8*C$16/C$11 -> 8.198232337e-08 | D19: mg/kg | E19: Eq
B20: Upper | C20: =C9*C$16/C$11 -> 0.0002869381318 | D20: mg/kg | E20: Eq

Sheet F08b
A1: Consumption of contaminated water by Mammal, 400 g, Peak Concentrations
A2: Short Title | B2: Peak Concentrations | E2: WatAlloV6
A3: Receptor | B3: Mammal, 400 g
A4: Duration | B4: Acute | E4: Scenario parameter
A5: Parameter/Assumption | B5: Code / Range | C5: Equation/ Value | D5: Units | E5: Reference/Designation
A6: Concentration in water | B6: ConcWat
B7: Central | C7: =B04a!Acute_C -> 0.000196 | D7: mg/L | E7: ='B04a'!Acute_C
B8: Lower | C8: =B04a!Acute_L -> 5.6e-07 | E8: ='B04a'!Acute_L
B9: Upper | C9: =B04a!Acute_U -> 0.00196 | E9: ='B04a'!Acute_U
A10: Receptor
A11: Body weight | B11: BW | C11: =A02b!$C$40 -> 0.4 | D11: kg | E11: Default
A12: Allometric coefficients forwater consumption per day in liters and BW in kilograms
B13: alpha | C13: =A02b!$C$45 -> 0.099 | E13: U.S. EPA/ORD 1993
B14: beta | C14: =A02b!$C$46 -> 0.9 | E14: U.S. EPA/ORD 1993
A15: Amount of water consumed per day | C15: Amnt = alpha BW beta
B16: Amnt | C16: =C13*(C11^C14) -> 0.04339994576 | D16: liters | E16: Eq
A17: Absorbed Dose | B17: Dose | C17: ConcWat × Amnt ÷ BW
B18: Central | C18: =C7*C$16/C$11 -> 2.126597342e-05 | D18: mg/kg | E18: Eq
B19: Lower | C19: =C8*C$16/C$11 -> 6.075992407e-08 | D19: mg/kg | E19: Eq
B20: Upper | C20: =C9*C$16/C$11 -> 0.0002126597342 | D20: mg/kg | E20: Eq

Sheet F08c
A1: Consumption of contaminated water by Mammal, carnivorous, Peak Concentrations
A2: Short Title | B2: Peak Concentrations | E2: WatAlloV6
A3: Receptor | B3: Mammal, carnivorous
A4: Duration | B4: Acute | E4: Scenario parameter
A5: Parameter/Assumption | B5: Code / Range | C5: Equation/ Value | D5: Units | E5: Reference/Designation
A6: Concentration in water | B6: ConcWat
B7: Central | C7: =B04a!Acute_C -> 0.000196 | D7: mg/L | E7: ='B04a'!Acute_C
B8: Lower | C8: =B04a!Acute_L -> 5.6e-07 | E8: ='B04a'!Acute_L
B9: Upper | C9: =B04a!Acute_U -> 0.00196 | E9: ='B04a'!Acute_U
A10: Receptor
A11: Body weight | B11: BW | C11: =A02b!$C$47 -> 5 | D11: kg | E11: U.S. EPA/ORD 1993
A12: Allometric coefficients forwater consumption per day in liters and BW in kilograms
B13: alpha | C13: =A02b!$C$50 -> 0.099 | E13: U.S. EPA/ORD 1993
B14: beta | C14: =A02b!$C$51 -> 0.9 | E14: U.S. EPA/ORD 1993
A15: Amount of water consumed per day | C15: Amnt = alpha BW beta
B16: Amnt | C16: =C13*(C11^C14) -> 0.4214132616 | D16: liters | E16: Eq
A17: Absorbed Dose | B17: Dose | C17: ConcWat × Amnt ÷ BW
B18: Central | C18: =C7*C$16/C$11 -> 1.651939986e-05 | D18: mg/kg | E18: Eq
B19: Lower | C19: =C8*C$16/C$11 -> 4.71982853e-08 | D19: mg/kg | E19: Eq
B20: Upper | C20: =C9*C$16/C$11 -> 0.0001651939986 | D20: mg/kg | E20: Eq

Sheet F08d
A1: Consumption of contaminated water by Mammal, large, Peak Concentrations
A2: Short Title | B2: Peak Concentrations | E2: WatAlloV6
A3: Receptor | B3: Mammal, large
A4: Duration | B4: Acute | E4: Scenario parameter
A5: Parameter/Assumption | B5: Code / Range | C5: Equation/ Value | D5: Units | E5: Reference/Designation
A6: Concentration in water | B6: ConcWat
B7: Central | C7: =B04a!Acute_C -> 0.000196 | D7: mg/L | E7: ='B04a'!Acute_C
B8: Lower | C8: =B04a!Acute_L -> 5.6e-07 | E8: ='B04a'!Acute_L
B9: Upper | C9: =B04a!Acute_U -> 0.00196 | E9: ='B04a'!Acute_U
A10: Receptor
A11: Body weight | B11: BW | C11: =A02b!$C$61 -> 70 | D11: kg | E11: Default
A12: Allometric coefficients forwater consumption per day in liters and BW in kilograms
B13: alpha | C13: =A02b!$C$64 -> 0.099 | E13: U.S. EPA/ORD 1993
B14: beta | C14: =A02b!$C$65 -> 0.9 | E14: U.S. EPA/ORD 1993
A15: Amount of water consumed per day | C15: Amnt = alpha BW beta
B16: Amnt | C16: =C13*(C11^C14) -> 4.531306412 | D16: liters | E16: Eq
A17: Absorbed Dose | B17: Dose | C17: ConcWat × Amnt ÷ BW
B18: Central | C18: =C7*C$16/C$11 -> 1.268765795e-05 | D18: mg/kg | E18: Eq
B19: Lower | C19: =C8*C$16/C$11 -> 3.625045129e-08 | D19: mg/kg | E19: Eq
B20: Upper | C20: =C9*C$16/C$11 -> 0.0001268765795 | D20: mg/kg | E20: Eq

Sheet F11a
A1: Acute scenario for the consumption of Contaminated Fish (Peak) by Mammal, large carnivorous
A2: Short Title | B2: Fish consumption, accidental spill | E2: FishKcalV6
A3: Predator | B3: Mammal, large carnivorous
A4: Food Item (Prey) | B4: Fish
A5: Duration | B5: Acute | E5: Scenario parameter
A6: Parameter/Assumption | B6: Code / Range | C6: Equation/ Value | D6: Units | E6: Reference/Designation
A7: Water
A8: Concentration in water | B8: ConcWat
B9: Central | C9: =B04a!Acute_C -> 0.000196 | D9: mg/L | E9: ='B04a'!Acute_C
B10: Lower | C10: =B04a!Acute_L -> 5.6e-07 | E10: ='B04a'!Acute_L
B11: Upper | C11: =B04a!Acute_U -> 0.00196 | E11: ='B04a'!Acute_U
A12: Fish
A13: Bioconcentration factor | B13: BCF
B14: Central | C14: ='B01'!$C$6 -> 1 | D14: L/kg
B15: Lower | C15: ='B01'!$C$6 -> 1
B16: Upper | C16: ='B01'!$C$6 -> 1
A17: Concentration in fish | B17: ConcFish | C17: ConcWat × BCF
B18: Central | C18: =C9*C14 -> 0.000196 | D18: mg/kg | E18: Eq
B19: Lower | C19: =C10*C15 -> 5.6e-07 | E19: Eq
B20: Upper | C20: =C11*C16 -> 0.00196 | E20: Eq
A21: Receptor
A22: Body weight | B22: BW | C22: =A02b!$C$52 -> 70 | D22: kg | E22: Reid 2006
A23: Allometric coefficients for caloric requirement per day in kilocalories and BW in grams
B24: alpha | C24: =A02b!$C$53 -> 0.6167 | E24: U.S. EPA/ORD 1993
B25: beta | C25: =A02b!$C$54 -> 0.862 | E25: U.S. EPA/ORD 1993
A26: Caloric requirement per day | B26: KR | C26: =C24*(C22*1000)^C25 -> 9258.666883 | D26: kcal/day | E26: Eq
A27: Caloric content of commodity (dry weight) | B27: KCD | C27: ='A03'!$E$59 -> 4.47 | D27: kcal/gdw [Note 1] | E27: U.S. EPA/ORD 1993
A28: Food consumed per day (dry weight) | B28: AmntDry | C28: = KR ÷ KCD
C29: =C26/C27 -> 2071.29013 | D29: gdry/day | E29: Eq
A30: Water content of vegetation as a proportion | B30: PropWater | C30: ='A03'!$E$60 -> 0.7 | D30: gwater/gfood | E30: Ali et al. 2005
A31: Dry weight content of vegetation as a proportion | B31: PropDry | C31: = 1-PropWater
C32: =1-C30 -> 0.3 | D32: gdry/gfood | E32: Eq
A33: Amount of fish consumed per day, wet weight | B33: AmntFish | C33: = (AmntDry ÷ PropDry) ÷ (1000g/kg)
B34: Central | C34: =(C29/C32)/1000 -> 6.904300435 | D34: kgfood/day | E34: Eq
B35: Lower | C35: =C34*0.3 -> 2.07129013 | D35: Note 1 | E35: Eq
B36: Upper | C36: =C34*1.7 -> 11.73731074 | D36: Note 1 | E36: Eq
A37: Proportion of diet that is contaminated | B37: Prop
B38: Central | C38: 0.3 | D38: Unitless | E38: Scenario parameter
B39: Lower | C39: 0.1 | E39: Scenario parameter
B40: Upper | C40: 1 | E40: Scenario parameter
A41: Dose
A42: Toxic Equivalency Factor for formulation: (See risk assessment if this has a value other than 1.) | B42: TEF
B43: Central | C43: ='A01'!C$35 -> 1 | D43: Unitless | E43: Worksheet A01
B44: Lower | C44: ='A01'!C$36 -> 1 | D44: Note 2 | E44: Worksheet A01
B45: Upper | C45: ='A01'!C$37 -> 1 | D45: Note 2 | E45: Worksheet A01
A46: Dose | B46: Dose | C46: = ConcFish × AmntFish × Prop ÷ BW
B47: Central | C47: =C18*C34*C38/C$22 -> 5.799612365e-06 | D47: mg/kg | E47: Eq
B48: Lower | C48: =C19*C35*C39/C$22 -> 1.657032104e-09 | D48: mg/kg | E48: Eq
B49: Upper | C49: 0.0003286447007 | D49: mg/kg | E49: Eq
E50: FishKcalV6

Sheet F11b
A1: Acute scenario for the consumption of Contaminated Fish (Peak) by Mammal, carnivorous
A2: Short Title | B2: Fish consumption, accidental spill | E2: FishKcalV6
A3: Predator | B3: Mammal, carnivorous
A4: Food Item (Prey) | B4: Fish
A5: Duration | B5: Acute | E5: Scenario parameter
A6: Parameter/Assumption | B6: Code / Range | C6: Equation/ Value | D6: Units | E6: Reference/Designation
A7: Water
A8: Concentration in water | B8: ConcWat
B9: Central | C9: =B04a!Acute_C -> 0.000196 | D9: mg/L | E9: ='B04a'!Acute_C
B10: Lower | C10: =B04a!Acute_L -> 5.6e-07 | E10: ='B04a'!Acute_L
B11: Upper | C11: =B04a!Acute_U -> 0.00196 | E11: ='B04a'!Acute_U
A12: Fish
A13: Bioconcentration factor | B13: BCF
B14: Central | C14: ='B01'!$C$6 -> 1 | D14: L/kg
B15: Lower | C15: ='B01'!$C$6 -> 1
B16: Upper | C16: ='B01'!$C$6 -> 1
A17: Concentration in fish | B17: ConcFish | C17: ConcWat × BCF
B18: Central | C18: =C9*C14 -> 0.000196 | D18: mg/kg | E18: Eq
B19: Lower | C19: =C10*C15 -> 5.6e-07 | E19: Eq
B20: Upper | C20: =C11*C16 -> 0.00196 | E20: Eq
A21: Receptor
A22: Body weight | B22: BW | C22: =A02b!$C$47 -> 5 | D22: kg | E22: U.S. EPA/ORD 1993
A23: Allometric coefficients for caloric requirement per day in kilocalories and BW in grams
B24: alpha | C24: =A02b!$C$48 -> 0.6167 | E24: U.S. EPA/ORD 1993
B25: beta | C25: =A02b!$C$49 -> 0.862 | E25: U.S. EPA/ORD 1993
A26: Caloric requirement per day | B26: KR | C26: =C24*(C22*1000)^C25 -> 951.8885266 | D26: kcal/day | E26: Eq
A27: Caloric content of commodity (dry weight) | B27: KCD | C27: ='A03'!$E$59 -> 4.47 | D27: kcal/gdw [Note 1] | E27: U.S. EPA/ORD 1993
A28: Food consumed per day (dry weight) | B28: AmntDry | C28: = KR ÷ KCD
C29: =C26/C27 -> 212.9504534 | D29: gdry/day | E29: Eq
A30: Water content of vegetation as a proportion | B30: PropWater | C30: ='A03'!$E$60 -> 0.7 | D30: gwater/gfood | E30: Ali et al. 2005
A31: Dry weight content of vegetation as a proportion | B31: PropDry | C31: = 1-PropWater
C32: =1-C30 -> 0.3 | D32: gdry/gfood | E32: Eq
A33: Amount of fish consumed per day, wet weight | B33: AmntFish | C33: = (AmntDry ÷ PropDry) ÷ (1000g/kg)
B34: Central | C34: =(C29/C32)/1000 -> 0.7098348446 | D34: kgfood/day | E34: Eq
B35: Lower | C35: =C34*0.3 -> 0.2129504534 | D35: Note 1 | E35: Eq
B36: Upper | C36: =C34*1.7 -> 1.206719236 | D36: Note 1 | E36: Eq
A37: Proportion of diet that is contaminated | B37: Prop
B38: Central | C38: 0.3 | D38: Unitless | E38: Scenario parameter
B39: Lower | C39: 0.1 | E39: Scenario parameter
B40: Upper | C40: 1 | E40: Scenario parameter
A41: Dose
A42: Toxic Equivalency Factor for formulation: (See risk assessment if this has a value other than 1.) | B42: TEF
B43: Central | C43: ='A01'!C$35 -> 1 | D43: Unitless | E43: Worksheet A01
B44: Lower | C44: ='A01'!C$36 -> 1 | D44: Note 2 | E44: Worksheet A01
B45: Upper | C45: ='A01'!C$37 -> 1 | D45: Note 2 | E45: Worksheet A01
A46: Dose | B46: Dose | C46: = ConcFish × AmntFish × Prop ÷ BW
B47: Central | C47: =C18*C34*C38/C$22 -> 8.347657772e-06 | D47: mg/kg | E47: Eq
B48: Lower | C48: =C19*C35*C39/C$22 -> 2.385045078e-09 | D48: mg/kg | E48: Eq
B49: Upper | C49: 0.0004730339404 | D49: mg/kg | E49: Eq
E50: FishKcalV6

Sheet F16a
A1: Consumption of contaminated water by Mammal, small, Longer-term Concentrations
A2: Short Title | B2: Longer-term Concentrations | E2: WatAlloV6
A3: Receptor | B3: Mammal, small
A4: Duration | B4: Chronic | E4: Scenario parameter
A5: Parameter/Assumption | B5: Code / Range | C5: Equation/ Value | D5: Units | E5: Reference/Designation
A6: Concentration in water | B6: ConcWat
B7: Central | C7: =B04a!Chronic_C -> 1.4e-05 | D7: mg/L | E7: ='B04a'!Chronic_C
B8: Lower | C8: =B04a!Chronic_L -> 5.6e-08 | E8: ='B04a'!Chronic_L
B9: Upper | C9: =B04a!Chronic_U -> 0.000196 | E9: ='B04a'!Chronic_U
A10: Receptor
A11: Body weight | B11: BW | C11: =A02b!$C$71 -> 0.02 | D11: kg | E11: Default
A12: Allometric coefficients forwater consumption per day in liters and BW in kilograms
B13: alpha | C13: =A02b!$C$79 -> 0.099 | E13: U.S. EPA/ORD 1993
B14: beta | C14: =A02b!$C$80 -> 0.9 | E14: U.S. EPA/ORD 1993
A15: Amount of water consumed per day | C15: Amnt = alpha BW beta
B16: Amnt | C16: =C13*(C11^C14) -> 0.002927940121 | D16: liters | E16: Eq
A17: Absorbed Dose | B17: Dose | C17: ConcWat × Amnt ÷ BW
B18: Central | C18: =C7*C$16/C$11 -> 2.049558084e-06 | D18: mg/kg | E18: Eq
B19: Lower | C19: =C8*C$16/C$11 -> 8.198232337e-09 | D19: mg/kg | E19: Eq
B20: Upper | C20: =C9*C$16/C$11 -> 2.869381318e-05 | D20: mg/kg | E20: Eq

Sheet F16b
A1: Consumption of contaminated water by Mammal, 400 g, Longer-term Concentrations
A2: Short Title | B2: Longer-term Concentrations | E2: WatAlloV6
A3: Receptor | B3: Mammal, 400 g
A4: Duration | B4: Chronic | E4: Scenario parameter
A5: Parameter/Assumption | B5: Code / Range | C5: Equation/ Value | D5: Units | E5: Reference/Designation
A6: Concentration in water | B6: ConcWat
B7: Central | C7: =B04a!Chronic_C -> 1.4e-05 | D7: mg/L | E7: ='B04a'!Chronic_C
B8: Lower | C8: =B04a!Chronic_L -> 5.6e-08 | E8: ='B04a'!Chronic_L
B9: Upper | C9: =B04a!Chronic_U -> 0.000196 | E9: ='B04a'!Chronic_U
A10: Receptor
A11: Body weight | B11: BW | C11: =A02b!$C$40 -> 0.4 | D11: kg | E11: Default
A12: Allometric coefficients forwater consumption per day in liters and BW in kilograms
B13: alpha | C13: =A02b!$C$45 -> 0.099 | E13: U.S. EPA/ORD 1993
B14: beta | C14: =A02b!$C$46 -> 0.9 | E14: U.S. EPA/ORD 1993
A15: Amount of water consumed per day | C15: Amnt = alpha BW beta
B16: Amnt | C16: =C13*(C11^C14) -> 0.04339994576 | D16: liters | E16: Eq
A17: Absorbed Dose | B17: Dose | C17: ConcWat × Amnt ÷ BW
B18: Central | C18: =C7*C$16/C$11 -> 1.518998102e-06 | D18: mg/kg | E18: Eq
B19: Lower | C19: =C8*C$16/C$11 -> 6.075992407e-09 | D19: mg/kg | E19: Eq
B20: Upper | C20: =C9*C$16/C$11 -> 2.126597342e-05 | D20: mg/kg | E20: Eq

Sheet F16c
A1: Consumption of contaminated water by Mammal, carnivorous, Longer-term Concentrations
A2: Short Title | B2: Longer-term Concentrations | E2: WatAlloV6
A3: Receptor | B3: Mammal, carnivorous
A4: Duration | B4: Chronic | E4: Scenario parameter
A5: Parameter/Assumption | B5: Code / Range | C5: Equation/ Value | D5: Units | E5: Reference/Designation
A6: Concentration in water | B6: ConcWat
B7: Central | C7: =B04a!Chronic_C -> 1.4e-05 | D7: mg/L | E7: ='B04a'!Chronic_C
B8: Lower | C8: =B04a!Chronic_L -> 5.6e-08 | E8: ='B04a'!Chronic_L
B9: Upper | C9: =B04a!Chronic_U -> 0.000196 | E9: ='B04a'!Chronic_U
A10: Receptor
A11: Body weight | B11: BW | C11: =A02b!$C$47 -> 5 | D11: kg | E11: U.S. EPA/ORD 1993
A12: Allometric coefficients forwater consumption per day in liters and BW in kilograms
B13: alpha | C13: =A02b!$C$50 -> 0.099 | E13: U.S. EPA/ORD 1993
B14: beta | C14: =A02b!$C$51 -> 0.9 | E14: U.S. EPA/ORD 1993
A15: Amount of water consumed per day | C15: Amnt = alpha BW beta
B16: Amnt | C16: =C13*(C11^C14) -> 0.4214132616 | D16: liters | E16: Eq
A17: Absorbed Dose | B17: Dose | C17: ConcWat × Amnt ÷ BW
B18: Central | C18: =C7*C$16/C$11 -> 1.179957133e-06 | D18: mg/kg | E18: Eq
B19: Lower | C19: =C8*C$16/C$11 -> 4.71982853e-09 | D19: mg/kg | E19: Eq
B20: Upper | C20: =C9*C$16/C$11 -> 1.651939986e-05 | D20: mg/kg | E20: Eq

Sheet F16d
A1: Consumption of contaminated water by Mammal, large, Longer-term Concentrations
A2: Short Title | B2: Longer-term Concentrations | E2: WatAlloV6
A3: Receptor | B3: Mammal, large
A4: Duration | B4: Chronic | E4: Scenario parameter
A5: Parameter/Assumption | B5: Code / Range | C5: Equation/ Value | D5: Units | E5: Reference/Designation
A6: Concentration in water | B6: ConcWat
B7: Central | C7: =B04a!Chronic_C -> 1.4e-05 | D7: mg/L | E7: ='B04a'!Chronic_C
B8: Lower | C8: =B04a!Chronic_L -> 5.6e-08 | E8: ='B04a'!Chronic_L
B9: Upper | C9: =B04a!Chronic_U -> 0.000196 | E9: ='B04a'!Chronic_U
A10: Receptor
A11: Body weight | B11: BW | C11: =A02b!$C$61 -> 70 | D11: kg | E11: Default
A12: Allometric coefficients forwater consumption per day in liters and BW in kilograms
B13: alpha | C13: =A02b!$C$64 -> 0.099 | E13: U.S. EPA/ORD 1993
B14: beta | C14: =A02b!$C$65 -> 0.9 | E14: U.S. EPA/ORD 1993
A15: Amount of water consumed per day | C15: Amnt = alpha BW beta
B16: Amnt | C16: =C13*(C11^C14) -> 4.531306412 | D16: liters | E16: Eq
A17: Absorbed Dose | B17: Dose | C17: ConcWat × Amnt ÷ BW
B18: Central | C18: =C7*C$16/C$11 -> 9.062612823e-07 | D18: mg/kg | E18: Eq
B19: Lower | C19: =C8*C$16/C$11 -> 3.625045129e-09 | D19: mg/kg | E19: Eq
B20: Upper | C20: =C9*C$16/C$11 -> 1.268765795e-05 | D20: mg/kg | E20: Eq

Sheet F17a
A1: Chronic scenario for the consumption of Contaminated Fish (Longer-term) by Mammal, large carnivorous
A2: Short Title | B2: Fish consumption, accidental spill | E2: FishKcalV6
A3: Predator | B3: Mammal, large carnivorous
A4: Food Item (Prey) | B4: Fish
A5: Duration | B5: Chronic | E5: Scenario parameter
A6: Parameter/Assumption | B6: Code / Range | C6: Equation/ Value | D6: Units | E6: Reference/Designation
A7: Water
A8: Concentration in water | B8: ConcWat
B9: Central | C9: =B04a!Chronic_C -> 1.4e-05 | D9: mg/L | E9: ='B04a'!Chronic_C
B10: Lower | C10: =B04a!Chronic_L -> 5.6e-08 | E10: ='B04a'!Chronic_L
B11: Upper | C11: =B04a!Chronic_U -> 0.000196 | E11: ='B04a'!Chronic_U
A12: Fish
A13: Bioconcentration factor | B13: BCF
B14: Central | C14: ='B01'!$C$6 -> 1 | D14: L/kg
B15: Lower | C15: ='B01'!$C$6 -> 1
B16: Upper | C16: ='B01'!$C$6 -> 1
A17: Concentration in fish | B17: ConcFish | C17: ConcWat × BCF
B18: Central | C18: =C9*C14 -> 1.4e-05 | D18: mg/kg | E18: Eq
B19: Lower | C19: =C10*C15 -> 5.6e-08 | E19: Eq
B20: Upper | C20: =C11*C16 -> 0.000196 | E20: Eq
A21: Receptor
A22: Body weight | B22: BW | C22: =A02b!$C$52 -> 70 | D22: kg | E22: Reid 2006
A23: Allometric coefficients for caloric requirement per day in kilocalories and BW in grams
B24: alpha | C24: =A02b!$C$53 -> 0.6167 | E24: U.S. EPA/ORD 1993
B25: beta | C25: =A02b!$C$54 -> 0.862 | E25: U.S. EPA/ORD 1993
A26: Caloric requirement per day | B26: KR | C26: =C24*(C22*1000)^C25 -> 9258.666883 | D26: kcal/day | E26: Eq
A27: Caloric content of commodity (dry weight) | B27: KCD | C27: ='A03'!$E$59 -> 4.47 | D27: kcal/gdw [Note 1] | E27: U.S. EPA/ORD 1993
A28: Food consumed per day (dry weight) | B28: AmntDry | C28: = KR ÷ KCD
C29: =C26/C27 -> 2071.29013 | D29: gdry/day | E29: Eq
A30: Water content of vegetation as a proportion | B30: PropWater | C30: ='A03'!$E$60 -> 0.7 | D30: gwater/gfood | E30: Ali et al. 2005
A31: Dry weight content of vegetation as a proportion | B31: PropDry | C31: = 1-PropWater
C32: =1-C30 -> 0.3 | D32: gdry/gfood | E32: Eq
A33: Amount of fish consumed per day, wet weight | B33: AmntFish | C33: = (AmntDry ÷ PropDry) ÷ (1000g/kg)
B34: Central | C34: =(C29/C32)/1000 -> 6.904300435 | D34: kgfood/day | E34: Eq
B35: Lower | C35: =C34*0.3 -> 2.07129013 | D35: Note 1 | E35: Eq
B36: Upper | C36: =C34*1.7 -> 11.73731074 | D36: Note 1 | E36: Eq
A37: Proportion of diet that is contaminated | B37: Prop
B38: Central | C38: 0.3 | D38: Unitless | E38: Scenario parameter
B39: Lower | C39: 0.1 | E39: Scenario parameter
B40: Upper | C40: 1 | E40: Scenario parameter
A41: Dose
A42: Toxic Equivalency Factor for formulation: (See risk assessment if this has a value other than 1.) | B42: TEF
B43: Central | C43: ='A01'!C$35 -> 1 | D43: Unitless | E43: Worksheet A01
B44: Lower | C44: ='A01'!C$36 -> 1 | D44: Note 2 | E44: Worksheet A01
B45: Upper | C45: ='A01'!C$37 -> 1 | D45: Note 2 | E45: Worksheet A01
A46: Dose | B46: Dose | C46: = ConcFish × AmntFish × Prop ÷ BW
B47: Central | C47: =C18*C34*C38/C$22 -> 4.142580261e-07 | D47: mg/kg | E47: Eq
B48: Lower | C48: =C19*C35*C39/C$22 -> 1.657032104e-10 | D48: mg/kg | E48: Eq
B49: Upper | C49: 3.286447007e-05 | D49: mg/kg | E49: Eq
E50: FishKcalV6

Sheet F17b
A1: Chronic scenario for the consumption of Contaminated Fish (Longer-term) by Mammal, carnivorous
A2: Short Title | B2: Fish consumption, accidental spill | E2: FishKcalV6
A3: Predator | B3: Mammal, carnivorous
A4: Food Item (Prey) | B4: Fish
A5: Duration | B5: Chronic | E5: Scenario parameter
A6: Parameter/Assumption | B6: Code / Range | C6: Equation/ Value | D6: Units | E6: Reference/Designation
A7: Water
A8: Concentration in water | B8: ConcWat
B9: Central | C9: =B04a!Chronic_C -> 1.4e-05 | D9: mg/L | E9: ='B04a'!Chronic_C
B10: Lower | C10: =B04a!Chronic_L -> 5.6e-08 | E10: ='B04a'!Chronic_L
B11: Upper | C11: =B04a!Chronic_U -> 0.000196 | E11: ='B04a'!Chronic_U
A12: Fish
A13: Bioconcentration factor | B13: BCF
B14: Central | C14: ='B01'!$C$6 -> 1 | D14: L/kg
B15: Lower | C15: ='B01'!$C$6 -> 1
B16: Upper | C16: ='B01'!$C$6 -> 1
A17: Concentration in fish | B17: ConcFish | C17: ConcWat × BCF
B18: Central | C18: =C9*C14 -> 1.4e-05 | D18: mg/kg | E18: Eq
B19: Lower | C19: =C10*C15 -> 5.6e-08 | E19: Eq
B20: Upper | C20: =C11*C16 -> 0.000196 | E20: Eq
A21: Receptor
A22: Body weight | B22: BW | C22: =A02b!$C$47 -> 5 | D22: kg | E22: U.S. EPA/ORD 1993
A23: Allometric coefficients for caloric requirement per day in kilocalories and BW in grams
B24: alpha | C24: =A02b!$C$48 -> 0.6167 | E24: U.S. EPA/ORD 1993
B25: beta | C25: =A02b!$C$49 -> 0.862 | E25: U.S. EPA/ORD 1993
A26: Caloric requirement per day | B26: KR | C26: =C24*(C22*1000)^C25 -> 951.8885266 | D26: kcal/day | E26: Eq
A27: Caloric content of commodity (dry weight) | B27: KCD | C27: ='A03'!$E$59 -> 4.47 | D27: kcal/gdw [Note 1] | E27: U.S. EPA/ORD 1993
A28: Food consumed per day (dry weight) | B28: AmntDry | C28: = KR ÷ KCD
C29: =C26/C27 -> 212.9504534 | D29: gdry/day | E29: Eq
A30: Water content of vegetation as a proportion | B30: PropWater | C30: ='A03'!$E$60 -> 0.7 | D30: gwater/gfood | E30: Ali et al. 2005
A31: Dry weight content of vegetation as a proportion | B31: PropDry | C31: = 1-PropWater
C32: =1-C30 -> 0.3 | D32: gdry/gfood | E32: Eq
A33: Amount of fish consumed per day, wet weight | B33: AmntFish | C33: = (AmntDry ÷ PropDry) ÷ (1000g/kg)
B34: Central | C34: =(C29/C32)/1000 -> 0.7098348446 | D34: kgfood/day | E34: Eq
B35: Lower | C35: =C34*0.3 -> 0.2129504534 | D35: Note 1 | E35: Eq
B36: Upper | C36: =C34*1.7 -> 1.206719236 | D36: Note 1 | E36: Eq
A37: Proportion of diet that is contaminated | B37: Prop
B38: Central | C38: 0.3 | D38: Unitless | E38: Scenario parameter
B39: Lower | C39: 0.1 | E39: Scenario parameter
B40: Upper | C40: 1 | E40: Scenario parameter
A41: Dose
A42: Toxic Equivalency Factor for formulation: (See risk assessment if this has a value other than 1.) | B42: TEF
B43: Central | C43: ='A01'!C$35 -> 1 | D43: Unitless | E43: Worksheet A01
B44: Lower | C44: ='A01'!C$36 -> 1 | D44: Note 2 | E44: Worksheet A01
B45: Upper | C45: ='A01'!C$37 -> 1 | D45: Note 2 | E45: Worksheet A01
A46: Dose | B46: Dose | C46: = ConcFish × AmntFish × Prop ÷ BW
B47: Central | C47: =C18*C34*C38/C$22 -> 5.962612695e-07 | D47: mg/kg | E47: Eq
B48: Lower | C48: =C19*C35*C39/C$22 -> 2.385045078e-10 | D48: mg/kg | E48: Eq
B49: Upper | C49: 4.730339404e-05 | D49: mg/kg | E49: Eq
E50: FishKcalV6

Sheet G01a
A1: Summary of Exposure Assessments for the Mammals | F1: G01V6Mam
A2: Application Rate: | B2: ='A01'!ApRt_C -> 0.28 | C2: lb a.e./acre | F2: G01V6Mam
A3: Scenario | B3: Receptor | C3: mg/kg/day or mg/kg/event | F3: Detail Worksheet
C4: Central | D4: Lower | E4: Upper | K4: Lower | L4: Central | M4: Upper
A5: Accidental Acute Exposures
A6: Direct Spray | J6: SPRAY------------
A7: first-order absorption | B7: Small mammal (20g) | C7: No exposure assessment | J7: 1st-Order Abs | K7: =IF(D7>0, D7, "") ->  | L7: =IF(ISERROR(C7-K7), "", C7-K7) ->  | M7: =IF(ISERROR(E7-C7), "", E7-C7) ->  | N7: =E7-SUM(K7:M7) -> 0
A8: 100% absorption | B8: Small mammal (20g) | C8: No exposure assessment | J8: 100% Abs. | N8: =E8-SUM(K8:M8) -> 0
A9: Contaminated Water | J9: SPILL--------------
A10: Spill | B10: Small mammal (20g) | C10: =F02a!Dose_C -> 0.00172829446 | D10: =F02a!Dose_L -> 1.707961584e-05 | E10: =F02a!Dose_U -> 0.006913177838 | F10: F02a | J10: Sm Mam | K10: =IF(D10>0, D10, "") -> 1.707961584e-05 | L10: =IF(ISERROR(C10-K10), "", C10-K10) -> 0.001711214844 | M10: =IF(ISERROR(E10-C10), "", E10-C10) -> 0.005184883379 | N10: =E10-SUM(K10:M10) -> 0
A11: Spill | B11: Larger Mammal (400g) | C11: =F02b!Dose_C -> 0.001280898562 | D11: =F02b!Dose_L -> 1.265829167e-05 | E11: =F02b!Dose_U -> 0.005123594249 | F11: F02b | J11: 400 g Mam | K11: 1.265829167e-05 | L11: 0.00126824027 | M11: 0.003842695687 | N11: 0
A12: Spill | B12: Canid (5 kg) | C12: =F02c!Dose_C -> 0.0009950015032 | D12: =F02c!Dose_L -> 9.832956031e-06 | E12: =F02c!Dose_U -> 0.003980006013 | F12: F02c | J12: Canid | K12: 9.832956031e-06 | L12: 0.0009851685472 | M12: 0.00298500451 | N12: 0
A13: Spill | B13: Large Mammal (70g) | C13: =F02d!Dose_C -> 0.0007642068625 | D13: =F02d!Dose_L -> 7.552161935e-06 | E13: =F02d!Dose_U -> 0.00305682745 | F13: F02d | J13: Lrg Mam | K13: 7.552161935e-06 | L13: 0.0007566547005 | M13: 0.002292620587 | N13: 0
A14: Consumption of contaminated Fish | J14: FISH--------------
A15: Spill | B15: Large Mammalian Carnivore (70 kg) | C15: =F03a!Dose_C -> 0.0003493240112 | D15: =F03a!Dose_L -> 3.45214317e-07 | E15: =F03a!Dose_U -> 0.007918010921 | F15: F03a | J15: Lrg Mam | K15: =IF(D15>0, D15, "") -> 3.45214317e-07 | L15: =IF(ISERROR(C15-K15), "", C15-K15) -> 0.0003489787969 | M15: =IF(ISERROR(E15-C15), "", E15-C15) -> 0.00756868691 | N15: =E15-SUM(K15:M15) -> 0
A16: Spill | B16: Canid (5 kg) | C16: =F03b!Dose_C -> 0.0005027986551 | D16: =F03b!Dose_L -> 4.968833768e-07 | E16: =F03b!Dose_U -> 0.01139676952 | F16: F03b | J16: Canid | K16: 4.968833768e-07 | L16: 0.0005023017718 | M16: 0.01089397086 | N16: 0
A17: Non-Accidental Acute Exposures
A18: Contaminated Fruit [Lowest Residue Rates] | J18: FRUIT-------------
B19: Small mammal (20g) | C19: No exposure assessment | J19: Sm Mam | K19: =IF(D19>0, D19, "") ->  | L19: =IF(ISERROR(C19-K19), "", C19-K19) ->  | M19: =IF(ISERROR(E19-C19), "", E19-C19) ->  | N19: =E19-SUM(K19:M19) -> 0
B20: Larger Mammal (400g) | C20: No exposure assessment | J20: 400g Mam | N20: 0
B21: Large Mammal (70g) | C21: No exposure assessment | J21: Lrg Mam | N21: 0
A22: Contaminated Broadleaf Foliage | J22: BROADLEAF-----
B23: Small mammal (20g) | C23: No exposure assessment | J23: Sm Mam | K23: =IF(D23>0, D23, "") ->  | L23: =IF(ISERROR(C23-K23), "", C23-K23) ->  | M23: =IF(ISERROR(E23-C23), "", E23-C23) ->  | N23: =E23-SUM(K23:M23) -> 0
B24: Larger Mammal (400g) | C24: No exposure assessment | J24: 400g Mam | N24: 0
B25: Large Mammal (70g) | C25: No exposure assessment | J25: Lrg Mam | N25: 0
A26: Contaminated Tall Grass | J26: TALL GRASS -----
B27: Small mammal (20g) | C27: No exposure assessment | J27: Sm Mam | K27: =IF(D27>0, D27, "") ->  | L27: =IF(ISERROR(C27-K27), "", C27-K27) ->  | M27: =IF(ISERROR(E27-C27), "", E27-C27) ->  | N27: =E27-SUM(K27:M27) -> 0
B28: Larger Mammal (400g) | C28: No exposure assessment | J28: 400g Mam | N28: 0
B29: Large Mammal (70g) | C29: No exposure assessment | J29: Lrg Mam | N29: 0
A30: Contaminated Short Grass [Highest Residue Rate] | J30: SHORT GRASS---
B31: Small mammal (20g) | C31: No exposure assessment | J31: Sm Mam | K31: =IF(D31>0, D31, "") ->  | L31: =IF(ISERROR(C31-K31), "", C31-K31) ->  | M31: =IF(ISERROR(E31-C31), "", E31-C31) ->  | N31: =E31-SUM(K31:M31) -> 0
B32: Larger Mammal (400g) | C32: No exposure assessment | J32: 400g Mam | N32: 0
B33: Large Mammal | C33: No exposure assessment | J33: Lrg Mam | N33: 0
A34: Contaminated Water | J34: WATER------------
B35: Small mammal (20g) | C35: =F08a!Dose_C -> 2.869381318e-05 | D35: =F08a!Dose_L -> 8.198232337e-08 | E35: =F08a!Dose_U -> 0.0002869381318 | F35: F08a | J35: Sm Mam | K35: =IF(D35>0, D35, "") -> 8.198232337e-08 | L35: =IF(ISERROR(C35-K35), "", C35-K35) -> 2.861183086e-05 | M35: =IF(ISERROR(E35-C35), "", E35-C35) -> 0.0002582443186 | N35: =E35-SUM(K35:M35) -> 0
B36: Larger Mammal (400g) | C36: =F08b!Dose_C -> 2.126597342e-05 | D36: =F08b!Dose_L -> 6.075992407e-08 | E36: =F08b!Dose_U -> 0.0002126597342 | F36: F08b | J36: 400g Mam | K36: 6.075992407e-08 | L36: 2.12052135e-05 | M36: 0.0001913937608 | N36: 0
B37: Canid (5 kg) | C37: =F08c!Dose_C -> 1.651939986e-05 | D37: =F08c!Dose_L -> 4.71982853e-08 | E37: =F08c!Dose_U -> 0.0001651939986 | F37: F08c | J37: Canid | K37: 4.71982853e-08 | L37: 1.647220157e-05 | M37: 0.0001486745987 | N37: 0
B38: Large Mammal (70g) | C38: =F08d!Dose_C -> 1.268765795e-05 | D38: =F08d!Dose_L -> 3.625045129e-08 | E38: =F08d!Dose_U -> 0.0001268765795 | F38: F08d | J38: Lrg Mam | K38: 3.625045129e-08 | L38: 1.26514075e-05 | M38: 0.0001141889216 | N38: 0
A39: Contaminated Insects | J39: INSECTS------------
B40: Small mammal (20g) | C40: No exposure assessment | J40: Sm Mam | K40: =IF(D40>0, D40, "") ->  | L40: =IF(ISERROR(C40-K40), "", C40-K40) ->  | M40: =IF(ISERROR(E40-C40), "", E40-C40) ->  | N40: =E40-SUM(K40:M40) -> 0
B41: Larger Mammal (400g) | C41: No exposure assessment | J41: Lrg Mam | N41: 0
A42: Consumption of small mammal (after direct spray) by predator | J42: SMALL MAMMAL-
B43: Canid (5 kg) | C43: No exposure assessment | J43: Canid | K43: =IF(D43>0, D43, "") ->  | L43: =IF(ISERROR(C43-K43), "", C43-K43) ->  | M43: =IF(ISERROR(E43-C43), "", E43-C43) ->  | N43: =E43-SUM(K43:M43) -> 0
A44: Consumption of contaminated Fish | J44: FISH----------------
B45: Large Mammalian Carnivore (70 kg) | C45: =F11a!Dose_C -> 5.799612365e-06 | D45: =F11a!Dose_L -> 1.657032104e-09 | E45: =F11a!Dose_U -> 0.0003286447007 | F45: F11a | J45: Lrg Mam | K45: =IF(D45>0, D45, "") -> 1.657032104e-09 | L45: =IF(ISERROR(C45-K45), "", C45-K45) -> 5.797955333e-06 | M45: =IF(ISERROR(E45-C45), "", E45-C45) -> 0.0003228450883 | N45: =E45-SUM(K45:M45) -> 0
B46: Canid (5 kg) | C46: =F11b!Dose_C -> 8.347657772e-06 | D46: =F11b!Dose_L -> 2.385045078e-09 | E46: =F11b!Dose_U -> 0.0004730339404 | F46: F11b | J46: Canid | K46: 2.385045078e-09 | L46: 8.345272727e-06 | M46: 0.0004646862827 | N46: 0
A47: Chronic/Longer Term Exposures
A48: Contaminated Fruit [Lowest Residue Rates] | J48: FRUIT-------------
B49: Small mammal (20g) | C49: No exposure assessment | J49: Sm Mam | K49: =IF(D49>0, D49, "") ->  | L49: =IF(ISERROR(C49-K49), "", C49-K49) ->  | M49: =IF(ISERROR(E49-C49), "", E49-C49) ->  | N49: =E49-SUM(K49:M49) -> 0
B50: Larger Mammal (400g) | C50: No exposure assessment | J50: 400g Mam | N50: 0
B51: Large Mammal (70g) | C51: No exposure assessment | J51: Lrg Mam | N51: 0
A52: Contaminated Broadleaf Foliage | J52: BROADLEAF-----
B53: Small mammal (20g) | C53: No exposure assessment | J53: Sm Mam | K53: =IF(D53>0, D53, "") ->  | L53: =IF(ISERROR(C53-K53), "", C53-K53) ->  | M53: =IF(ISERROR(E53-C53), "", E53-C53) ->  | N53: =E53-SUM(K53:M53) -> 0
B54: Larger Mammal (400g) | C54: No exposure assessment | J54: 400g Mam | N54: 0
B55: Large Mammal (70g) | C55: No exposure assessment | J55: Lrg Mam | N55: 0
A56: Contaminated Tall Grass | J56: TALL GRASS -----
B57: Small mammal (20g) | C57: No exposure assessment | J57: Sm Mam | K57: =IF(D57>0, D57, "") ->  | L57: =IF(ISERROR(C57-K57), "", C57-K57) ->  | M57: =IF(ISERROR(E57-C57), "", E57-C57) ->  | N57: =E57-SUM(K57:M57) -> 0
B58: Larger Mammal (400g) | C58: No exposure assessment | J58: 400g Mam | N58: 0
B59: Large Mammal | C59: No exposure assessment | J59: Lrg Mam | N59: 0
A60: Contaminated Short Grass [Highest Residue Rate] | J60: SHORT GRASS---
B61: Small mammal (20g) | C61: No exposure assessment | J61: Sm Mam | K61: =IF(D61>0, D61, "") ->  | L61: =IF(ISERROR(C61-K61), "", C61-K61) ->  | M61: =IF(ISERROR(E61-C61), "", E61-C61) ->  | N61: =E61-SUM(K61:M61) -> 0
B62: Larger Mammal (400g) | C62: No exposure assessment | J62: 400g Mam | N62: 0
B63: Large Mammal (70g) | C63: No exposure assessment | J63: Lrg Mam | N63: 0
A64: Contaminated Water | J64: WATER------------
B65: Small mammal (20g) | C65: =F16a!Dose_C -> 2.049558084e-06 | D65: =F16a!Dose_L -> 8.198232337e-09 | E65: =F16a!Dose_U -> 2.869381318e-05 | F65: F16a | J65: Sm Mam | K65: =IF(D65>0, D65, "") -> 8.198232337e-09 | L65: =IF(ISERROR(C65-K65), "", C65-K65) -> 2.041359852e-06 | M65: =IF(ISERROR(E65-C65), "", E65-C65) -> 2.66442551e-05 | N65: =E65-SUM(K65:M65) -> 0
B66: Larger Mammal (400g) | C66: =F16b!Dose_C -> 1.518998102e-06 | D66: =F16b!Dose_L -> 6.075992407e-09 | E66: =F16b!Dose_U -> 2.126597342e-05 | F66: F16b | J66: 400g Mam | K66: 6.075992407e-09 | L66: 1.512922109e-06 | M66: 1.974697532e-05 | N66: 0
B67: Canid (5 kg) | C67: =F16c!Dose_C -> 1.179957133e-06 | D67: =F16c!Dose_L -> 4.71982853e-09 | E67: =F16c!Dose_U -> 1.651939986e-05 | F67: F16c | J67: Canid | K67: 4.71982853e-09 | L67: 1.175237304e-06 | M67: 1.533944272e-05 | N67: 0
B68: Large Mammal (70g) | C68: =F16d!Dose_C -> 9.062612823e-07 | D68: =F16d!Dose_L -> 3.625045129e-09 | E68: =F16d!Dose_U -> 1.268765795e-05 | F68: F16d | J68: Lrg Mam | K68: 3.625045129e-09 | L68: 9.026362372e-07 | M68: 1.178139667e-05 | N68: 0
A69: Consumption of contaminated Fish | J69: FISH----------------
B70: Large Mammalian Carnivore (70 kg) | C70: =F17a!Dose_C -> 4.142580261e-07 | D70: =F17a!Dose_L -> 1.657032104e-10 | E70: =F17a!Dose_U -> 3.286447007e-05 | F70: F17a | J70: Lrg Mam | K70: =IF(D70>0, D70, "") -> 1.657032104e-10 | L70: =IF(ISERROR(C70-K70), "", C70-K70) -> 4.140923229e-07 | M70: =IF(ISERROR(E70-C70), "", E70-C70) -> 3.245021204e-05 | N70: =E70-SUM(K70:M70) -> 0
B71: Canid (5 kg) | C71: =F17b!Dose_C -> 5.962612695e-07 | D71: =F17b!Dose_L -> 2.385045078e-10 | E71: =F17b!Dose_U -> 4.730339404e-05 | F71: F17b | J71: Canid | K71: =IF(D71>0, D71, "") -> 2.385045078e-10 | L71: =IF(ISERROR(C71-K71), "", C71-K71) -> 5.960227649e-07 | M71: =IF(ISERROR(E71-C71), "", E71-C71) -> 4.670713277e-05 | N71: 0

Sheet G02a
A1: Summary of Hazard Quotients (Toxicity) for the Mammals | F1: G01V6Mam
A2: Application Rate: | B2: ='A01'!ApRt_C -> 0.28 | C2: lb a.e./acre | F2: G01V6Mam
A3: Scenario | B3: Receptor | C3: Hazard Quotients | F3: Toxicity Value
C4: Central | D4: Lower | E4: Upper | K4: Lower | L4: Central | M4: Upper
A5: Accidental Acute Exposures
A6: Direct Spray | J6: SPRAY------------
A7: first-order absorption | B7: Small mammal (20g) | C7: No exposure assessment | F7: ='B02'!$E$6 -> 0.26 | G7: NOAEL | J7: 1st-Order Abs | K7: =IF(D7>0, D7, "") ->  | L7: =IF(ISERROR(C7-K7), "", C7-K7) ->  | M7: =IF(ISERROR(E7-C7), "", E7-C7) ->  | N7: =E7-SUM(K7:M7) -> 0
A8: 100% absorption | B8: Small mammal (20g) | C8: No exposure assessment | F8: ='B02'!$E$6 -> 0.26 | G8: NOAEL | J8: 100% Abs. | N8: =E8-SUM(K8:M8) -> 0
A9: Contaminated Water | J9: SPILL--------------
A10: Spill | B10: Small mammal (20g) | C10: =F02a!$C$18/$F$10 -> 0.006647286383 | D10: =F02a!$C$19/$F$10 -> 6.569083014e-05 | E10: =F02a!$C$20/$F$10 -> 0.02658914553 | F10: ='B02'!$E$6 -> 0.26 | G10: NOAEL | J10: Sm Mam | K10: =IF(D10>0, D10, "") -> 6.569083014e-05 | L10: =IF(ISERROR(C10-K10), "", C10-K10) -> 0.006581595553 | M10: =IF(ISERROR(E10-C10), "", E10-C10) -> 0.01994185915 | N10: =E10-SUM(K10:M10) -> 0
A11: Spill | B11: Larger Mammal (400g) | C11: =F02b!$C$18/$F$11 -> 0.004926532931 | D11: =F02b!$C$19/$F$11 -> 4.86857372e-05 | E11: =F02b!$C$20/$F$11 -> 0.01970613173 | F11: ='B02'!$E$6 -> 0.26 | G11: NOAEL | J11: 400 g Mam | K11: 4.86857372e-05 | L11: 0.004877847194 | M11: 0.01477959879 | N11: 0
A12: Spill | B12: Canid (5 kg) | C12: =F02c!$C$18/$F$12 -> 0.003826928858 | D12: =F02c!$C$19/$F$12 -> 3.781906166e-05 | E12: =F02c!$C$20/$F$12 -> 0.01530771543 | F12: ='B02'!$E$6 -> 0.26 | G12: NOAEL | J12: Canid | K12: 3.781906166e-05 | L12: 0.003789109797 | M12: 0.01148078658 | N12: 0
A13: Spill | B13: Large Mammal (70g) | C13: =F02d!$C$18/$F$13 -> 0.002939257163 | D13: =F02d!$C$19/$F$13 -> 2.904677667e-05 | E13: =F02d!$C$20/$F$13 -> 0.01175702865 | F13: ='B02'!$E$6 -> 0.26 | G13: NOAEL | J13: Lrg Mam | K13: 2.904677667e-05 | L13: 0.002910210387 | M13: 0.00881777149 | N13: 0
A14: Consumption of contaminated Fish | J14: FISH--------------
A15: Spill | B15: Large Mammalian Carnivore (70 kg) | C15: =F03a!$C$47/$F$15 -> 0.001343553889 | D15: =F03a!$C$48/$F$15 -> 1.327747373e-06 | E15: =F03a!$C$49/$F$15 -> 0.03045388816 | F15: ='B02'!$E$6 -> 0.26 | G15: NOAEL | J15: Lrg Mam | K15: =IF(D15>0, D15, "") -> 1.327747373e-06 | L15: =IF(ISERROR(C15-K15), "", C15-K15) -> 0.001342226142 | M15: =IF(ISERROR(E15-C15), "", E15-C15) -> 0.02911033427 | N15: =E15-SUM(K15:M15) -> 0
A16: Spill | B16: Canid (5 kg) | C16: =F03b!$C$47/$F$16 -> 0.001933840981 | D16: =F03b!$C$48/$F$16 -> 1.911089911e-06 | E16: =F03b!$C$49/$F$16 -> 0.04383372891 | F16: ='B02'!$E$6 -> 0.26 | G16: NOAEL | J16: Canid | K16: 1.911089911e-06 | L16: 0.001931929891 | M16: 0.04189988793 | N16: 0
A17: Non-Accidental Acute Exposures
A18: Contaminated Fruit [Lowest Residue Rates] | J18: FRUIT-------------
B19: Small mammal (20g) | C19: No exposure assessment | F19: ='B02'!$E$6 -> 0.26 | G19: NOAEL | J19: Sm Mam | K19: =IF(D19>0, D19, "") ->  | L19: =IF(ISERROR(C19-K19), "", C19-K19) ->  | M19: =IF(ISERROR(E19-C19), "", E19-C19) ->  | N19: =E19-SUM(K19:M19) -> 0
B20: Larger Mammal (400g) | C20: No exposure assessment | F20: ='B02'!$E$6 -> 0.26 | G20: NOAEL | J20: 400g Mam | N20: 0
B21: Large Mammal (70g) | C21: No exposure assessment | F21: ='B02'!$E$6 -> 0.26 | G21: NOAEL | J21: Lrg Mam | N21: 0
A22: Contaminated Broadleaf Foliage | J22: BROADLEAF-----
B23: Small mammal (20g) | C23: No exposure assessment | F23: ='B02'!$E$6 -> 0.26 | G23: NOAEL | J23: Sm Mam | K23: =IF(D23>0, D23, "") ->  | L23: =IF(ISERROR(C23-K23), "", C23-K23) ->  | M23: =IF(ISERROR(E23-C23), "", E23-C23) ->  | N23: =E23-SUM(K23:M23) -> 0
B24: Larger Mammal (400g) | C24: No exposure assessment | F24: ='B02'!$E$6 -> 0.26 | G24: NOAEL | J24: 400g Mam | N24: 0
B25: Large Mammal (70g) | C25: No exposure assessment | F25: ='B02'!$E$6 -> 0.26 | G25: NOAEL | J25: Lrg Mam | N25: 0
A26: Contaminated Tall Grass | J26: TALL GRASS -----
B27: Small mammal (20g) | C27: No exposure assessment | F27: ='B02'!$E$6 -> 0.26 | G27: NOAEL | J27: Sm Mam | K27: =IF(D27>0, D27, "") ->  | L27: =IF(ISERROR(C27-K27), "", C27-K27) ->  | M27: =IF(ISERROR(E27-C27), "", E27-C27) ->  | N27: =E27-SUM(K27:M27) -> 0
B28: Larger Mammal (400g) | C28: No exposure assessment | F28: ='B02'!$E$6 -> 0.26 | G28: NOAEL | J28: 400g Mam | N28: 0
B29: Large Mammal (70g) | C29: No exposure assessment | F29: ='B02'!$E$6 -> 0.26 | G29: NOAEL | J29: Lrg Mam | N29: 0
A30: Contaminated Short Grass [Highest Residue Rate] | J30: SHORT GRASS---
B31: Small mammal (20g) | C31: No exposure assessment | F31: ='B02'!$E$6 -> 0.26 | G31: NOAEL | J31: Sm Mam | K31: =IF(D31>0, D31, "") ->  | L31: =IF(ISERROR(C31-K31), "", C31-K31) ->  | M31: =IF(ISERROR(E31-C31), "", E31-C31) ->  | N31: =E31-SUM(K31:M31) -> 0
B32: Larger Mammal (400g) | C32: No exposure assessment | F32: ='B02'!$E$6 -> 0.26 | G32: NOAEL | J32: 400g Mam | N32: 0
B33: Large Mammal | C33: No exposure assessment | F33: ='B02'!$E$6 -> 0.26 | G33: NOAEL | J33: Lrg Mam | N33: 0
A34: Contaminated Water | J34: WATER------------
B35: Small mammal (20g) | C35: =F08a!$C$18/$F$35 -> 0.0001103608199 | D35: =F08a!$C$19/$F$35 -> 3.153166284e-07 | E35: =F08a!$C$20/$F$35 -> 0.001103608199 | F35: ='B02'!$E$6 -> 0.26 | G35: NOAEL | J35: Sm Mam | K35: =IF(D35>0, D35, "") -> 3.153166284e-07 | L35: =IF(ISERROR(C35-K35), "", C35-K35) -> 0.0001100455033 | M35: =IF(ISERROR(E35-C35), "", E35-C35) -> 0.0009932473793 | N35: =E35-SUM(K35:M35) -> 0
B36: Larger Mammal (400g) | C36: =F08b!$C$18/$F$36 -> 8.179220548e-05 | D36: =F08b!$C$19/$F$36 -> 2.336920157e-07 | E36: =F08b!$C$20/$F$36 -> 0.0008179220548 | F36: ='B02'!$E$6 -> 0.26 | G36: NOAEL | J36: 400g Mam | K36: 2.336920157e-07 | L36: 8.155851346e-05 | M36: 0.0007361298493 | N36: 0
B37: Canid (5 kg) | C37: =F08c!$C$18/$F$37 -> 6.353615329e-05 | D37: =F08c!$C$19/$F$37 -> 1.815318666e-07 | E37: =F08c!$C$20/$F$37 -> 0.0006353615329 | F37: ='B02'!$E$6 -> 0.26 | G37: NOAEL | J37: Canid | K37: 1.815318666e-07 | L37: 6.335462143e-05 | M37: 0.0005718253797 | N37: 0
B38: Large Mammal (70g) | C38: =F08d!$C$18/$F$38 -> 4.879868443e-05 | D38: =F08d!$C$19/$F$38 -> 1.394248127e-07 | E38: =F08d!$C$20/$F$38 -> 0.0004879868443 | F38: ='B02'!$E$6 -> 0.26 | G38: NOAEL | J38: Lrg Mam | K38: 1.394248127e-07 | L38: 4.865925962e-05 | M38: 0.0004391881599 | N38: 0
A39: Contaminated Insects | J39: INSECTS------------
B40: Small mammal (20g) | C40: No exposure assessment | F40: ='B02'!$E$6 -> 0.26 | G40: NOAEL | J40: Sm Mam | K40: =IF(D40>0, D40, "") ->  | L40: =IF(ISERROR(C40-K40), "", C40-K40) ->  | M40: =IF(ISERROR(E40-C40), "", E40-C40) ->  | N40: =E40-SUM(K40:M40) -> 0
B41: Larger Mammal (400g) | C41: No exposure assessment | F41: ='B02'!$E$6 -> 0.26 | G41: NOAEL | J41: Lrg Mam | N41: 0
A42: Consumption of small mammal (after direct spray) by predator | J42: SMALL MAMMAL-
B43: Canid (5 kg) | F43: ='B02'!$E$6 -> 0.26 | G43: NOAEL | J43: Canid | K43: =IF(D43>0, D43, "") ->  | L43: =IF(ISERROR(C43-K43), "", C43-K43) ->  | M43: =IF(ISERROR(E43-C43), "", E43-C43) -> 0 | N43: =E43-SUM(K43:M43) -> 0
A44: Consumption of contaminated Fish | J44: FISH----------------
B45: Large Mammalian Carnivore (70 kg) | C45: =F11a!$C$47/$F$45 -> 2.23062014e-05 | D45: =F11a!$C$48/$F$45 -> 6.373200401e-09 | E45: =F11a!$C$49/$F$45 -> 0.00126401808 | F45: ='B02'!$E$6 -> 0.26 | G45: NOAEL | J45: Lrg Mam | K45: =IF(D45>0, D45, "") -> 6.373200401e-09 | L45: =IF(ISERROR(C45-K45), "", C45-K45) -> 2.22998282e-05 | M45: =IF(ISERROR(E45-C45), "", E45-C45) -> 0.001241711878 | N45: =E45-SUM(K45:M45) -> 0
B46: Canid (5 kg) | C46: =F11b!$C$47/$F$46 -> 3.210637605e-05 | D46: =F11b!$C$48/$F$46 -> 9.173250299e-09 | E46: =F11b!$C$49/$F$46 -> 0.001819361309 | F46: ='B02'!$E$6 -> 0.26 | G46: NOAEL | J46: Canid | K46: 9.173250299e-09 | L46: 3.20972028e-05 | M46: 0.001787254933 | N46: 0
A47: Chronic/Longer Term Exposures
A48: Contaminated Fruit [Lowest Residue Rates] | J48: FRUIT-------------
B49: Small mammal (20g) | C49: No exposure assessment | F49: ='B02'!$E$7 -> 0.026 | G49: NOAEL | J49: Sm Mam | K49: =IF(D49>0, D49, "") ->  | L49: =IF(ISERROR(C49-K49), "", C49-K49) ->  | M49: =IF(ISERROR(E49-C49), "", E49-C49) ->  | N49: =E49-SUM(K49:M49) -> 0
B50: Larger Mammal (400g) | C50: No exposure assessment | F50: ='B02'!$E$7 -> 0.026 | G50: NOAEL | J50: 400g Mam | N50: 0
B51: Large Mammal (70g) | C51: No exposure assessment | F51: ='B02'!$E$7 -> 0.026 | G51: NOAEL | J51: Lrg Mam | N51: 0
A52: Contaminated Broadleaf Foliage | J52: BROADLEAF-----
B53: Small mammal (20g) | C53: No exposure assessment | F53: ='B02'!$E$7 -> 0.026 | G53: NOAEL | J53: Sm Mam | K53: =IF(D53>0, D53, "") ->  | L53: =IF(ISERROR(C53-K53), "", C53-K53) ->  | M53: =IF(ISERROR(E53-C53), "", E53-C53) ->  | N53: =E53-SUM(K53:M53) -> 0
B54: Larger Mammal (400g) | C54: No exposure assessment | F54: ='B02'!$E$7 -> 0.026 | G54: NOAEL | J54: 400g Mam | N54: 0
B55: Large Mammal (70g) | C55: No exposure assessment | F55: ='B02'!$E$7 -> 0.026 | G55: NOAEL | J55: Lrg Mam | N55: 0
A56: Contaminated Tall Grass | J56: TALL GRASS -----
B57: Small mammal (20g) | C57: No exposure assessment | F57: ='B02'!$E$7 -> 0.026 | G57: NOAEL | J57: Sm Mam | K57: =IF(D57>0, D57, "") ->  | L57: =IF(ISERROR(C57-K57), "", C57-K57) ->  | M57: =IF(ISERROR(E57-C57), "", E57-C57) ->  | N57: =E57-SUM(K57:M57) -> 0
B58: Larger Mammal (400g) | C58: No exposure assessment | F58: ='B02'!$E$7 -> 0.026 | G58: NOAEL | J58: 400g Mam | N58: 0
B59: Large Mammal | C59: No exposure assessment | F59: ='B02'!$E$7 -> 0.026 | G59: NOAEL | J59: Lrg Mam | N59: 0
A60: Contaminated Short Grass [Highest Residue Rate] | J60: SHORT GRASS---
B61: Small mammal (20g) | C61: No exposure assessment | F61: ='B02'!$E$7 -> 0.026 | G61: NOAEL | J61: Sm Mam | K61: =IF(D61>0, D61, "") ->  | L61: =IF(ISERROR(C61-K61), "", C61-K61) ->  | M61: =IF(ISERROR(E61-C61), "", E61-C61) ->  | N61: =E61-SUM(K61:M61) -> 0
B62: Larger Mammal (400g) | C62: No exposure assessment | F62: ='B02'!$E$7 -> 0.026 | G62: NOAEL | J62: 400g Mam | N62: 0
B63: Large Mammal (70g) | C63: No exposure assessment | F63: ='B02'!$E$7 -> 0.026 | G63: NOAEL | J63: Lrg Mam | N63: 0
A64: Contaminated Water | J64: WATER------------
B65: Small mammal (20g) | C65: =F16a!$C$18/$F$65 -> 7.882915709e-05 | D65: =F16a!$C$19/$F$65 -> 3.153166284e-07 | E65: =F16a!$C$20/$F$65 -> 0.001103608199 | F65: ='B02'!$E$7 -> 0.026 | G65: NOAEL | J65: Sm Mam | K65: =IF(D65>0, D65, "") -> 3.153166284e-07 | L65: =IF(ISERROR(C65-K65), "", C65-K65) -> 7.851384046e-05 | M65: =IF(ISERROR(E65-C65), "", E65-C65) -> 0.001024779042 | N65: =E65-SUM(K65:M65) -> 0
B66: Larger Mammal (400g) | C66: =F16b!$C$18/$F$66 -> 5.842300391e-05 | D66: =F16b!$C$19/$F$66 -> 2.336920157e-07 | E66: =F16b!$C$20/$F$66 -> 0.0008179220548 | F66: ='B02'!$E$7 -> 0.026 | G66: NOAEL | J66: 400g Mam | K66: 2.336920157e-07 | L66: 5.81893119e-05 | M66: 0.0007594990509 | N66: 0
B67: Canid (5 kg) | C67: =F16c!$C$18/$F$67 -> 4.538296664e-05 | D67: =F16c!$C$19/$F$67 -> 1.815318666e-07 | E67: =F16c!$C$20/$F$67 -> 0.0006353615329 | F67: ='B02'!$E$7 -> 0.026 | G67: NOAEL | J67: Canid | K67: 1.815318666e-07 | L67: 4.520143477e-05 | M67: 0.0005899785663 | N67: 0
B68: Large Mammal (70g) | C68: =F16d!$C$18/$F$68 -> 3.485620317e-05 | D68: =F16d!$C$19/$F$68 -> 1.394248127e-07 | E68: =F16d!$C$20/$F$68 -> 0.0004879868443 | F68: ='B02'!$E$7 -> 0.026 | G68: NOAEL | J68: Lrg Mam | K68: 1.394248127e-07 | L68: 3.471677835e-05 | M68: 0.0004531306412 | N68: 0
A69: Consumption of contaminated Fish | J69: FISH----------------
B70: Large Mammalian Carnivore (70 kg) | C70: =F17a!$C$47/$F$70 -> 1.5933001e-05 | D70: =F17a!$C$48/$F$70 -> 6.373200401e-09 | E70: =F17a!$C$49/$F$70 -> 0.00126401808 | F70: ='B02'!$E$7 -> 0.026 | G70: NOAEL | J70: Lrg Mam | K70: =IF(D70>0, D70, "") -> 6.373200401e-09 | L70: =IF(ISERROR(C70-K70), "", C70-K70) -> 1.59266278e-05 | M70: =IF(ISERROR(E70-C70), "", E70-C70) -> 0.001248085079 | N70: =E70-SUM(K70:M70) -> 0
B71: Canid (5 kg) | C71: =F17b!$C$47/$F$71 -> 2.293312575e-05 | D71: =F17b!$C$48/$F$71 -> 9.173250299e-09 | E71: =F17b!$C$49/$F$71 -> 0.001819361309 | F71: ='B02'!$E$7 -> 0.026 | G71: NOAEL | J71: Canid | K71: =IF(D71>0, D71, "") -> 9.173250299e-09 | L71: =IF(ISERROR(C71-K71), "", C71-K71) -> 2.29239525e-05 | M71: =IF(ISERROR(E71-C71), "", E71-C71) -> 0.001796428184 | N71: 0

Sheet References
A1: References cited in workbook
A2: Citation | B2: Full Reference
A3: Ali et al. 2005 | B3: Ali M; Iqbat F; Salam A; Iram S; Athar M. 2005. Comparative study of body composition of different fish species from brackish water pond. Int J Environ Sci Tech. 2(3): 229-232.
A4: Boxenbaum and D’Souza 1990 | B4: Boxenbaum J; D'Souza R. 1990. Interspecies pharmacokinetic scaling, biological design and neoteny. Adv. Drug Res. 19: 139-195.
A5: Budavari 1989 | B5: Budavari S. (Ed). 1989. The Merck Index: An Encyclopedia of Chemicals, Drugs,and Biologicals, 11th ed. Merck & Co., Inc., Rahway, New Jersey.
A6: Burnmaster 1998 | B6: Burnmaster DE. 1998. Lognormal distribution for total water intake and tap water intake by pregnant and lactating women in the United States. Risk Analysis. 18(5): 215-219
A7: Chapman 1998 | B7: Chapman P. 1998. The Insects: Structure and Function. 4th Edition. Cambridge University Press, Cambridge, UK. 788 pp.
A8: Default | B8: These are plausible default values that are typically used in SERA risk assessments.
A9: Dunning 1993 | B9: Dunning JB. 1993. CRC Handbook of Avian Body Masses. CRC Press, Boca Raton FL, 371 pp.
A10: Durkin et al. 1995 | B10: Durkin PR; Rubin L; Withey J; Meylan W. 1995. Methods of assessing dermal absorption with emphasis on uptake from contaminated vegetation. Toxicol. Indust. Health. 11(1): 63-79.
A11: Fletcher et al. 1994 | B11: Fletcher JS; Nellessen JE; Pfleeger TG. 1994. Literature review and evaluation of the EPA food-chain (Kenega) nomogram, an instrument for estimating pesticide residues on plants. Environ. Toxicol. Chem. 13(9):1383-1391.
A12: Harris and Solomon 1992 | B12: Harris SA; Solomon KR. 1992. Human exposure to 2,4-D following controlled activities on recently sprayed turf. J. Environ. Sci. Health. B27(1): 9-22.
A13: Hoerger and Kenaga 1972 | B13: Hoerger F; Kenaga EE. 1972. Pesticide residues on plants: Correlation of representative data as a basis for estimation of their magnitude in the environment. In: Environmental Quality and Safety, Volume I: Global Aspects of Toxicology and Technology as Applied to the Environment. F. Coulston and F. Kerte (eds.). Academic Press, New York, NY. pp. 9-28.
A14: Humphery and Dykes 2008 | B14: Humphrey JAC; Dykes ES. 2008. Thermal energy conduction in a honey bee comb due to cell-heating bees. J Theoretical Biology. 250 (1): 194-208.
A15: ICRP 1975 | B15: ICRP (International Commission on Radiologic Protection). 1975. Report of the Task Group on Reference Man. Recommendations of the International Commission on Radiological Protection (ICRP) Publ. No. 23. Pergamon Press, New York, NY.
A16: Knisel et al. 1992 | B16: Knisel WG; Davis FM; Leonard RA. 1992. GLEAMS Version 2.0 User Manual. U.S. Department of Agriculture, Agricultural Research Service, Southeast Watershed Research Laboratory, Tifton, GA. 202pp
A17: Manugistics 1995 | B17: Manugistics. 1995. Statgraphics Plus for Windows. Version 3. Available from Manugistics, Inc. Rockville, Maryland.
A18: Mason and Johnson 1987 | B18: Mason RW; Johnson BL. 1987. Ergonomic factors in chemical hazard control. In: Handbook of Human Factors. Salveny, G; ed. John Wiley and Sons, New York, NY. pp. 772-741.
A19: Mendenhall and Scheaffer 1973 | B19: Mendenhall W; Scheaffer RF. 1973. Mathematical Statistics with Applications. Duxbury Press, North Scituate, Massachusetts. 461 pp. plus appendices.
A20: N/A | B20: Not applicable
A21: Nagy 2005 | B21: Nagy KA. 2005. Field metabolic rate and body size. Journal of Experimental Biology. 208: 1621-1625.
A22: Ratnapalan et al. 2003 | B22: Ratnapalan S; Potylitsina Y; Tan LH; Roifman M; Koren G. 2003. Measuring a toddler's mouthful: toxicologic considerations. J Pediatr. 142(6):729-30.
A23: Reichle et al. 1973 | B23: Reichle DE, Goldstein RA; Van Hook RI; Dodson DJ. 1973. Analysis of Insect Consumption in a Forest Canopy. Ecology. 54: 1076-1084.
A24: Reid 2006 | B24: Reid FA. 2006. A Field Guide to Mammals of North America North of Mexico. Fourth Edition. The Peterson Field Guide Series. Houghton Mifflin Company, Boston MA. 570 pp.
A25: Ruffle et al. 1994 | B25: Ruffle B; Burmaster DE; Anderson PD; Gordon HD. 1994. Lognormal distributions for fish consumption by the general U.S. population. Risk Analy. 14(4): 395-404.
A26: SERA 1997 | B26: SERA (Syracuse Environmental Research Associates, Inc.). 1997. Reevaluation of Methods for Assessing Worker Exposure to Pesticides, SERA TR 96-21-08-01, draft dated December 31, 1997. Prepared under USDA/FS Contract 53-3187-5-12. Syracuse Environmental Research Associates, Inc., Fayetteville, NY.
A27: SERA 2005 | B27: SERA (Syracuse Environmental Research Associates, Inc.). 2005. Hexazinone - Human Health and Ecological Risk Assessment– Final Report, SERA SERA TR 05-43-20-03d, Final Report dated October 25, 2005. Available at: http://www.fs.fed.us/foresthealth/pesticide/risk.shtml.
A28: SERA 2007 | B28: SERA (Syracuse Environmental Research Associates, Inc.). 2007. Preparation of Environmental Documentation and Risk Assessments, SERA MD 2007-01a, draft dated July 2001. Syracuse Environmental Research Associates, Inc., Fayetteville, NY. Available at www.sera-inc.com.
A29: SERA 2010 | B29: SERA (Syracuse Environmental Research Associates, Inc.). 2010. Strychnine Human Health and Ecological Risk Assessment, SERA TR-052-17-02a, draft dated February 22, 2010. Syracuse Environmental Research Associates, Inc., Manlius, NY. Available at www.sera-inc.com.
A30: Sibley 2000 | B30: Sibley DA. 2000. The Sibley Guide to Birds. National Audubon Society, Chanticleer Press Edition. Alfred A. Knopf Inc., New York. 545 pp.
A31: Teske et al. 2001 | B31: Teske ME; Bird SL; Esterly DM; Ray SL; Perry SG. 2001. A User’s Guide for AgDRIFT 2.0: A Tiered Approach for the Assesment of Spray Drift. Continuum Dynamics, Inc. Public Use Version. C.D.I. Report No. 01-01. Available, with executable model at: http://www.agdrift.com
A32: U.S. EPA/OPP 1999 | B32: U.S. EPA/OPP ((U.S. Environmental Protection Agency/Office of Pesticide Programs). 1999. ECOFRAM: Terrestrial ECOFRAM Terrestrial Draft Report. Ecological Committee on FIFRA Risk Assessment Methods(ECOFRAM). Report dated May 10, 1999. Available at: http://www.epa.gov/oppefed1/ ecorisk/terrreport.pdf.
A33: U.S. EPA/ORD 1985 | B33: U.S. EPA/ORD (U.S. Environmental Protection Agency/Office of Research and Development). 1985. Development of Statistical Distributions or Ranges of Standard Factors Used in Exposure Assessments, Report prepared by GCA Corp., Chapel Hill. Available from NTIS: PB85-242667.
A34: U.S. EPA/ORD 1992 | B34: U.S. EPA/ORD (U.S. Environmental Protection Agency/Office of Research and Development). 1992. Dermal Exposure Assessment: Principles and Applications. EPA/600/8-91/011B. Interim Report. Exposure Assessment Group, Office of Health and Environmental Assessment, Washington, DC.
A35: U.S. EPA/ORD 1993 | B35: U.S. EPA/ORD (U.S. Environmental Protection Agency/Office of Research and Development). 1993. Wildlife Exposure Factors Handbook. Volumes 1 and 2. EPA/600/R-93/187a,b. Pagination not continuous. Available NTIS: PB94-174778 and PB94-174779.
A36: U.S. EPA/ORD 1996 | B36: U.S. EPA (U.S. Environmental Protection Agency/Office of Research and Development). 1996. Exposure Factors Handbook. National Center for Environmental Assessment, U.S. EPA, Washington, DC. EPA/600/P-95/002Ba-c. Avail. NTIS: PB97-117683, 97-117691, PB97-117709.
A37: U.S. EPA/ORD 1997 | B37: U.S. EPA (U.S. Environmental Protection Agency/Office of Research and Development). 1996. Exposure Factors Handbook. National Center for Environmental Assessment, U.S. EPA, Washington, DC. EPA/600/P-95/002Fa. Available at: http://rais.ornl.gov/homepage/EFH_Final_1997_EPA600P95002Fa.pdf
A38: USDA 1989a | B38: USDA (U.S. Department of Agriculture/Forest Service). 1989a. Final Environmental Impact Statement: Vegetation Management in the Coastal Plain/Piedmont, Management Bulletin R8-MB-23, dated January, 1989. 1213 pp.
A39: USDA 1989b | B39: USDA (U.S. Department of Agriculture/Forest Service). 1989b. Draft Environmental Impact Statement: Vegetation Management in the Ozark/Ouachita Mountains, Management Bulletin R8-MB-23, dated June, 1989. 499 pp.
A40: USDA 1989c | B40: USDA (U.S. Department of Agriculture/Forest Service). 1989c. Final Environmental Impact Statement: Vegetation Management in the Appalachian Mountains, Management Bulletin R8-MB-38, dated July, 1989. 1104 pp.
A41: Waldbauer 1968 | B41: Waldbauer GP. 1968. The consumption and utilization of food by insects. Advan Insect Physiol. 5: 229-288
A42: Winston 1987 | B42: Winston ML. 1987. The Biology of the Honey Bee. Harvard University Press, Cambridge, MA. ISBN 0-674-07409-2 280 pp.
A43: Wolfram Research 1997 | B43: Wolfram Research. 1997. Mathematica Version 3.0.1. Available from Wolfram Research, Inc. Champaign, IL.
